Service Area,Service Division,Expense Type,Expense Code,Detailed Expense Type,Payment Date,Transaction Number,Amount Exc VAT,Supplier Name
Regeneration Economy and Growth,Culture Sport and Tourism,Supplies and Services,384302,Miscellaneous Expenses,02/04/2024,4252504-837,"5,000.00",REDACTED - PAYMENT TO INDIVIDUAL
Children and Young Peoples Services,Head of Education and Skills,Supplies and Services,384199,Miscellaneous Expenses,02/04/2024,4252532-208,560.00,REDACTED - PAYMENT TO INDIVIDUAL
Adult and Health Services,Head of Adults,Premises,145009,Cleaning and Domestic Supplies,02/04/2024,4252535-1080,780.00,REDACTED - PAYMENT TO INDIVIDUAL
Regeneration Economy and Growth,Culture Sport and Tourism,Supplies and Services,304259,Equipment and Materials,02/04/2024,4252673-30/11/23-MAY24,"1,400.00",REDACTED - PAYMENT TO INDIVIDUAL
Neighbourhoods and Climate Change,Environmental Services,Supplies and Services,384899,Miscellaneous Expenses,02/04/2024,4252708-NEI-EXP-03-2024-060,500.00,REDACTED - PAYMENT TO INDIVIDUAL
Children and Young Peoples Services,Head of Childrens Social Care,Supplies and Services,338044,Services,02/04/2024,4252709-MB23C50245-8/3/24,"1,097.40",REDACTED - PAYMENT TO INDIVIDUAL
Neighbourhoods and Climate Change,Environmental Services,Supplies and Services,338066,Services,02/04/2024,4252712-4100850207,"4,000.00",REDACTED - PAYMENT TO INDIVIDUAL
Regeneration Economy and Growth,Transport and Contract Services,Supplies and Services,304252,Equipment and Materials,02/04/2024,4252730-DRS/BAB/FEB-MAR24,"1,680.00",REDACTED - PAYMENT TO INDIVIDUAL
Regeneration Economy and Growth,Culture Sport and Tourism,Supplies and Services,338099,Services,02/04/2024,4252731-JAN202401,"4,750.00",REDACTED - PAYMENT TO INDIVIDUAL
Neighbourhoods and Climate Change,Environmental Services,Supplies and Services,338066,Services,02/04/2024,4252738-FFF8,"1,700.00",REDACTED - PAYMENT TO INDIVIDUAL
Neighbourhoods and Climate Change,Environmental Services,Supplies and Services,304999,Equipment and Materials,02/04/2024,4252805-INV-0106,"2,689.99",REDACTED - PAYMENT TO INDIVIDUAL
Neighbourhoods and Climate Change,Environmental Services,Supplies and Services,304999,Equipment and Materials,02/04/2024,4252805-INV-0107,"1,998.30",REDACTED - PAYMENT TO INDIVIDUAL
Regeneration Economy and Growth,Culture Sport and Tourism,Supplies and Services,384199,Miscellaneous Expenses,02/04/2024,4252832-INV-000043,"1,000.00",REDACTED - PAYMENT TO INDIVIDUAL
Neighbourhoods and Climate Change,Highways,Third Party Payments,430128,Rendered by Private Contractors,02/04/2024,4252880-2567,820.00,REDACTED - PAYMENT TO INDIVIDUAL
Children and Young Peoples Services,Head of Education and Skills,Supplies and Services,384199,Miscellaneous Expenses,02/04/2024,4252881-4100883148,"6,350.00",REDACTED - PAYMENT TO INDIVIDUAL
Neighbourhoods and Climate Change,Environmental Services,Supplies and Services,338066,Services,02/04/2024,4252414-705,"7,490.00",4NATURE LTD.
Neighbourhoods and Climate Change,Highways,Supplies and Services,304221,Equipment and Materials,02/04/2024,4252422-35734624,569.05,AGGREGATE INDUSTRIES UK LTD.
Neighbourhoods and Climate Change,Highways,Supplies and Services,304221,Equipment and Materials,02/04/2024,4252422-35744956,634.34,AGGREGATE INDUSTRIES UK LTD.
Regeneration Economy and Growth,Culture Sport and Tourism,Premises,145023,Cleaning and Domestic Supplies,02/04/2024,4252423-427077165,"1,196.91",AIR PRODUCTS PLC.
Regeneration Economy and Growth,Culture Sport and Tourism,Premises,145023,Cleaning and Domestic Supplies,02/04/2024,4252423-427077194,"1,080.54",AIR PRODUCTS PLC.
Regeneration Economy and Growth,Culture Sport and Tourism,Premises,145023,Cleaning and Domestic Supplies,02/04/2024,4252423-427100760,"1,307.12",AIR PRODUCTS PLC.
Neighbourhoods and Climate Change,Environmental Services,Third Party Payments,410037,Rendered by Other Local Authorities,02/04/2024,4252424-R188/24/93103,"1,700.00",ALAN M RANSON FUNERAL SERVICE.
Regeneration Economy and Growth,Culture Sport and Tourism,Construction work A908,908105,Construction work,02/04/2024,4252426-12755,"720,275.08",ALLIANCE LEISURE SERVICES LTD.
Regeneration Economy and Growth,Corporate Property and Land,Third Party Payments,430100,Rendered by Private Contractors,02/04/2024,4252433-INV-0491,"29,274.40",APEX ROOFING SPECIALISTS LTD.
Regeneration Economy and Growth,Corporate Property and Land,Third Party Payments,430100,Rendered by Private Contractors,02/04/2024,4252433-INV-0492,"7,906.00",APEX ROOFING SPECIALISTS LTD.
Regeneration Economy and Growth,Corporate Property and Land,Third Party Payments,430100,Rendered by Private Contractors,02/04/2024,4252433-INV-0495,"7,500.00",APEX ROOFING SPECIALISTS LTD.
Regeneration Economy and Growth,Corporate Property and Land,Third Party Payments,430100,Rendered by Private Contractors,02/04/2024,4252433-INV-0496,"1,820.00",APEX ROOFING SPECIALISTS LTD.
Neighbourhoods and Climate Change,Environmental Services,Premises,115125,Repairs to Grounds,02/04/2024,4252436-23268,"1,446.54",ARM PIPETEK LTD.
Regeneration Economy and Growth,Corporate Property and Land,Third Party Payments,430100,Rendered by Private Contractors,02/04/2024,4252437-INV-0145,"2,250.00",ARMIGER TIMBER FRAME LTD.
Neighbourhoods and Climate Change,Environmental Services,Supplies and Services,384199,Miscellaneous Expenses,02/04/2024,4252440-229,"1,000.00",ATEVENTS.
Neighbourhoods and Climate Change,Environmental Services,Supplies and Services,304252,Equipment and Materials,02/04/2024,4252441-5450,"1,531.00",AUTOMATIC FLARE SYSTEMS LTD.
Children and Young Peoples Services,Head of Childrens Social Care,Supplies and Services,384500,Miscellaneous Expenses,02/04/2024,4252449-216250,"1,157.08",BARNARDO`S SERVICES LTD.
Regeneration Economy and Growth,Planning & Housing,Third Party Payments,440999,Other third party payments E440,02/04/2024,4252452-122022,"9,762.08",BAYDALE CONTROL SYSTEMS LTD.
Adult and Health Services,Central/Other,Supplies and Services,338099,Services,02/04/2024,4252453-BFBCINV-002538,675.00,BE FOUND BE CHOSEN.
Adult and Health Services,Central/Other,Supplies and Services,338099,Services,02/04/2024,4252453-BFBCINV-002609,675.00,BE FOUND BE CHOSEN.
Adult and Health Services,Central/Other,Supplies and Services,338099,Services,02/04/2024,4252453-BFBCINV-002635,675.00,BE FOUND BE CHOSEN.
Resources - C A C,Resources - C A C- Level C,Third Party Payments,440070,Other third party payments E440,02/04/2024,4252455-RES-04-2024-003A,"1,011.00",BEARPARK PARISH COUNCIL.
Adult and Health Services,Head of Adults,Third Party Payments,478151,Purchase of Care,02/04/2024,4252456-007/2024,617.04,BEECHFIELD CARE & SUPPORT LTD.
Regeneration Economy and Growth,Corporate Property and Land,Third Party Payments,430100,Rendered by Private Contractors,02/04/2024,4252459-SI-7299,600.00,BELL CONTROL SOLUTIONS LTD.
Resources - C A C,Resources - C A C- Level C,Third Party Payments,440070,Other third party payments E440,02/04/2024,4252460-RES-04-2024-004A,"5,236.00",BELMONT PARISH COUNCIL.
Adult and Health Services,Head of Adults,Supplies and Services,338042,Services,02/04/2024,4252464-307584,"1,842.30",BHP LAW (BLACKETT HART & PRATT LLP).
Resources - C A C,Resources - C A C- Level C,Third Party Payments,440070,Other third party payments E440,02/04/2024,4252467-RES-04-2024-005A,"2,802.00",BISHOP AUCKLAND TOWN COUNCIL.
Regeneration Economy and Growth,Corporate Property and Land,Supplies and Services,377015,County Durham Development,02/04/2024,4252468-MASI193,"1,500.00",BISHOP CHADWICK CATHOLIC EDUCATION TRUST (NSCET).
Resources - C A C,Resources - C A C- Level C,Third Party Payments,440070,Other third party payments E440,02/04/2024,4252470-RES-04-2024-006A,"2,449.00",BISHOP MIDDLEHAM PARISH COUNCIL.
Neighbourhoods and Climate Change,Highways,Supplies and Services,304221,Equipment and Materials,02/04/2024,4252479-21734202,"4,733.52",BREEDON TRADING LTD.
Neighbourhoods and Climate Change,Highways,Supplies and Services,304221,Equipment and Materials,02/04/2024,4252484-0000316029,893.00,BROXAP LTD.
Regeneration Economy and Growth,Culture Sport and Tourism,Supplies and Services,384199,Miscellaneous Expenses,02/04/2024,4252487-000470,"16,516.82",CARLO VIGLIANISI T/A BUILDING CULTURE CIC.
Children and Young Peoples Services,Head of Education and Skills,Construction work A908,908105,Construction work,02/04/2024,4252492-12554,556.72,CATHEDRAL LOCK & SAFE SERVICES LTD.
Resources - C A C,Resources - C A C- Level C,Third Party Payments,440070,Other third party payments E440,02/04/2024,4252494-RES-04-2024-017A,"5,532.00",CHARTER TRUSTEES FOR THE CITY OF DURHAM.
Neighbourhoods and Climate Change,Environmental Services,Supplies and Services,304259,Equipment and Materials,02/04/2024,4252495-343949,"4,005.00",CHAS LONG & SON (AGGREGATES) LTD.
Neighbourhoods and Climate Change,Environmental Services,Supplies and Services,304259,Equipment and Materials,02/04/2024,4252495-343950,"1,040.00",CHAS LONG & SON (AGGREGATES) LTD.
Regeneration Economy and Growth,Corporate Property and Land,Third Party Payments,430100,Rendered by Private Contractors,02/04/2024,4252499-SI24UK00543,"5,697.60",CIBES LIFT UK LTD.
Regeneration Economy and Growth,Culture Sport and Tourism,Premises,145023,Cleaning and Domestic Supplies,02/04/2024,4252501-CN30343750,502.98,CITRON HYGIENE UK LTD.
Resources - C A C,Resources - C A C- Level C,Third Party Payments,440070,Other third party payments E440,02/04/2024,4252503-RES-04-2024-018A,"8,437.00",CITY OF DURHAM PARISH COUNCIL.
Resources - C A C,Resources - C A C- Level C,Third Party Payments,440070,Other third party payments E440,02/04/2024,4252508-RES-04-2024-019A,"3,136.00",COCKFIELD PARISH COUNCIL.
Regeneration Economy and Growth,Corporate Property and Land,Supplies and Services,304221,Equipment and Materials,02/04/2024,4252512-8205,"2,689.14",COMPLETE DETECTION SYSTEMS LTD (CDS).
Resources - C A C,Resources - C A C- Level C,Third Party Payments,440070,Other third party payments E440,02/04/2024,4252517-RES-04-2024-020A,"24,650.00",CORNFORTH PARISH COUNCIL.
Resources - C A C,Resources - C A C- Level C,Third Party Payments,440070,Other third party payments E440,02/04/2024,4252518-RES-04-2024-021A,597.00,CORNSAY PARISH COUNCIL.
Resources - C A C,Resources - C A C- Level C,Third Party Payments,440070,Other third party payments E440,02/04/2024,4252526-RES-04-2024-024A,921.00,CROXDALE & HETT PARISH COUNCIL.
Neighbourhoods and Climate Change,Highways,Third Party Payments,430127,Rendered by Private Contractors,02/04/2024,4252529-INV-0318,"3,232.50",D & L HOPPS.
Resources BK0010,Digital Services,Stock A926,926900,Stock in hand-Inventory system,02/04/2024,4252541-7402991031,"1,843.30",DELL COMPUTER CORPORATION LTD.
Resources BK0010,Digital Services,Vehicles Equipment Furniture and Fittings,912701,Computer equipment,02/04/2024,4252541-7402991080,"109,945.00",DELL COMPUTER CORPORATION LTD.
Resources BK0010,Digital Services,Stock A926,926900,Stock in hand-Inventory system,02/04/2024,4252541-7402991130,"5,705.50",DELL COMPUTER CORPORATION LTD.
Regeneration Economy and Growth,Planning & Housing,Supplies and Services,384999,Miscellaneous Expenses,02/04/2024,4252543-066,899.99,DENTON MANAGEMENT LTD.
Regeneration Economy and Growth,Planning & Housing,Supplies and Services,384999,Miscellaneous Expenses,02/04/2024,4252543-067,900.00,DENTON MANAGEMENT LTD.
Resources BK0010,Legal & Democratic Services,Supplies and Services,338042,Services,02/04/2024,4252544-394121/INVJS99,775.00,DERE STREET BARRISTERS.
Resources BK0010,Legal & Democratic Services,Supplies and Services,338042,Services,02/04/2024,4252544-398449/INVNR343,875.00,DERE STREET BARRISTERS.
Regeneration Economy and Growth,Planning & Housing,Supplies and Services,336005,Advertising E336,02/04/2024,4252547-14218,"5,870.84",DISTRICT SURVEYORS ASSOCIATION LTD T/A LABC.
Regeneration Economy and Growth,Culture Sport and Tourism,Supplies and Services,338047,Services,02/04/2024,4252560-GALA,"9,039.00",DURHAM HIGH SCHOOL.
Resources - C A C,Resources - C A C- Level C,Third Party Payments,440070,Other third party payments E440,02/04/2024,4252564-RES-04-2024-027A,"29,514.00",EASINGTON COLLIERY PARISH COUNCIL.
Neighbourhoods and Climate Change,Environmental Services,Third Party Payments,430100,Rendered by Private Contractors,02/04/2024,4252567-INV-706,"3,500.00",ECO ENTERPRISES LTD.
Resources - C A C,Resources - C A C- Level C,Third Party Payments,440070,Other third party payments E440,02/04/2024,4252569-RES-04-2024-029A,"1,352.00",EDMONDSLEY PARISH COUNCIL.
Adult and Health Services,Commissioning inc Supporting People,Supplies and Services,338365,Services,02/04/2024,4252577-398,"12,431.34",ELBA CARE LTD.
Resources - C A C,Resources - C A C- Level C,Third Party Payments,440070,Other third party payments E440,02/04/2024,4252578-RES-04-2024-031A,639.00,ELDON PARISH COUNCIL.
Adult and Health Services,Head of Adults,Supplies and Services,338066,Services,02/04/2024,4252588-5,535.80,ERF MEDICAL LTD.
Neighbourhoods and Climate Change,Environmental Services,Supplies and Services,304221,Equipment and Materials,02/04/2024,4252589-6949560,"17,028.00",ESE WORLD LTD.
Adult and Health Services,Head of Adults,Third Party Payments,478151,Purchase of Care,02/04/2024,4252591-ECS874-24,751.72,ESSENTIAL CARE & SUPPORT LTD.
Adult and Health Services,Head of Adults,Third Party Payments,478151,Purchase of Care,02/04/2024,4252591-ECS875-24,"2,255.16",ESSENTIAL CARE & SUPPORT LTD.
Resources - C A C,Resources - C A C- Level C,Third Party Payments,440070,Other third party payments E440,02/04/2024,4252593-RES-04-2024-034A,"2,872.00",EVENWOOD & BARONY PARISH COUNCIL.
Children and Young Peoples Services,Head of Education and Skills,Supplies and Services,384199,Miscellaneous Expenses,02/04/2024,4252595-SI-3860,"1,050.00",EVOLUTION TRAINING & CONSULTANCY SERVICES LTD.
Neighbourhoods and Climate Change,Highways,Third Party Payments,430128,Rendered by Private Contractors,02/04/2024,4252597-473,"1,562.50",F WARD FARM.
Neighbourhoods and Climate Change,Highways,Third Party Payments,430128,Rendered by Private Contractors,02/04/2024,4252597-474,"1,120.00",F WARD FARM.
Neighbourhoods and Climate Change,Highways,Third Party Payments,430127,Rendered by Private Contractors,02/04/2024,4252597-475,552.00,F WARD FARM.
Resources - C A C,Resources - C A C- Level C,Third Party Payments,440070,Other third party payments E440,02/04/2024,4252601-RES-04-2024-035A,"72,005.00",FERRYHILL TOWN COUNCIL.
Resources - C A C,Resources - C A C- Level C,Third Party Payments,440070,Other third party payments E440,02/04/2024,4252603-RES-04-2024-036A,"10,242.00",FISHBURN PARISH COUNCIL.
Neighbourhoods and Climate Change,Environmental Services,Third Party Payments,430100,Rendered by Private Contractors,02/04/2024,4252608-123964,"3,522.51",FR SHARROCK LTD.
Children and Young Peoples Services,Head of Childrens Social Care,Supplies and Services,384500,Miscellaneous Expenses,02/04/2024,4252613-3526,"1,785.00",FUTURE STEPS CONSULTANCY SERVICE LTD.
Children and Young Peoples Services,Head of Childrens Social Care,Supplies and Services,384500,Miscellaneous Expenses,02/04/2024,4252613-3528,"1,800.00",FUTURE STEPS CONSULTANCY SERVICE LTD.
Dedicated Schools Grant BG0015,DSG High Needs Block,Supplies and Services,384199,Miscellaneous Expenses,02/04/2024,4252613-3530,"6,495.00",FUTURE STEPS CONSULTANCY SERVICE LTD.
Resources - C A C,Resources - C A C- Level C,Third Party Payments,440070,Other third party payments E440,02/04/2024,4252614-RES-04-2024-038A,719.00,GAINFORD & LANGTON PARISH COUNCIL.
Neighbourhoods and Climate Change,Environmental Services,Supplies and Services,338066,Services,02/04/2024,4252617-6550,600.00,GEM TRAVEL.
Regeneration Economy and Growth,Corporate Property and Land,Premises,145015,Cleaning and Domestic Supplies,02/04/2024,4252620-SI881819,"1,892.60",GLASDON UK LTD.
Resources - C A C,Resources - C A C- Level C,Third Party Payments,440070,Other third party payments E440,02/04/2024,4252622-RES-04-2024-039A,"86,088.50",GREAT AYCLIFFE TOWN COUNCIL.
Resources - C A C,Resources - C A C- Level C,Third Party Payments,440070,Other third party payments E440,02/04/2024,4252624-RES-04-2024-041A,897.00,GREATER WILLINGTON TOWN COUNCIL.
Children and Young Peoples Services,Head of Education and Skills,Third Party Payments,440999,Other third party payments E440,02/04/2024,4252629-DURMUL070324,"3,150.00",HANDCRAFTED PROJECTS.
Adult and Health Services,Public Health CC0450,Third Party Payments,460803,Contract Payments,02/04/2024,4252630-DCCDA08,"71,951.90",HARBOUR SUPPORT SERVICES.
Neighbourhoods and Climate Change,Environmental Services,Supplies and Services,384199,Miscellaneous Expenses,02/04/2024,4252631-INV31397,"3,379.63",HARDWICK HALL HOTEL.*
Neighbourhoods and Climate Change,Environmental Services,Third Party Payments,430112,Rendered by Private Contractors,02/04/2024,4252632-SIN-3400-267282,"170,771.82",HARGREAVES (UK) SERVICES LTD.
Resources - C A C,Resources - C A C- Level C,Third Party Payments,440070,Other third party payments E440,02/04/2024,4252636-RES-04-2024-044A,"9,104.00",HASWELL PARISH COUNCIL.
Regeneration Economy and Growth,Corporate Property and Land,Supplies and Services,304221,Equipment and Materials,02/04/2024,4252638-4793173,623.12,HEADLAM (FLOORCOVERING DISTRIBUTORS) LTD.
Resources - C A C,Resources - C A C- Level C,Third Party Payments,440070,Other third party payments E440,02/04/2024,4252643-RES-04-2024-048A,"48,190.50",HORDEN PARISH COUNCIL.
Children and Young Peoples Services,Head of Early Help Inclusion & Vulnerable Children.,Supplies and Services,308011,Furniture,02/04/2024,4252644-569440,"2,021.60",HOSPITAL METALCRAFT LTD.*
Resources - C A C,Resources - C A C- Level C,Third Party Payments,440070,Other third party payments E440,02/04/2024,4252646-RES-04-2024-049A,"4,023.00",HUTTON HENRY & STATION TOWN PARISH COUNCIL.
Regeneration Economy and Growth,Culture Sport and Tourism,Supplies and Services,304259,Equipment and Materials,02/04/2024,4252654-9213,"1,311.10",INGRAM AV LTD T/A INGRAMSOUNDS.
Resources BK0010,Digital Services,Supplies and Services,304303,Equipment and Materials,02/04/2024,4252655-2100848453,"3,706.53",INSIGHT DIRECT (UK) LTD.
Adult and Health Services,Commissioning inc Supporting People,Supplies and Services,342033,Computers and Communications,02/04/2024,4252655-2100850385,"8,404.80",INSIGHT DIRECT (UK) LTD.
Regeneration Economy and Growth,Corporate Property and Land,Supplies and Services,342214,Computers and Communications,02/04/2024,4252655-2100851460,708.89,INSIGHT DIRECT (UK) LTD.
Neighbourhoods and Climate Change,Highways,Stock A926,926900,Stock in hand-Inventory system,02/04/2024,4252656-929684,"3,229.20",INSTARMAC GROUP PLC.
Neighbourhoods and Climate Change,Highways,Construction work A908,908105,Construction work,02/04/2024,4252663-28982,"2,105.36",JACK COUPE & SONS LTD T/A COUPE LINE.
Neighbourhoods and Climate Change,Highways,Construction work A908,908105,Construction work,02/04/2024,4252663-28983,"2,921.41",JACK COUPE & SONS LTD T/A COUPE LINE.
Neighbourhoods and Climate Change,Highways,Construction work A908,908105,Construction work,02/04/2024,4252663-28984,"1,957.93",JACK COUPE & SONS LTD T/A COUPE LINE.
Neighbourhoods and Climate Change,Highways,Construction work A908,908105,Construction work,02/04/2024,4252663-28987,890.46,JACK COUPE & SONS LTD T/A COUPE LINE.
Neighbourhoods and Climate Change,Highways,Construction work A908,908105,Construction work,02/04/2024,4252663-28993,"2,513.59",JACK COUPE & SONS LTD T/A COUPE LINE.
Neighbourhoods and Climate Change,Highways,Construction work A908,908105,Construction work,02/04/2024,4252663-29000,"1,287.72",JACK COUPE & SONS LTD T/A COUPE LINE.
Regeneration Economy and Growth,Planning & Housing,Supplies and Services,336005,Advertising E336,02/04/2024,4252666-INV-5589,"1,500.00",JAK HQ LTD.
Regeneration Economy and Growth,Culture Sport and Tourism,Supplies and Services,304259,Equipment and Materials,02/04/2024,4252674-209168,"1,128.50",JP LENNARD LTD.
Regeneration Economy and Growth,Corporate Property and Land,Supplies and Services,304221,Equipment and Materials,02/04/2024,4252676-0108/00038247,855.18,JT DOVE LTD.
Neighbourhoods and Climate Change,Highways,Stock A926,926900,Stock in hand-Inventory system,02/04/2024,4252676-0113/00057777,"1,233.60",JT DOVE LTD.
Regeneration Economy and Growth,Corporate Property and Land,Supplies and Services,304221,Equipment and Materials,02/04/2024,4252676-0123/01181141,552.04,JT DOVE LTD.
Regeneration Economy and Growth,Corporate Property and Land,Supplies and Services,304221,Equipment and Materials,02/04/2024,4252676-0213/01182438,"2,101.84",JT DOVE LTD.
Regeneration Economy and Growth,Corporate Property and Land,Supplies and Services,304221,Equipment and Materials,02/04/2024,4252676-0213/01183587,756.59,JT DOVE LTD.
Regeneration Economy and Growth,Corporate Property and Land,Supplies and Services,304221,Equipment and Materials,02/04/2024,4252676-0213/01183591,756.59,JT DOVE LTD.
Neighbourhoods and Climate Change,Highways,Supplies and Services,304221,Equipment and Materials,02/04/2024,4252676-0303/01183592,986.88,JT DOVE LTD.
Neighbourhoods and Climate Change,Highways,Supplies and Services,304221,Equipment and Materials,02/04/2024,4252676-0303/01186824,"1,551.00",JT DOVE LTD.
Resources - C A C,Resources - C A C- Level C,Third Party Payments,440070,Other third party payments E440,02/04/2024,4252680-RES-04-2024-052A,"1,864.00",KELLOE PARISH COUNCIL.
Children and Young Peoples Services,Childrens Services Operational Support,Supplies and Services,338089,Services,02/04/2024,4252683-1029/KKLL/2024/DURHAML7,"1,150.00",KINGSLEY KNIGHT LAW LTD.
Neighbourhoods and Climate Change,Highways,Supplies and Services,304221,Equipment and Materials,02/04/2024,4252695-CINV093275,"5,384.20",LIMELIGHT SIGNS LTD.
Regeneration Economy and Growth,Culture Sport and Tourism,Supplies and Services,384199,Miscellaneous Expenses,02/04/2024,4252700-KILLHOPE005,"1,000.00",LONELY TOWER FILM & MEDIA.
Neighbourhoods and Climate Change,Highways,Supplies and Services,304405,Equipment and Materials,02/04/2024,4252705-6901819709,"2,807.58",LYRECO UK LTD.
Resources BK0010,Digital Services,Supplies and Services,342033,Computers and Communications,02/04/2024,4252707-12662525,"2,046.00",MAINTEL EUROPE LTD.
Resources BK0010,Digital Services,Supplies and Services,344033,Telephones,02/04/2024,4252707-267543,"8,605.14",MAINTEL EUROPE LTD.
Resources BK0010,Digital Services,Supplies and Services,344111,Telephones,02/04/2024,4252707-267544,"4,059.43",MAINTEL EUROPE LTD.
Resources - C A C,Resources - C A C- Level C,Third Party Payments,440070,Other third party payments E440,02/04/2024,4252724-RES-04-2024-063A,"17,812.50",MONK HESLEDEN PARISH COUNCIL.
Regeneration Economy and Growth,Transport and Contract Services,Construction work A908,908105,Construction work,02/04/2024,4252727-100582890,"5,475.00",MOTT MACDONALD LTD.
Regeneration Economy and Growth,Transport and Contract Services,Construction work A908,908105,Construction work,02/04/2024,4252727-100582892,"5,475.00",MOTT MACDONALD LTD.
Regeneration Economy and Growth,Transport and Contract Services,Construction work A908,908105,Construction work,02/04/2024,4252727-100582968,"184,107.23",MOTT MACDONALD LTD.
Resources - C A C,Resources - C A C- Level C,Third Party Payments,440070,Other third party payments E440,02/04/2024,4252735-RES-04-2024-066A,"19,854.50",MURTON PARISH COUNCIL.
Adult and Health Services,Commissioning inc Supporting People,Supplies and Services,338365,Services,02/04/2024,4252737-INV-0881,"5,460.00",MY DEMENTIA IMPROVEMENT NETWORK LTD.
Children and Young Peoples Services,Head of Education and Skills,Supplies and Services,338035,Services,02/04/2024,4252742-SI00143795,"1,790.50",NCFE.
Children and Young Peoples Services,Head of Education and Skills,Third Party Payments,440999,Other third party payments E440,02/04/2024,4252745-SLINV/00005654,"19,980.00",NEW COLLEGE DURHAM.
Neighbourhoods and Climate Change,Environmental Services,Supplies and Services,384899,Miscellaneous Expenses,02/04/2024,4252747-1800012297013,"2,050.00",NEWCASTLE UPON TYNE CITY COUNCIL.
Neighbourhoods and Climate Change,Highways,Supplies and Services,336005,Advertising E336,02/04/2024,4252748-44693480,745.28,NEWSQUEST (YORKSHIRE & NORTH EAST) LTD.
Neighbourhoods and Climate Change,Highways,Supplies and Services,336005,Advertising E336,02/04/2024,4252748-44693658,603.76,NEWSQUEST (YORKSHIRE & NORTH EAST) LTD.
Regeneration Economy and Growth,Transport and Contract Services,Other expenses A914,914002,Capital - Advertisments,02/04/2024,4252748-44701283,886.80,NEWSQUEST (YORKSHIRE & NORTH EAST) LTD.
Regeneration Economy and Growth,Transport and Contract Services,Other expenses A914,914002,Capital - Advertisments,02/04/2024,4252748-44701447,508.32,NEWSQUEST (YORKSHIRE & NORTH EAST) LTD.
Regeneration Economy and Growth,Planning & Housing,Supplies and Services,336005,Advertising E336,02/04/2024,4252748-44701818,745.28,NEWSQUEST (YORKSHIRE & NORTH EAST) LTD.
Adult and Health Services,Public Health CC0450,Third Party Payments,460803,Contract Payments,02/04/2024,4252750-7310035089,"16,069.40",NHS NORTH OF ENGLAND CSU.
Adult and Health Services,Public Health CC0450,Third Party Payments,460803,Contract Payments,02/04/2024,4252750-7310035090,"6,500.20",NHS NORTH OF ENGLAND CSU.
Adult and Health Services,Public Health CC0450,Third Party Payments,460803,Contract Payments,02/04/2024,4252750-7310035117,"1,138.33",NHS NORTH OF ENGLAND CSU.
Neighbourhoods and Climate Change,Highways,Third Party Payments,430100,Rendered by Private Contractors,02/04/2024,4252753-87819,"3,400.00",NORTH EAST GRANITE COMPANY LTD.
Neighbourhoods and Climate Change,Highways,Third Party Payments,430100,Rendered by Private Contractors,02/04/2024,4252753-87820,"4,250.00",NORTH EAST GRANITE COMPANY LTD.
Regeneration Economy and Growth,Culture Sport and Tourism,Vehicles Equipment Furniture and Fittings,912541,Purchase-vehicles,02/04/2024,4252755-0242,"16,532.00",NORTH EXHIBITION SERVICES LTD.
Regeneration Economy and Growth,Corporate Property and Land,Third Party Payments,430100,Rendered by Private Contractors,02/04/2024,4252757-NW-56166,"3,650.00",NORTHERN DRIVES & CONTROLS LTD.
Neighbourhoods and Climate Change,Highways,Third Party Payments,430100,Rendered by Private Contractors,02/04/2024,4252758-DI20423150,"1,201.45",NORTHERN POWERGRID (NORTHEAST) LTD.
Regeneration Economy and Growth,Corporate Property and Land,Supplies and Services,304221,Equipment and Materials,02/04/2024,4252760-1160385,"1,619.97",NORTHERN TOOLS & ACCESSORIES.
Non-Service Specific,Non Service Specific-Financing,Long Term Debtors,924001,Travel Loans,02/04/2024,4252761-94007868,"2,410.75",NORTHERN TRAINS LTD.
Children and Young Peoples Services,Head of Early Help Inclusion & Vulnerable Children.,Third Party Payments,410037,Rendered by Other Local Authorities,02/04/2024,4252764-11231,"1,444.23",NUDGE EDUCATION LTD.
Children and Young Peoples Services,Head of Early Help Inclusion & Vulnerable Children.,Third Party Payments,410037,Rendered by Other Local Authorities,02/04/2024,4252764-INV-10526,"1,123.29",NUDGE EDUCATION LTD.
Neighbourhoods and Climate Change,Highways,Third Party Payments,430100,Rendered by Private Contractors,02/04/2024,4252766-27634,"1,540.00",OLIVERS TREE SERVICES LTD.
Regeneration Economy and Growth,Corporate Property and Land,Third Party Payments,430100,Rendered by Private Contractors,02/04/2024,4252767-003748-IN00048,"34,133.78",OMEGA LIFT SERVICES LTD.
Regeneration Economy and Growth,Corporate Property and Land,Supplies and Services,304221,Equipment and Materials,02/04/2024,4252769-12263-05,"4,680.00",OPUS BUILDING SERVICES LTD.
Regeneration Economy and Growth,Corporate Property and Land,Third Party Payments,430100,Rendered by Private Contractors,02/04/2024,4252769-12263-06,739.45,OPUS BUILDING SERVICES LTD.
Regeneration Economy and Growth,Corporate Property and Land,Third Party Payments,430100,Rendered by Private Contractors,02/04/2024,4252769-12263-07,"14,770.60",OPUS BUILDING SERVICES LTD.
Regeneration Economy and Growth,Corporate Property and Land,Third Party Payments,430100,Rendered by Private Contractors,02/04/2024,4252769-12669-11/070324,"1,139.62",OPUS BUILDING SERVICES LTD.
Regeneration Economy and Growth,Corporate Property and Land,Third Party Payments,430100,Rendered by Private Contractors,02/04/2024,4252769-12669-12,"1,107.22",OPUS BUILDING SERVICES LTD.
Regeneration Economy and Growth,Corporate Property and Land,Third Party Payments,430100,Rendered by Private Contractors,02/04/2024,4252769-12669-16,"1,108.72",OPUS BUILDING SERVICES LTD.
Regeneration Economy and Growth,Corporate Property and Land,Third Party Payments,430100,Rendered by Private Contractors,02/04/2024,4252769-12669-17,"1,037.47",OPUS BUILDING SERVICES LTD.
Regeneration Economy and Growth,Corporate Property and Land,Third Party Payments,430100,Rendered by Private Contractors,02/04/2024,4252769-12669-18,"1,157.62",OPUS BUILDING SERVICES LTD.
Regeneration Economy and Growth,Corporate Property and Land,Third Party Payments,430100,Rendered by Private Contractors,02/04/2024,4252769-12669-20,"1,108.72",OPUS BUILDING SERVICES LTD.
Regeneration Economy and Growth,Corporate Property and Land,Third Party Payments,430100,Rendered by Private Contractors,02/04/2024,4252769-12669-21,"1,157.62",OPUS BUILDING SERVICES LTD.
Regeneration Economy and Growth,Corporate Property and Land,Third Party Payments,430100,Rendered by Private Contractors,02/04/2024,4252769-12669-22,"1,090.12",OPUS BUILDING SERVICES LTD.
Regeneration Economy and Growth,Corporate Property and Land,Third Party Payments,430100,Rendered by Private Contractors,02/04/2024,4252769-12669-23,"1,157.62",OPUS BUILDING SERVICES LTD.
Regeneration Economy and Growth,Corporate Property and Land,Third Party Payments,430100,Rendered by Private Contractors,02/04/2024,4252769-12669-24,"1,108.72",OPUS BUILDING SERVICES LTD.
Regeneration Economy and Growth,Corporate Property and Land,Third Party Payments,430100,Rendered by Private Contractors,02/04/2024,4252769-12669-25,"1,149.52",OPUS BUILDING SERVICES LTD.
Regeneration Economy and Growth,Corporate Property and Land,Supplies and Services,304221,Equipment and Materials,02/04/2024,4252769-12669-26,976.57,OPUS BUILDING SERVICES LTD.
Regeneration Economy and Growth,Corporate Property and Land,Third Party Payments,430100,Rendered by Private Contractors,02/04/2024,4252769-12669-27,"1,108.72",OPUS BUILDING SERVICES LTD.
Regeneration Economy and Growth,Corporate Property and Land,Third Party Payments,430100,Rendered by Private Contractors,02/04/2024,4252769-12669-28,"1,157.62",OPUS BUILDING SERVICES LTD.
Regeneration Economy and Growth,Corporate Property and Land,Supplies and Services,304221,Equipment and Materials,02/04/2024,4252769-12669-29,"1,144.12",OPUS BUILDING SERVICES LTD.
Regeneration Economy and Growth,Corporate Property and Land,Third Party Payments,430100,Rendered by Private Contractors,02/04/2024,4252769-12669-30,"1,108.72",OPUS BUILDING SERVICES LTD.
Regeneration Economy and Growth,Corporate Property and Land,Third Party Payments,430100,Rendered by Private Contractors,02/04/2024,4252769-12669-31,"1,157.62",OPUS BUILDING SERVICES LTD.
Regeneration Economy and Growth,Corporate Property and Land,Third Party Payments,430100,Rendered by Private Contractors,02/04/2024,4252769-12669/13,"1,139.62",OPUS BUILDING SERVICES LTD.
Regeneration Economy and Growth,Corporate Property and Land,Third Party Payments,430100,Rendered by Private Contractors,02/04/2024,4252769-12669/14,"1,139.62",OPUS BUILDING SERVICES LTD.
Regeneration Economy and Growth,Corporate Property and Land,Third Party Payments,430100,Rendered by Private Contractors,02/04/2024,4252769-12669/15,"1,107.22",OPUS BUILDING SERVICES LTD.
Regeneration Economy and Growth,Corporate Property and Land,Third Party Payments,430100,Rendered by Private Contractors,02/04/2024,4252775-3855,"4,777.50",PARAMOUNT CEILINGS & PARTITIONS LTD.
Neighbourhoods and Climate Change,Highways,Stock A926,926900,Stock in hand-Inventory system,02/04/2024,4252777-XL314593,"1,392.50",PARK ELECTRICAL DISTRIBUTORS LTD.
Regeneration Economy and Growth,Corporate Property and Land,Supplies and Services,304221,Equipment and Materials,02/04/2024,4252777-XL314594,"1,992.00",PARK ELECTRICAL DISTRIBUTORS LTD.
Neighbourhoods and Climate Change,Highways,Stock A926,926900,Stock in hand-Inventory system,02/04/2024,4252777-XL314661,"6,574.00",PARK ELECTRICAL DISTRIBUTORS LTD.
Neighbourhoods and Climate Change,Highways,Stock A926,926900,Stock in hand-Inventory system,02/04/2024,4252777-XL314662,"16,920.00",PARK ELECTRICAL DISTRIBUTORS LTD.
Neighbourhoods and Climate Change,Highways,Stock A926,926900,Stock in hand-Inventory system,02/04/2024,4252777-XL314691,"5,206.00",PARK ELECTRICAL DISTRIBUTORS LTD.
Children and Young Peoples Services,Head of Education and Skills,Third Party Payments,410037,Rendered by Other Local Authorities,02/04/2024,4252782-6646,"4,615.40",PEBBLES CARE LTD.
Resources - C A C,Resources - C A C- Level C,Third Party Payments,440070,Other third party payments E440,02/04/2024,4252787-RES-04-2024-071A,"120,190.00",PETERLEE TOWN COUNCIL.
Neighbourhoods and Climate Change,Environmental Services,Transport,210057,Repair and Maintenance of Vehicles,02/04/2024,4252790-29778,"4,021.00",PNEUMATIC POWER SOURCE LTD T/A A S PNEUMATICS.
Adult and Health Services,Head of Adults,Third Party Payments,478151,Purchase of Care,02/04/2024,4252791-26001918,685.44,POTENSIAL LTD T/A POTENS.
Neighbourhoods and Climate Change,Environmental Services,Supplies and Services,304252,Equipment and Materials,02/04/2024,4252796-12187,551.39,PROBE INDUSTRIES LTD.
Resources BK0010,Digital Services,Stock A926,926900,Stock in hand-Inventory system,02/04/2024,4252797-OP/I751243,968.00,PROBRAND LTD.
Resources BK0010,Digital Services,Supplies and Services,342033,Computers and Communications,02/04/2024,4252797-OP/I751325,782.40,PROBRAND LTD.
Children and Young Peoples Services,Head of Early Help Inclusion & Vulnerable Children.,Third Party Payments,410037,Rendered by Other Local Authorities,02/04/2024,4252798-0000466038,900.00,PROSPERO GROUP LTD.
Children and Young Peoples Services,Head of Education and Skills,Third Party Payments,410037,Rendered by Other Local Authorities,02/04/2024,4252799-51847583,907.32,PROTOCOL EDUCATION LTD.*
Children and Young Peoples Services,Head of Childrens Social Care,Supplies and Services,338044,Services,02/04/2024,4252801-24040/1,"1,833.20",PSYCHREP UK LTD.
Children and Young Peoples Services,Head of Early Help Inclusion & Vulnerable Children.,Supplies and Services,384302,Miscellaneous Expenses,02/04/2024,4252803-115,"1,753.75",PURPLE ORCHID PRINTING.
Neighbourhoods and Climate Change,Highways,Supplies and Services,304221,Equipment and Materials,02/04/2024,4252806-12115,"1,176.00",RA CONSULTING T/A RICHTER ASSOCIATES LTD.
Regeneration Economy and Growth,Planning & Housing,Supplies and Services,384999,Miscellaneous Expenses,02/04/2024,4252810-TR100701,"1,164.00",READY TO RENT MANAGEMENT LLP.
Regeneration Economy and Growth,Planning & Housing,Supplies and Services,384999,Miscellaneous Expenses,02/04/2024,4252810-TR100703,550.00,READY TO RENT MANAGEMENT LLP.
Regeneration Economy and Growth,Corporate Property and Land,Supplies and Services,304221,Equipment and Materials,02/04/2024,4252814-0000074218,"3,068.10",RINNAI UK LTD.
Regeneration Economy and Growth,Corporate Property and Land,Supplies and Services,304221,Equipment and Materials,02/04/2024,4252814-0000074261,"1,888.70",RINNAI UK LTD.
Regeneration Economy and Growth,Culture Sport and Tourism,Supplies and Services,384302,Miscellaneous Expenses,02/04/2024,4252826-25721,"2,897.00",RUFUS CREATIVE DESIGN.
Resources - C A C,Resources - C A C- Level C,Third Party Payments,440070,Other third party payments E440,02/04/2024,4252828-RES-04-2024-075A,"5,515.00",SACRISTON PARISH COUNCIL.
Resources - C A C,Resources - C A C- Level C,Third Party Payments,440070,Other third party payments E440,02/04/2024,4252838-RES-04-2024-077A,"78,612.00",SEAHAM TOWN COUNCIL.
Resources BK0010,Legal & Democratic Services,Supplies and Services,304259,Equipment and Materials,02/04/2024,4252846-0000293218,"9,240.00",SHAW & SONS LTD.
Resources - C A C,Resources - C A C- Level C,Third Party Payments,440070,Other third party payments E440,02/04/2024,4252848-RES-04-2024-081A,"1,340.00",SHERBURN VILLAGE PARISH COUNCIL.
Resources - C A C,Resources - C A C- Level C,Third Party Payments,440070,Other third party payments E440,02/04/2024,4252849-RES-04-2024-082A,"26,286.00",SHILDON TOWN COUNCIL.
Neighbourhoods and Climate Change,Highways,Supplies and Services,304221,Equipment and Materials,02/04/2024,4252857-092878,"2,552.98",SIMMONSIGNS LTD.
Children and Young Peoples Services,Head of Education and Skills,Supplies and Services,384199,Miscellaneous Expenses,02/04/2024,4252858-4100883052,"16,000.00",SMARTT NORTH EAST LTD.
Children and Young Peoples Services,Head of Childrens Social Care - Excluded Services,Supplies and Services,352001,Conference Expenses,02/04/2024,4252859-PSI001224,"4,000.00",SOCIAL CARE INSTITUTE FOR EXCELLENCE (SCIE).
Children and Young Peoples Services,Head of Childrens Social Care - Excluded Services,Supplies and Services,352001,Conference Expenses,02/04/2024,4252859-PSI001361,"4,000.00",SOCIAL CARE INSTITUTE FOR EXCELLENCE (SCIE).
Resources BK0010,Digital Services,Supplies and Services,342051,Computers and Communications,02/04/2024,4252860-INVUK1228197,"10,491.30",SOFTCAT PLC.
Resources - C A C,Resources - C A C- Level C,Third Party Payments,440070,Other third party payments E440,02/04/2024,4252862-RES-04-2024-086A,"14,216.00",SOUTH HETTON PARISH COUNCIL.
Regeneration Economy and Growth,Corporate Property and Land,Third Party Payments,430100,Rendered by Private Contractors,02/04/2024,4252867-9087,"3,984.00",ST ASTIER LTD.
Resources - C A C,Resources - C A C- Level C,Third Party Payments,440070,Other third party payments E440,02/04/2024,4252872-RES-04-2024-091A,"45,297.00",STANLEY TOWN COUNCIL.*
Regeneration Economy and Growth,Corporate Property and Land,Third Party Payments,430100,Rendered by Private Contractors,02/04/2024,4252877-20800,"2,402.50",STEADFAST SECURITY SOLUTIONS LTD.
Regeneration Economy and Growth,Corporate Property and Land,Third Party Payments,430100,Rendered by Private Contractors,02/04/2024,4252877-20881,"2,247.50",STEADFAST SECURITY SOLUTIONS LTD.
Neighbourhoods and Climate Change,Highways,Supplies and Services,304221,Equipment and Materials,02/04/2024,4252879-47421,"3,440.40",STONEGRAVE AGGREGATES LTD.
Neighbourhoods and Climate Change,Highways,Supplies and Services,304221,Equipment and Materials,02/04/2024,4252879-47458,"5,343.60",STONEGRAVE AGGREGATES LTD.
Neighbourhoods and Climate Change,Highways,Supplies and Services,304221,Equipment and Materials,02/04/2024,4252879-47459,"2,167.00",STONEGRAVE AGGREGATES LTD.
Neighbourhoods and Climate Change,Highways,Supplies and Services,304221,Equipment and Materials,02/04/2024,4252882-900254701,"3,435.59",SWARCO UK & IRELAND LTD.
Regeneration Economy and Growth,Culture Sport and Tourism,Supplies and Services,304337,Equipment and Materials,02/04/2024,4252883-SWINV102475,667.51,SWIM ENGLAND TRADING LTD.*
Resources BK0010,Digital Services,Supplies and Services,342033,Computers and Communications,02/04/2024,4252884-148822,"4,836.65",SWITCHSHOP LTD.
Regeneration Economy and Growth,Corporate Property and Land,Supplies and Services,304221,Equipment and Materials,02/04/2024,4252885-1160395,774.74,T CROSSLING & CO LTD.
Adult and Health Services,Commissioning inc Supporting People,Third Party Payments,470103,Purchase of Care,02/04/2024,4252887-HOLVOIDS070124,"4,627.56",TAMARIS HEALTHCARE (ENGLAND) LTD.
Children and Young Peoples Services,Head of Early Help Inclusion & Vulnerable Children.,Employees,080025,Agency Staff,02/04/2024,4252890-0000568802,"1,499.85",TEACHERACTIVE LTD.
Regeneration Economy and Growth,Culture Sport and Tourism,Supplies and Services,338047,Services,02/04/2024,4252894-6777,"2,750.00",TEESDALE COMMUNITY RESOURCES (TCR) LTD.
Neighbourhoods and Climate Change,Environmental Services,Supplies and Services,304221,Equipment and Materials,02/04/2024,4252896-42773,"4,011.00",TELESHORE UK LTD.
Children and Young Peoples Services,Central Charges (CYPS),Supplies and Services,304040,Equipment and Materials,02/04/2024,4252898-SI-36914,"3,801.00",THE ASSOCIATION OF DIRECTORS OF CHILDREN`S SERVICES LTD (ADCS).
Regeneration Economy and Growth,Business Durham,Supplies and Services,344033,Telephones,02/04/2024,4252901-005546758,973.57,THE PHONE CO-OP.
Regeneration Economy and Growth,Business Durham,Supplies and Services,338066,Services,02/04/2024,4252905-TICEUK2024-02,"4,500.00",THIS IS CREATIVE ENTERPRISE CIC.
Neighbourhoods and Climate Change,Highways,Stock A926,926900,Stock in hand-Inventory system,02/04/2024,4252906-NSIN00110129,614.80,THOMAS OWEN & SONS (NEWCASTLE) LTD.
Resources - C A C,Resources - C A C- Level C,Third Party Payments,440070,Other third party payments E440,02/04/2024,4252907-RES-04-2024-093A,"2,852.00",THORNLEY PARISH COUNCIL.
Children and Young Peoples Services,Head of Childrens Social Care,Supplies and Services,384500,Miscellaneous Expenses,02/04/2024,4252908-038,550.00,TLS TRAUMA THERAPY.
Neighbourhoods and Climate Change,Highways,Stock A926,926900,Stock in hand-Inventory system,02/04/2024,4252912-122343,"3,748.00",TOFCO LTD.
Regeneration Economy and Growth,Corporate Property and Land,Supplies and Services,304221,Equipment and Materials,02/04/2024,4252917-11301941,586.81,TRADECHOICE DISTRIBUTION LTD.
Resources - C A C,Resources - C A C- Level C,Third Party Payments,440070,Other third party payments E440,02/04/2024,4252919-RES-04-2024-095A,"9,958.00",TRIMDON FOUNDRY PARISH COUNCIL.
Resources - C A C,Resources - C A C- Level C,Third Party Payments,440070,Other third party payments E440,02/04/2024,4252920-RES-04-2024-096A,"13,445.50",TRIMDON PARISH COUNCIL.
Resources BK0010,Legal & Democratic Services,Supplies and Services,338042,Services,02/04/2024,4252921-303886/INVEM96,720.00,TRINITY CHAMBERS.
Resources BK0010,Legal & Democratic Services,Supplies and Services,338042,Services,02/04/2024,4252921-306177/INVKW780,"4,840.00",TRINITY CHAMBERS.
Resources BK0010,Legal & Democratic Services,Supplies and Services,338042,Services,02/04/2024,4252921-308226/INVGR738,"2,855.00",TRINITY CHAMBERS.
Resources BK0010,Legal & Democratic Services,Supplies and Services,338042,Services,02/04/2024,4252921-308229/INVGR737,"8,980.00",TRINITY CHAMBERS.
Resources BK0010,Legal & Democratic Services,Supplies and Services,338042,Services,02/04/2024,4252921-31219/INVLM226,840.00,TRINITY CHAMBERS.
Neighbourhoods and Climate Change,Environmental Services,Supplies and Services,304221,Equipment and Materials,02/04/2024,4252924-IN0304534,984.39,TUDOR (UK) LTD T/A TUDOR ENVIRONMENTAL.
Neighbourhoods and Climate Change,Highways,Supplies and Services,304221,Equipment and Materials,02/04/2024,4252926-257391,"1,597.92",TYNEDALE ROADSTONE LTD.
Neighbourhoods and Climate Change,Highways,Supplies and Services,304221,Equipment and Materials,02/04/2024,4252926-257398,"1,600.92",TYNEDALE ROADSTONE LTD.
Neighbourhoods and Climate Change,Highways,Supplies and Services,304221,Equipment and Materials,02/04/2024,4252926-257399,780.85,TYNEDALE ROADSTONE LTD.
Neighbourhoods and Climate Change,Highways,Supplies and Services,304221,Equipment and Materials,02/04/2024,4252926-257400,"1,246.44",TYNEDALE ROADSTONE LTD.
Neighbourhoods and Climate Change,Highways,Supplies and Services,304221,Equipment and Materials,02/04/2024,4252926-257401,"1,414.98",TYNEDALE ROADSTONE LTD.
Neighbourhoods and Climate Change,Highways,Supplies and Services,304221,Equipment and Materials,02/04/2024,4252926-257402,983.35,TYNEDALE ROADSTONE LTD.
Neighbourhoods and Climate Change,Highways,Supplies and Services,304221,Equipment and Materials,02/04/2024,4252926-257403,817.49,TYNEDALE ROADSTONE LTD.
Neighbourhoods and Climate Change,Highways,Supplies and Services,304221,Equipment and Materials,02/04/2024,4252926-257404,981.80,TYNEDALE ROADSTONE LTD.
Neighbourhoods and Climate Change,Highways,Supplies and Services,304221,Equipment and Materials,02/04/2024,4252926-257584,988.00,TYNEDALE ROADSTONE LTD.
Neighbourhoods and Climate Change,Highways,Supplies and Services,304221,Equipment and Materials,02/04/2024,4252926-257585,723.63,TYNEDALE ROADSTONE LTD.
Neighbourhoods and Climate Change,Highways,Supplies and Services,304221,Equipment and Materials,02/04/2024,4252926-257586,"1,287.15",TYNEDALE ROADSTONE LTD.
Neighbourhoods and Climate Change,Highways,Supplies and Services,304221,Equipment and Materials,02/04/2024,4252926-257587,510.38,TYNEDALE ROADSTONE LTD.
Neighbourhoods and Climate Change,Highways,Supplies and Services,304221,Equipment and Materials,02/04/2024,4252926-257588,"1,587.65",TYNEDALE ROADSTONE LTD.
Neighbourhoods and Climate Change,Highways,Supplies and Services,304221,Equipment and Materials,02/04/2024,4252926-257589,"1,252.40",TYNEDALE ROADSTONE LTD.
Neighbourhoods and Climate Change,Highways,Supplies and Services,304221,Equipment and Materials,02/04/2024,4252926-257591,"1,508.83",TYNEDALE ROADSTONE LTD.
Neighbourhoods and Climate Change,Highways,Supplies and Services,304221,Equipment and Materials,02/04/2024,4252926-257592,"1,377.05",TYNEDALE ROADSTONE LTD.
Neighbourhoods and Climate Change,Highways,Supplies and Services,304221,Equipment and Materials,02/04/2024,4252926-257593,732.39,TYNEDALE ROADSTONE LTD.
Neighbourhoods and Climate Change,Highways,Supplies and Services,304221,Equipment and Materials,02/04/2024,4252926-257597,"1,393.62",TYNEDALE ROADSTONE LTD.
Neighbourhoods and Climate Change,Highways,Supplies and Services,304221,Equipment and Materials,02/04/2024,4252926-257598,"1,396.29",TYNEDALE ROADSTONE LTD.
Regeneration Economy and Growth,Corporate Property and Land,Supplies and Services,304221,Equipment and Materials,02/04/2024,4252928-04042284,"2,098.20",UK ELECTRIC LTD.*
Children and Young Peoples Services,Head of Early Help Inclusion & Vulnerable Children.,Supplies and Services,344033,Telephones,02/04/2024,4252931-210243,572.70,UNIFY BUSINESS SOLUTIONS LTD.
Neighbourhoods and Climate Change,Highways,Third Party Payments,430100,Rendered by Private Contractors,02/04/2024,4252933-INV10599,"6,790.00",VELOCITY (UK) LTD.
Neighbourhoods and Climate Change,Highways,Third Party Payments,430100,Rendered by Private Contractors,02/04/2024,4252933-INV10600,"9,700.00",VELOCITY (UK) LTD.
Neighbourhoods and Climate Change,Highways,Fees,901002,Consultants fees 901002,02/04/2024,4252935-1242,"2,600.00",VIRIDIAN LOGIC LTD.
Regeneration Economy and Growth,Culture Sport and Tourism,Supplies and Services,384199,Miscellaneous Expenses,02/04/2024,4252937-INV-64761,837.93,VISTECH SERVICES LTD.
Neighbourhoods and Climate Change,Environmental Services,Supplies and Services,338078,Services,02/04/2024,4252937-INV-64763,"2,533.00",VISTECH SERVICES LTD.
Neighbourhoods and Climate Change,Environmental Services,Supplies and Services,338078,Services,02/04/2024,4252937-INV-64764,"1,758.20",VISTECH SERVICES LTD.
Neighbourhoods and Climate Change,Environmental Services,Supplies and Services,338078,Services,02/04/2024,4252937-INV-64766,"1,028.10",VISTECH SERVICES LTD.
Children and Young Peoples Services,Head of Early Help Inclusion & Vulnerable Children.,Supplies and Services,338078,Services,02/04/2024,4252937-INV-64768,"5,050.08",VISTECH SERVICES LTD.
Neighbourhoods and Climate Change,Environmental Services,Supplies and Services,338078,Services,02/04/2024,4252937-INV-64774,"2,503.20",VISTECH SERVICES LTD.
Resources BK0010,Legal & Democratic Services,Supplies and Services,338099,Services,02/04/2024,4252938-SLIVRL0137338,"1,170.00",VIVID RESOURCING.
Resources BK0010,Digital Services,Supplies and Services,344015,Telephones,02/04/2024,4252939-SL67944,"2,072.00",VODAFONE CORPORATE LTD.
Resources BK0010,Digital Services,Supplies and Services,344015,Telephones,02/04/2024,4252939-SL67945,777.00,VODAFONE CORPORATE LTD.
Neighbourhoods and Climate Change,Highways,Third Party Payments,430127,Rendered by Private Contractors,02/04/2024,4252941-52989,"2,180.00",W MARLEY AGRICULTURAL CONTRACTORS LTD.
Resources - C A C,Resources - C A C- Level C,Third Party Payments,440070,Other third party payments E440,02/04/2024,4252942-RES-04-2024-098A,645.00,WALDRIDGE PARISH COUNCIL.
Children and Young Peoples Services,Head of Education and Skills,Transport,230005,Contract Hire,02/04/2024,4252944-19711,"2,776.00",WEARDALE MOTOR SERVICES LTD.
Resources - C A C,Resources - C A C- Level C,Third Party Payments,440070,Other third party payments E440,02/04/2024,4252946-RES-04-2024-099A,"3,191.00",WEST AUCKLAND PARISH COUNCIL.
Adult and Health Services,Head of Adults,Supplies and Services,338099,Services,02/04/2024,4252947-JACQUELINENEWBY,630.00,WEST HALL BOARDING KENNELS.
Resources - C A C,Resources - C A C- Level C,Third Party Payments,440070,Other third party payments E440,02/04/2024,4252949-RES-04-2024-101A,"6,783.00",WHEATLEY HILL PARISH COUNCIL.
Resources BK0010,Legal & Democratic Services,Supplies and Services,338025,Services,02/04/2024,4252950-MISC409/2023-24,"1,200.00",WHITEHOUSE FUNERAL SERVICES.
Neighbourhoods and Climate Change,Highways,Stock A926,926900,Stock in hand-Inventory system,02/04/2024,4252952-760127,"1,178.00",WILLIAM SMITH GROUP 1832.
Regeneration Economy and Growth,Corporate Property and Land,Supplies and Services,304221,Equipment and Materials,02/04/2024,4252960-95045522,"4,973.04",WOLSELEY UK LTD.
Neighbourhoods and Climate Change,Environmental Services,Supplies and Services,304221,Equipment and Materials,02/04/2024,4252963-0000056936,601.49,WYBONE LTD.
Neighbourhoods and Climate Change,Environmental Services,Supplies and Services,304221,Equipment and Materials,02/04/2024,4252963-0000057983,"3,563.78",WYBONE LTD.
Neighbourhoods and Climate Change,Environmental Services,Transport,215005,Running Costs of Vehicles,02/04/2024,4252966-1143195,"17,449.16",YOUR NRG LTD.
Resources BK0010,Legal & Democratic Services,Supplies and Services,338025,Services,02/04/2024,4252507-S44997-01382,570.00,FUNERAL SERVICES LTD T/A CO-OPERATIVE FUNERAL CARE.
Neighbourhoods and Climate Change,Environmental Services,Supplies and Services,304221,Equipment and Materials,02/04/2024,4252562-10799,"1,497.50",E MALEHAM (LANDSCAPING) LTD T/A RICHMOND & BAILEY NURSERIES.
Resources - C A C,Resources - C A C- Level C,Third Party Payments,440070,Other third party payments E440,02/04/2024,4252682-RES-04-2024-053A,560.00,KIMBLESWORTH & PLAWSWORTH PARISH COUNCIL.
Resources - C A C,Resources - C A C- Level C,Third Party Payments,440070,Other third party payments E440,02/04/2024,4252948-RES-04-2024-100A,"1,302.00",WEST RAINTON & LEAMSIDE PARISH COUNCIL.
Regeneration Economy and Growth,Business Durham,Supplies and Services,372009,Subscriptions E372,02/04/2024,4252466-SIN7165,"1,655.00",BIONOW LTD.
Children and Young Peoples Services,Childrens Services Operational Support,Supplies and Services,372009,Subscriptions E372,02/04/2024,4252741-SFINV05674,"15,000.00",NCB RIP LTD.
Adult and Health Services,Public Health CC0450,Third Party Payments,460803,Contract Payments,03/04/2024,4253678-QU-0008,500.00,REDACTED - PAYMENT TO INDIVIDUAL
Resources BK0010,Legal & Democratic Services,Supplies and Services,338066,Services,03/04/2024,4253697-36A0672,"1,280.00",REDACTED - PAYMENT TO INDIVIDUAL
Children and Young Peoples Services,Head of Early Help Inclusion & Vulnerable Children.,Supplies and Services,338094,Services,03/04/2024,4253746-20034,500.00,REDACTED - PAYMENT TO INDIVIDUAL
Adult and Health Services,Public Health CC0450,Third Party Payments,460803,Contract Payments,03/04/2024,4253810-DLD101,660.00,REDACTED - PAYMENT TO INDIVIDUAL
Children and Young Peoples Services,Head of Education and Skills,Transport,230008,Contract Hire,03/04/2024,4254012-E055/FEB24,"1,552.00",REDACTED - PAYMENT TO INDIVIDUAL
Dedicated Schools Grant BG0015,DSG Early Years Block,Transfer Payments,510032,School Children,03/04/2024,4253646-40392,672.00,REDACTED - PAYMENT TO INDIVIDUAL
Neighbourhoods and Climate Change,Environmental Services,Supplies and Services,384700,Miscellaneous Expenses,03/04/2024,4253679-RES-03-2024-562,"5,195.50",REDACTED - PAYMENT TO INDIVIDUAL
Dedicated Schools Grant BG0015,DSG Early Years Block,Transfer Payments,510030,School Children,03/04/2024,4253686-40676,501.15,REDACTED - PAYMENT TO INDIVIDUAL
Dedicated Schools Grant BG0015,DSG Early Years Block,Transfer Payments,510032,School Children,03/04/2024,4253821-40435,"1,737.94",REDACTED - PAYMENT TO INDIVIDUAL
Dedicated Schools Grant BG0015,DSG Early Years Block,Transfer Payments,510030,School Children,03/04/2024,4253821-40711,737.10,REDACTED - PAYMENT TO INDIVIDUAL
Dedicated Schools Grant BG0015,DSG Early Years Block,Transfer Payments,510032,School Children,03/04/2024,4253822-40436,"1,737.94",REDACTED - PAYMENT TO INDIVIDUAL
Children and Young Peoples Services,Head of Education and Skills,Supplies and Services,384199,Miscellaneous Expenses,03/04/2024,319716-11/03/2024,903.65,REDACTED - PAYMENT TO INDIVIDUAL
Dedicated Schools Grant BG0015,DSG Early Years Block,Transfer Payments,510032,School Children,03/04/2024,4253571-40369,695.18,REDACTED - PAYMENT TO INDIVIDUAL
Dedicated Schools Grant BG0015,DSG Early Years Block,Transfer Payments,510032,School Children,03/04/2024,4253572-40273,"1,042.76",REDACTED - PAYMENT TO INDIVIDUAL
Dedicated Schools Grant BG0015,DSG Early Years Block,Transfer Payments,510030,School Children,03/04/2024,4253572-40814,"2,211.30",REDACTED - PAYMENT TO INDIVIDUAL
Dedicated Schools Grant BG0015,DSG Early Years Block,Transfer Payments,510032,School Children,03/04/2024,4253574-40371,"1,737.94",REDACTED - PAYMENT TO INDIVIDUAL
Dedicated Schools Grant BG0015,DSG Early Years Block,Transfer Payments,510030,School Children,03/04/2024,4253574-40648,"2,211.30",REDACTED - PAYMENT TO INDIVIDUAL
Dedicated Schools Grant BG0015,DSG Early Years Block,Transfer Payments,510032,School Children,03/04/2024,4253575-40372,"1,737.94",REDACTED - PAYMENT TO INDIVIDUAL
Dedicated Schools Grant BG0015,DSG Early Years Block,Transfer Payments,510032,School Children,03/04/2024,4253576-40375,695.18,REDACTED - PAYMENT TO INDIVIDUAL
Dedicated Schools Grant BG0015,DSG Early Years Block,Transfer Payments,510030,School Children,03/04/2024,4253576-40651,"2,255.18",REDACTED - PAYMENT TO INDIVIDUAL
Dedicated Schools Grant BG0015,DSG Early Years Block,Transfer Payments,510032,School Children,03/04/2024,4253577-40373,"2,085.53",REDACTED - PAYMENT TO INDIVIDUAL
Dedicated Schools Grant BG0015,DSG Early Years Block,Transfer Payments,510030,School Children,03/04/2024,4253577-40649,766.35,REDACTED - PAYMENT TO INDIVIDUAL
Dedicated Schools Grant BG0015,DSG Early Years Block,Transfer Payments,510032,School Children,03/04/2024,4253579-40376,"1,042.76",REDACTED - PAYMENT TO INDIVIDUAL
Dedicated Schools Grant BG0015,DSG Early Years Block,Transfer Payments,510032,School Children,03/04/2024,4253580-40377,"2,085.53",REDACTED - PAYMENT TO INDIVIDUAL
Dedicated Schools Grant BG0015,DSG Early Years Block,Transfer Payments,510030,School Children,03/04/2024,4253580-40654,561.99,REDACTED - PAYMENT TO INDIVIDUAL
Dedicated Schools Grant BG0015,DSG Early Years Block,Transfer Payments,510030,School Children,03/04/2024,4253634-40662,982.80,REDACTED - PAYMENT TO INDIVIDUAL
Dedicated Schools Grant BG0015,DSG Early Years Block,Transfer Payments,510032,School Children,03/04/2024,4253644-40391,"1,042.76",REDACTED - PAYMENT TO INDIVIDUAL
Dedicated Schools Grant BG0015,DSG Early Years Block,Transfer Payments,510030,School Children,03/04/2024,4253644-40668,"1,719.90",REDACTED - PAYMENT TO INDIVIDUAL
Dedicated Schools Grant BG0015,DSG Early Years Block,Transfer Payments,510030,School Children,03/04/2024,4253645-40826,766.35,REDACTED - PAYMENT TO INDIVIDUAL
Dedicated Schools Grant BG0015,DSG Early Years Block,Transfer Payments,510032,School Children,03/04/2024,4253647-40281,"3,128.29",REDACTED - PAYMENT TO INDIVIDUAL
Dedicated Schools Grant BG0015,DSG Early Years Block,Transfer Payments,510030,School Children,03/04/2024,4253647-40827,"5,896.80",REDACTED - PAYMENT TO INDIVIDUAL
Children and Young Peoples Services,Head of Education and Skills,Transport,230006,Contract Hire,03/04/2024,4253672-0113081-FEB24,"1,825.60",REDACTED - PAYMENT TO INDIVIDUAL
Dedicated Schools Grant BG0015,DSG Early Years Block,Transfer Payments,510032,School Children,03/04/2024,4253692-40399,695.18,REDACTED - PAYMENT TO INDIVIDUAL
Dedicated Schools Grant BG0015,DSG Early Years Block,Transfer Payments,510030,School Children,03/04/2024,4253692-40678,510.90,REDACTED - PAYMENT TO INDIVIDUAL
Dedicated Schools Grant BG0015,DSG Early Years Block,Transfer Payments,510032,School Children,03/04/2024,4253717-40403,"1,042.76",REDACTED - PAYMENT TO INDIVIDUAL
Dedicated Schools Grant BG0015,DSG Early Years Block,Transfer Payments,510032,School Children,03/04/2024,4253718-40404,695.18,REDACTED - PAYMENT TO INDIVIDUAL
Dedicated Schools Grant BG0015,DSG Early Years Block,Transfer Payments,510032,School Children,03/04/2024,4253740-40408,"1,042.76",REDACTED - PAYMENT TO INDIVIDUAL
Dedicated Schools Grant BG0015,DSG Early Years Block,Transfer Payments,510030,School Children,03/04/2024,4253740-40686,"1,021.80",REDACTED - PAYMENT TO INDIVIDUAL
Neighbourhoods and Climate Change,Environmental Services,Supplies and Services,384700,Miscellaneous Expenses,03/04/2024,4253753-RES-03-2024-549,"26,715.50",REDACTED - PAYMENT TO INDIVIDUAL
Dedicated Schools Grant BG0015,DSG Early Years Block,Transfer Payments,510030,School Children,03/04/2024,4253755-40726,"4,760.93",REDACTED - PAYMENT TO INDIVIDUAL
Dedicated Schools Grant BG0015,DSG Early Years Block,Transfer Payments,510032,School Children,03/04/2024,4253760-40410,"1,390.35",REDACTED - PAYMENT TO INDIVIDUAL
Dedicated Schools Grant BG0015,DSG Early Years Block,Transfer Payments,510032,School Children,03/04/2024,4253761-40411,"3,128.29",REDACTED - PAYMENT TO INDIVIDUAL
Dedicated Schools Grant BG0015,DSG Early Years Block,Transfer Payments,510030,School Children,03/04/2024,4253761-40688,"1,965.60",REDACTED - PAYMENT TO INDIVIDUAL
Dedicated Schools Grant BG0015,DSG Early Years Block,Transfer Payments,510032,School Children,03/04/2024,4253765-40413,695.18,REDACTED - PAYMENT TO INDIVIDUAL
Dedicated Schools Grant BG0015,DSG Early Years Block,Transfer Payments,510030,School Children,03/04/2024,4253765-40690,501.15,REDACTED - PAYMENT TO INDIVIDUAL
Dedicated Schools Grant BG0015,DSG Early Years Block,Transfer Payments,510032,School Children,03/04/2024,4253766-40294,"1,042.76",REDACTED - PAYMENT TO INDIVIDUAL
Dedicated Schools Grant BG0015,DSG Early Years Block,Transfer Payments,510030,School Children,03/04/2024,4253767-40691,589.68,REDACTED - PAYMENT TO INDIVIDUAL
Dedicated Schools Grant BG0015,DSG Early Years Block,Transfer Payments,510032,School Children,03/04/2024,4253768-40414,"4,344.85",REDACTED - PAYMENT TO INDIVIDUAL
Dedicated Schools Grant BG0015,DSG Early Years Block,Transfer Payments,510030,School Children,03/04/2024,4253768-40692,"1,754.03",REDACTED - PAYMENT TO INDIVIDUAL
Dedicated Schools Grant BG0015,DSG Early Years Block,Transfer Payments,510032,School Children,03/04/2024,4253769-40416,695.18,REDACTED - PAYMENT TO INDIVIDUAL
Dedicated Schools Grant BG0015,DSG Early Years Block,Transfer Payments,510030,School Children,03/04/2024,4253769-40694,"1,532.70",REDACTED - PAYMENT TO INDIVIDUAL
Dedicated Schools Grant BG0015,DSG Early Years Block,Transfer Payments,510030,School Children,03/04/2024,4253789-40697,"1,002.30",REDACTED - PAYMENT TO INDIVIDUAL
Dedicated Schools Grant BG0015,DSG Early Years Block,Transfer Payments,510032,School Children,03/04/2024,4253793-40422,"1,390.35",REDACTED - PAYMENT TO INDIVIDUAL
Dedicated Schools Grant BG0015,DSG Early Years Block,Transfer Payments,510030,School Children,03/04/2024,4253793-40699,737.10,REDACTED - PAYMENT TO INDIVIDUAL
Regeneration Economy and Growth,Corporate Property and Land,Supplies and Services,338066,Services,03/04/2024,4253794-DCC/0013,"3,965.00",REDACTED - PAYMENT TO INDIVIDUAL
Dedicated Schools Grant BG0015,DSG Early Years Block,Transfer Payments,510032,School Children,03/04/2024,4253795-40423,695.18,REDACTED - PAYMENT TO INDIVIDUAL
Dedicated Schools Grant BG0015,DSG Early Years Block,Transfer Payments,510030,School Children,03/04/2024,4253796-40701,982.80,REDACTED - PAYMENT TO INDIVIDUAL
Dedicated Schools Grant BG0015,DSG Early Years Block,Transfer Payments,510030,School Children,03/04/2024,4253800-40702,529.82,REDACTED - PAYMENT TO INDIVIDUAL
Dedicated Schools Grant BG0015,DSG Early Years Block,Transfer Payments,510032,School Children,03/04/2024,4253804-40395,"4,657.67",REDACTED - PAYMENT TO INDIVIDUAL
Dedicated Schools Grant BG0015,DSG Early Years Block,Transfer Payments,510030,School Children,03/04/2024,4253804-40673,"13,022.10",REDACTED - PAYMENT TO INDIVIDUAL
Dedicated Schools Grant BG0015,DSG Early Years Block,Transfer Payments,510032,School Children,03/04/2024,4253805-40425,"1,390.35",REDACTED - PAYMENT TO INDIVIDUAL
Dedicated Schools Grant BG0015,DSG Early Years Block,Transfer Payments,510032,School Children,03/04/2024,4253806-40426,695.18,REDACTED - PAYMENT TO INDIVIDUAL
Dedicated Schools Grant BG0015,DSG Early Years Block,Transfer Payments,510032,School Children,03/04/2024,4253807-40300,"8,759.21",REDACTED - PAYMENT TO INDIVIDUAL
Dedicated Schools Grant BG0015,DSG Early Years Block,Transfer Payments,510030,School Children,03/04/2024,4253807-40847,"1,444.95",REDACTED - PAYMENT TO INDIVIDUAL
Children and Young Peoples Services,Head of Education and Skills,Transport,230008,Contract Hire,03/04/2024,4253809-4446,"1,563.98",REDACTED - PAYMENT TO INDIVIDUAL
Dedicated Schools Grant BG0015,DSG Early Years Block,Transfer Payments,510032,School Children,03/04/2024,4253815-40430,"2,433.11",REDACTED - PAYMENT TO INDIVIDUAL
Dedicated Schools Grant BG0015,DSG Early Years Block,Transfer Payments,510030,School Children,03/04/2024,4253815-40705,"1,719.90",REDACTED - PAYMENT TO INDIVIDUAL
Dedicated Schools Grant BG0015,DSG Early Years Block,Transfer Payments,510032,School Children,03/04/2024,4253816-40431,695.18,REDACTED - PAYMENT TO INDIVIDUAL
Dedicated Schools Grant BG0015,DSG Early Years Block,Transfer Payments,510030,School Children,03/04/2024,4253816-40706,501.15,REDACTED - PAYMENT TO INDIVIDUAL
Dedicated Schools Grant BG0015,DSG Early Years Block,Transfer Payments,510030,School Children,03/04/2024,4253817-40708,722.48,REDACTED - PAYMENT TO INDIVIDUAL
Dedicated Schools Grant BG0015,DSG Early Years Block,Transfer Payments,510032,School Children,03/04/2024,4253818-40301,"2,085.53",REDACTED - PAYMENT TO INDIVIDUAL
Dedicated Schools Grant BG0015,DSG Early Years Block,Transfer Payments,510032,School Children,03/04/2024,4253819-40302,"4,171.05",REDACTED - PAYMENT TO INDIVIDUAL
Dedicated Schools Grant BG0015,DSG Early Years Block,Transfer Payments,510030,School Children,03/04/2024,4253819-40848,"3,006.90",REDACTED - PAYMENT TO INDIVIDUAL
Dedicated Schools Grant BG0015,DSG Early Years Block,Transfer Payments,510032,School Children,03/04/2024,4253824-40437,"2,433.11",REDACTED - PAYMENT TO INDIVIDUAL
Dedicated Schools Grant BG0015,DSG Early Years Block,Transfer Payments,510030,School Children,03/04/2024,4253824-40712,"1,553.57",REDACTED - PAYMENT TO INDIVIDUAL
Dedicated Schools Grant BG0015,DSG Early Years Block,Transfer Payments,510032,School Children,03/04/2024,4253825-40303,"20,855.25",REDACTED - PAYMENT TO INDIVIDUAL
Dedicated Schools Grant BG0015,DSG Early Years Block,Transfer Payments,510030,School Children,03/04/2024,4253825-40849,"75,184.20",REDACTED - PAYMENT TO INDIVIDUAL
Dedicated Schools Grant BG0015,DSG Early Years Block,Transfer Payments,510030,School Children,03/04/2024,4253832-39770,775.50,REDACTED - PAYMENT TO INDIVIDUAL
Dedicated Schools Grant BG0015,DSG Early Years Block,Transfer Payments,510030,School Children,03/04/2024,4253832-40851,"3,006.90",REDACTED - PAYMENT TO INDIVIDUAL
Dedicated Schools Grant BG0015,DSG Early Years Block,Transfer Payments,510032,School Children,03/04/2024,4253833-40450,"2,433.11",REDACTED - PAYMENT TO INDIVIDUAL
Dedicated Schools Grant BG0015,DSG Early Years Block,Transfer Payments,510030,School Children,03/04/2024,4253833-40725,510.90,REDACTED - PAYMENT TO INDIVIDUAL
Dedicated Schools Grant BG0015,DSG Early Years Block,Transfer Payments,510032,School Children,03/04/2024,4253837-40443,"1,390.35",REDACTED - PAYMENT TO INDIVIDUAL
Dedicated Schools Grant BG0015,DSG Early Years Block,Transfer Payments,510030,School Children,03/04/2024,4253837-40717,687.96,REDACTED - PAYMENT TO INDIVIDUAL
Dedicated Schools Grant BG0015,DSG Early Years Block,Transfer Payments,510032,School Children,03/04/2024,4253838-40444,695.18,REDACTED - PAYMENT TO INDIVIDUAL
Dedicated Schools Grant BG0015,DSG Early Years Block,Transfer Payments,510030,School Children,03/04/2024,4253838-40718,"1,965.60",REDACTED - PAYMENT TO INDIVIDUAL
Dedicated Schools Grant BG0015,DSG Early Years Block,Transfer Payments,510032,School Children,03/04/2024,4253840-40305,"1,042.76",REDACTED - PAYMENT TO INDIVIDUAL
Dedicated Schools Grant BG0015,DSG Early Years Block,Transfer Payments,510030,School Children,03/04/2024,4253840-40852,"3,831.75",REDACTED - PAYMENT TO INDIVIDUAL
Dedicated Schools Grant BG0015,DSG Early Years Block,Transfer Payments,510030,School Children,03/04/2024,4253846-40722,722.48,REDACTED - PAYMENT TO INDIVIDUAL
Dedicated Schools Grant BG0015,DSG Early Years Block,Transfer Payments,510032,School Children,03/04/2024,4253851-40306,"1,668.42",REDACTED - PAYMENT TO INDIVIDUAL
Dedicated Schools Grant BG0015,DSG Early Years Block,Transfer Payments,510030,School Children,03/04/2024,4253851-40853,722.48,REDACTED - PAYMENT TO INDIVIDUAL
Dedicated Schools Grant BG0015,DSG Early Years Block,Transfer Payments,510032,School Children,03/04/2024,4253858-40453,"1,598.90",REDACTED - PAYMENT TO INDIVIDUAL
Dedicated Schools Grant BG0015,DSG Early Years Block,Transfer Payments,510030,School Children,03/04/2024,4253858-40728,"2,702.70",REDACTED - PAYMENT TO INDIVIDUAL
Dedicated Schools Grant BG0015,DSG Early Years Block,Transfer Payments,510032,School Children,03/04/2024,4253860-40309,"5,213.81",REDACTED - PAYMENT TO INDIVIDUAL
Dedicated Schools Grant BG0015,DSG Early Years Block,Transfer Payments,510030,School Children,03/04/2024,4253860-40856,"1,277.25",REDACTED - PAYMENT TO INDIVIDUAL
Children and Young Peoples Services,Head of Childrens Social Care,Supplies and Services,338066,Services,03/04/2024,4253861-31,"1,997.20",REDACTED - PAYMENT TO INDIVIDUAL
Dedicated Schools Grant BG0015,DSG Early Years Block,Transfer Payments,510032,School Children,03/04/2024,4253867-40458,"1,042.76",REDACTED - PAYMENT TO INDIVIDUAL
Dedicated Schools Grant BG0015,DSG Early Years Block,Transfer Payments,510032,School Children,03/04/2024,4253872-40311,"4,171.05",REDACTED - PAYMENT TO INDIVIDUAL
Dedicated Schools Grant BG0015,DSG Early Years Block,Transfer Payments,510030,School Children,03/04/2024,4253872-40858,"5,262.08",REDACTED - PAYMENT TO INDIVIDUAL
Dedicated Schools Grant BG0015,DSG Early Years Block,Transfer Payments,510030,School Children,03/04/2024,4253875-40731,510.90,REDACTED - PAYMENT TO INDIVIDUAL
Children and Young Peoples Services,Head of Education and Skills,Transport,230010,Contract Hire,03/04/2024,4253877-PB002/0224,"1,440.41",REDACTED - PAYMENT TO INDIVIDUAL
Dedicated Schools Grant BG0015,DSG Early Years Block,Transfer Payments,510030,School Children,03/04/2024,4253878-40732,963.30,REDACTED - PAYMENT TO INDIVIDUAL
Dedicated Schools Grant BG0015,DSG Early Years Block,Transfer Payments,510032,School Children,03/04/2024,4253879-40459,"1,042.76",REDACTED - PAYMENT TO INDIVIDUAL
Regeneration Economy and Growth,Culture Sport and Tourism,Supplies and Services,304259,Equipment and Materials,03/04/2024,4253880-4100869306,"6,166.00",REDACTED - PAYMENT TO INDIVIDUAL
Dedicated Schools Grant BG0015,DSG Early Years Block,Transfer Payments,510032,School Children,03/04/2024,4253883-40389,"1,737.94",REDACTED - PAYMENT TO INDIVIDUAL
Dedicated Schools Grant BG0015,DSG Early Years Block,Transfer Payments,510030,School Children,03/04/2024,4253883-40666,"2,236.04",REDACTED - PAYMENT TO INDIVIDUAL
Dedicated Schools Grant BG0015,DSG Early Years Block,Transfer Payments,510032,School Children,03/04/2024,4253889-40274,"2,085.53",REDACTED - PAYMENT TO INDIVIDUAL
Dedicated Schools Grant BG0015,DSG Early Years Block,Transfer Payments,510030,School Children,03/04/2024,4253891-40658,501.15,REDACTED - PAYMENT TO INDIVIDUAL
Dedicated Schools Grant BG0015,DSG Early Years Block,Transfer Payments,510032,School Children,03/04/2024,4253892-40384,695.18,REDACTED - PAYMENT TO INDIVIDUAL
Dedicated Schools Grant BG0015,DSG Early Years Block,Transfer Payments,510030,School Children,03/04/2024,4253893-40675,"1,002.30",REDACTED - PAYMENT TO INDIVIDUAL
Dedicated Schools Grant BG0015,DSG Early Years Block,Transfer Payments,510032,School Children,03/04/2024,4253896-40415,695.18,REDACTED - PAYMENT TO INDIVIDUAL
Dedicated Schools Grant BG0015,DSG Early Years Block,Transfer Payments,510030,School Children,03/04/2024,4253896-40693,510.90,REDACTED - PAYMENT TO INDIVIDUAL
Dedicated Schools Grant BG0015,DSG Early Years Block,Transfer Payments,510032,School Children,03/04/2024,4253897-40428,695.18,REDACTED - PAYMENT TO INDIVIDUAL
Dedicated Schools Grant BG0015,DSG Early Years Block,Transfer Payments,510030,School Children,03/04/2024,4253897-40704,501.15,REDACTED - PAYMENT TO INDIVIDUAL
Dedicated Schools Grant BG0015,DSG Early Years Block,Transfer Payments,510032,School Children,03/04/2024,4253900-40321,"1,390.35",REDACTED - PAYMENT TO INDIVIDUAL
Dedicated Schools Grant BG0015,DSG Early Years Block,Transfer Payments,510030,School Children,03/04/2024,4253900-40870,"2,211.30",REDACTED - PAYMENT TO INDIVIDUAL
Dedicated Schools Grant BG0015,DSG Early Years Block,Transfer Payments,510032,School Children,03/04/2024,4253905-40460,"3,128.29",REDACTED - PAYMENT TO INDIVIDUAL
Dedicated Schools Grant BG0015,DSG Early Years Block,Transfer Payments,510030,School Children,03/04/2024,4253905-40736,"5,619.90",REDACTED - PAYMENT TO INDIVIDUAL
Children and Young Peoples Services,Head of Education and Skills,Transport,230008,Contract Hire,03/04/2024,4253938-A059-FEB24,"3,366.00",REDACTED - PAYMENT TO INDIVIDUAL
Dedicated Schools Grant BG0015,DSG Early Years Block,Transfer Payments,510032,School Children,03/04/2024,4253942-40318,"2,085.53",REDACTED - PAYMENT TO INDIVIDUAL
Dedicated Schools Grant BG0015,DSG Early Years Block,Transfer Payments,510032,School Children,03/04/2024,4253957-40467,"2,780.70",REDACTED - PAYMENT TO INDIVIDUAL
Dedicated Schools Grant BG0015,DSG Early Years Block,Transfer Payments,510030,School Children,03/04/2024,4253957-40744,"3,758.63",REDACTED - PAYMENT TO INDIVIDUAL
Dedicated Schools Grant BG0015,DSG Early Years Block,Transfer Payments,510032,School Children,03/04/2024,4253963-40469,695.18,REDACTED - PAYMENT TO INDIVIDUAL
Dedicated Schools Grant BG0015,DSG Early Years Block,Transfer Payments,510032,School Children,03/04/2024,4253981-40471,"1,737.94",REDACTED - PAYMENT TO INDIVIDUAL
Dedicated Schools Grant BG0015,DSG Early Years Block,Transfer Payments,510030,School Children,03/04/2024,4253981-40748,"2,472.47",REDACTED - PAYMENT TO INDIVIDUAL
Dedicated Schools Grant BG0015,DSG Early Years Block,Transfer Payments,510032,School Children,03/04/2024,4253982-40472,926.90,REDACTED - PAYMENT TO INDIVIDUAL
Dedicated Schools Grant BG0015,DSG Early Years Block,Transfer Payments,510032,School Children,03/04/2024,4253989-40323,"4,171.05",REDACTED - PAYMENT TO INDIVIDUAL
Dedicated Schools Grant BG0015,DSG Early Years Block,Transfer Payments,510030,School Children,03/04/2024,4253989-40873,"3,685.50",REDACTED - PAYMENT TO INDIVIDUAL
Dedicated Schools Grant BG0015,DSG Early Years Block,Transfer Payments,510032,School Children,03/04/2024,4254000-40325,"1,042.76",REDACTED - PAYMENT TO INDIVIDUAL
Dedicated Schools Grant BG0015,DSG Early Years Block,Transfer Payments,510030,School Children,03/04/2024,4254000-40875,751.73,REDACTED - PAYMENT TO INDIVIDUAL
Dedicated Schools Grant BG0015,DSG Early Years Block,Transfer Payments,510030,School Children,03/04/2024,4254019-40887,"1,081.08",REDACTED - PAYMENT TO INDIVIDUAL
Children and Young Peoples Services,Head of Education and Skills,Transport,230006,Contract Hire,03/04/2024,4254046-COLORS3554FEBUARY24,"3,120.00",REDACTED - PAYMENT TO INDIVIDUAL
Dedicated Schools Grant BG0015,DSG Early Years Block,Transfer Payments,510032,School Children,03/04/2024,4254050-40485,"1,042.76",REDACTED - PAYMENT TO INDIVIDUAL
Dedicated Schools Grant BG0015,DSG Early Years Block,Transfer Payments,510032,School Children,03/04/2024,4254051-40484,695.18,REDACTED - PAYMENT TO INDIVIDUAL
Dedicated Schools Grant BG0015,DSG Early Years Block,Transfer Payments,510030,School Children,03/04/2024,4254051-40768,737.10,REDACTED - PAYMENT TO INDIVIDUAL
Dedicated Schools Grant BG0015,DSG Early Years Block,Transfer Payments,510032,School Children,03/04/2024,4254071-40332,"3,128.29",REDACTED - PAYMENT TO INDIVIDUAL
Dedicated Schools Grant BG0015,DSG Early Years Block,Transfer Payments,510030,School Children,03/04/2024,4254071-40893,"2,948.40",REDACTED - PAYMENT TO INDIVIDUAL
Children and Young Peoples Services,Head of Education and Skills,Transport,230034,Contract Hire,03/04/2024,4253550-22404,"2,400.00",24/7 TAXI SERVICES (PETERLEE) LTD.
Children and Young Peoples Services,Head of Education and Skills,Transport,230007,Contract Hire,03/04/2024,4253550-22406,"2,349.12",24/7 TAXI SERVICES (PETERLEE) LTD.
Children and Young Peoples Services,Head of Education and Skills,Transport,230009,Contract Hire,03/04/2024,4253551-115735A,"1,985.40",24X7LTD.
Children and Young Peoples Services,Head of Education and Skills,Transport,230008,Contract Hire,03/04/2024,4253551-115773A,"3,218.58",24X7LTD.
Children and Young Peoples Services,Head of Education and Skills,Transport,230034,Contract Hire,03/04/2024,4253551-118152,"3,095.40",24X7LTD.
Children and Young Peoples Services,Head of Education and Skills,Transport,230008,Contract Hire,03/04/2024,4253551-118190A,"2,930.84",24X7LTD.
Children and Young Peoples Services,Head of Education and Skills,Transport,230008,Contract Hire,03/04/2024,4253551-118198A,"2,825.19",24X7LTD.
Neighbourhoods and Climate Change,Environmental Services,Transport,210057,Repair and Maintenance of Vehicles,03/04/2024,4253554-ARD166076NE,"7,707.40",AALCO METALS LTD.
Dedicated Schools Grant BG0015,DSG Early Years Block,Transfer Payments,510032,School Children,03/04/2024,4253557-40433,695.18,AD ASTRA ACADEMY TRUST T/A KELLOW PRIMARY SCHOOL.
Dedicated Schools Grant BG0015,DSG Early Years Block,Transfer Payments,510030,School Children,03/04/2024,4253557-40709,"7,616.70",AD ASTRA ACADEMY TRUST T/A KELLOW PRIMARY SCHOOL.
Dedicated Schools Grant BG0015,DSG Early Years Block,Transfer Payments,510030,School Children,03/04/2024,4253558-40734,"6,214.26",ADVANCE LEARNING PARTNERSHIP.
Dedicated Schools Grant BG0015,DSG Early Years Block,Transfer Payments,510030,School Children,03/04/2024,4253559-40844,"24,055.20",ADVANCE LEARNING PARTNERSHIP.
Dedicated Schools Grant BG0015,DSG Early Years Block,Transfer Payments,510032,School Children,03/04/2024,4253560-40464,"1,737.94",ADVANCE LEARNING PARTNERSHIP.
Dedicated Schools Grant BG0015,DSG Early Years Block,Transfer Payments,510030,School Children,03/04/2024,4253560-40741,"6,765.53",ADVANCE LEARNING PARTNERSHIP.
Dedicated Schools Grant BG0015,DSG Early Years Block,Transfer Payments,510032,School Children,03/04/2024,4253561-40313,"5,213.81",ADVANCE LEARNING PARTNERSHIP.
Dedicated Schools Grant BG0015,DSG Early Years Block,Transfer Payments,510030,School Children,03/04/2024,4253561-40860,"21,048.30",ADVANCE LEARNING PARTNERSHIP.
Dedicated Schools Grant BG0015,DSG Early Years Block,Transfer Payments,510032,School Children,03/04/2024,4253562-40314,"12,513.15",ADVANCE LEARNING PARTNERSHIP.
Dedicated Schools Grant BG0015,DSG Early Years Block,Transfer Payments,510030,School Children,03/04/2024,4253562-40861,"10,319.40",ADVANCE LEARNING PARTNERSHIP.
Dedicated Schools Grant BG0015,DSG Early Years Block,Transfer Payments,510030,School Children,03/04/2024,4253563-40896,"5,896.80",ADVANCE LEARNING PARTNERSHIP.
Dedicated Schools Grant BG0015,DSG Early Years Block,Transfer Payments,510032,School Children,03/04/2024,4253564-40367,"13,208.33",ADVENTURE VALLEY DAY NURSERY LTD.
Dedicated Schools Grant BG0015,DSG Early Years Block,Transfer Payments,510030,School Children,03/04/2024,4253564-40646,"17,313.66",ADVENTURE VALLEY DAY NURSERY LTD.
Regeneration Economy and Growth,Culture Sport and Tourism,Supplies and Services,384237,Miscellaneous Expenses,03/04/2024,4253568-181037,"1,050.00",ALBANY OFFICE EQUIPMENT (WHOLESALE) LTD.
Regeneration Economy and Growth,Culture Sport and Tourism,Premises,106082,Centrally Controlled Rep and Maint,03/04/2024,4253581-0000039991,675.00,AQUAJET DRAIN CLEANING LTD.
Neighbourhoods and Climate Change,Environmental Services,Premises,108099,Service Repairs and Maintenance,03/04/2024,4253581-0000040014,565.00,AQUAJET DRAIN CLEANING LTD.
Regeneration Economy and Growth,Business Durham,Fees,901002,Consultants fees 901002,03/04/2024,4253586-24010212,"49,063.73",ATKINSREALIS UK LTD.
Regeneration Economy and Growth,Business Durham,Construction work A908,908105,Construction work,03/04/2024,4253586-24010215,"1,289.20",ATKINSREALIS UK LTD.
Dedicated Schools Grant BG0015,DSG Early Years Block,Transfer Payments,510032,School Children,03/04/2024,4253587-40379,"5,561.40",AYCLIFFE DAY NURSERY.
Dedicated Schools Grant BG0015,DSG Early Years Block,Transfer Payments,510030,School Children,03/04/2024,4253587-40655,"4,009.20",AYCLIFFE DAY NURSERY.
Neighbourhoods and Climate Change,Environmental Services,Transport,210057,Repair and Maintenance of Vehicles,03/04/2024,4253591-35263803,"1,255.07",BELL TRUCK SALES LTD T/A BELL TRUCK & VAN.
Neighbourhoods and Climate Change,Environmental Services,Fees,901002,Consultants fees 901002,03/04/2024,4253592-44742,"1,445.00",BGP CONSULTING LTD T/A BILLINGHURST GEORGE & PARTNERS.
Dedicated Schools Grant BG0015,DSG Early Years Block,Transfer Payments,510032,School Children,03/04/2024,4253595-40380,"8,342.10",BIG HANDS LITTLE HANDS CHILDCARE LTD.
Dedicated Schools Grant BG0015,DSG Early Years Block,Transfer Payments,510030,School Children,03/04/2024,4253595-40656,"15,970.50",BIG HANDS LITTLE HANDS CHILDCARE LTD.
Dedicated Schools Grant BG0015,DSG Early Years Block,Transfer Payments,510032,School Children,03/04/2024,4253597-40276,"25,651.96",BISHOP AUCKLAND COLLEGE NURSERY.
Dedicated Schools Grant BG0015,DSG Early Years Block,Transfer Payments,510030,School Children,03/04/2024,4253597-40816,"31,973.37",BISHOP AUCKLAND COLLEGE NURSERY.
Dedicated Schools Grant BG0015,DSG Early Years Block,Transfer Payments,510032,School Children,03/04/2024,4253598-40316,"11,470.39",BISHOP CHADWICK CATHOLIC EDUCATION TRUST (NSCET).
Dedicated Schools Grant BG0015,DSG Early Years Block,Transfer Payments,510030,School Children,03/04/2024,4253598-40863,"29,887.65",BISHOP CHADWICK CATHOLIC EDUCATION TRUST (NSCET).
Dedicated Schools Grant BG0015,DSG Early Years Block,Transfer Payments,510030,School Children,03/04/2024,4253599-40817,"13,531.05",BISHOP CHADWICK CATHOLIC EDUCATION TRUST (NSCET).
Dedicated Schools Grant BG0015,DSG Early Years Block,Transfer Payments,510030,School Children,03/04/2024,4253600-40755,"13,283.40",BISHOP HOGARTH CATHOLIC EDUCATION TRUST.
Dedicated Schools Grant BG0015,DSG Early Years Block,Transfer Payments,510030,School Children,03/04/2024,4253601-40754,"1,503.45",BISHOP HOGARTH CATHOLIC EDUCATION TRUST.
Dedicated Schools Grant BG0015,DSG Early Years Block,Transfer Payments,510030,School Children,03/04/2024,4253602-40739,"4,360.01",BISHOP HOGARTH CATHOLIC EDUCATION TRUST.
Dedicated Schools Grant BG0015,DSG Early Years Block,Transfer Payments,510030,School Children,03/04/2024,4253603-40818,"19,544.85",BISHOP HOGARTH CATHOLIC EDUCATION TRUST.
Dedicated Schools Grant BG0015,DSG Early Years Block,Transfer Payments,510030,School Children,03/04/2024,4253604-40878,"18,427.50",BISHOP HOGARTH CATHOLIC EDUCATION TRUST.
Dedicated Schools Grant BG0015,DSG Early Years Block,Transfer Payments,510030,School Children,03/04/2024,4253605-40881,"16,904.16",BISHOP HOGARTH CATHOLIC EDUCATION TRUST.
Dedicated Schools Grant BG0015,DSG Early Years Block,Transfer Payments,510030,School Children,03/04/2024,4253606-40886,"27,567.54",BISHOP HOGARTH CATHOLIC EDUCATION TRUST.
Dedicated Schools Grant BG0015,DSG Early Years Block,Transfer Payments,510032,School Children,03/04/2024,4253607-40476,"1,737.94",BISHOP HOGARTH CATHOLIC EDUCATION TRUST.
Dedicated Schools Grant BG0015,DSG Early Years Block,Transfer Payments,510030,School Children,03/04/2024,4253607-40757,"3,006.90",BISHOP HOGARTH CATHOLIC EDUCATION TRUST.
Regeneration Economy and Growth,Corporate Property and Land,Supplies and Services,304359,Equipment and Materials,03/04/2024,4253608-BMPR/1438/SKIPS,700.00,BISHOP MIDDLEHAM PLANT & RECYCLING LTD.
Regeneration Economy and Growth,Corporate Property and Land,Supplies and Services,304359,Equipment and Materials,03/04/2024,4253608-BMPR/1494/SKIPS,700.00,BISHOP MIDDLEHAM PLANT & RECYCLING LTD.
Regeneration Economy and Growth,Corporate Property and Land,Supplies and Services,304359,Equipment and Materials,03/04/2024,4253608-BMPR/1497/SKIPS,700.00,BISHOP MIDDLEHAM PLANT & RECYCLING LTD.
Dedicated Schools Grant BG0015,DSG Early Years Block,Transfer Payments,510030,School Children,03/04/2024,4253609-40813,"25,061.40",BISHOP WILKINSON CATHOLIC EDUCATION TRUST.
Dedicated Schools Grant BG0015,DSG Early Years Block,Transfer Payments,510030,School Children,03/04/2024,4253610-40880,766.35,BISHOP WILKINSON CATHOLIC EDUCATION TRUST.
Dedicated Schools Grant BG0015,DSG Early Years Block,Transfer Payments,510030,School Children,03/04/2024,4253611-40885,"17,166.24",BISHOP WILKINSON CATHOLIC EDUCATION TRUST.
Dedicated Schools Grant BG0015,DSG Early Years Block,Transfer Payments,510030,School Children,03/04/2024,4253612-40884,"45,981.00",BISHOP WILKINSON CATHOLIC EDUCATION TRUST.
Dedicated Schools Grant BG0015,DSG Early Years Block,Transfer Payments,510030,School Children,03/04/2024,4253613-40879,"33,075.90",BISHOP WILKINSON CATHOLIC EDUCATION TRUST.
Dedicated Schools Grant BG0015,DSG Early Years Block,Transfer Payments,510030,School Children,03/04/2024,4253614-40877,"22,251.06",BISHOP WILKINSON CATHOLIC EDUCATION TRUST.
Dedicated Schools Grant BG0015,DSG Early Years Block,Transfer Payments,510030,School Children,03/04/2024,4253615-40753,"10,190.05",BISHOP WILKINSON CATHOLIC EDUCATION TRUST.
Dedicated Schools Grant BG0015,DSG Early Years Block,Transfer Payments,510032,School Children,03/04/2024,4253617-40310,"29,197.35",BLUE SKY CHILDCARE.
Dedicated Schools Grant BG0015,DSG Early Years Block,Transfer Payments,510030,School Children,03/04/2024,4253617-40857,"36,082.80",BLUE SKY CHILDCARE.
Regeneration Economy and Growth,Culture Sport and Tourism,Supplies and Services,312013,Newspapers books and periodicals E312,03/04/2024,4253619-236136,600.43,BOLINDA DIGITAL LTD.
Regeneration Economy and Growth,Culture Sport and Tourism,Supplies and Services,312013,Newspapers books and periodicals E312,03/04/2024,4253619-236336,598.32,BOLINDA DIGITAL LTD.
Regeneration Economy and Growth,Culture Sport and Tourism,Supplies and Services,312013,Newspapers books and periodicals E312,03/04/2024,4253619-236338,725.19,BOLINDA DIGITAL LTD.
Regeneration Economy and Growth,Culture Sport and Tourism,Supplies and Services,312013,Newspapers books and periodicals E312,03/04/2024,4253619-236339,707.63,BOLINDA DIGITAL LTD.
Regeneration Economy and Growth,Culture Sport and Tourism,Supplies and Services,312013,Newspapers books and periodicals E312,03/04/2024,4253619-236468,695.86,BOLINDA DIGITAL LTD.
Children and Young Peoples Services,Head of Education and Skills,Transport,230008,Contract Hire,03/04/2024,4253620-N029-FEB24,"3,224.36",BON VOYAGE TAXIS LTD.
Children and Young Peoples Services,Head of Education and Skills,Transport,230008,Contract Hire,03/04/2024,4253620-N107-FEB24,"2,745.00",BON VOYAGE TAXIS LTD.
Regeneration Economy and Growth,Corporate Property and Land,Third Party Payments,430100,Rendered by Private Contractors,03/04/2024,4253622-35451,"2,047.00",BRAY CRANES LTD.*
Dedicated Schools Grant BG0015,DSG Early Years Block,Transfer Payments,510032,School Children,03/04/2024,4253623-40382,"7,299.34",BRIGHT STAR NURSERY.
Dedicated Schools Grant BG0015,DSG Early Years Block,Transfer Payments,510030,School Children,03/04/2024,4253623-40659,"14,032.20",BRIGHT STAR NURSERY.
Dedicated Schools Grant BG0015,DSG Early Years Block,Transfer Payments,510032,School Children,03/04/2024,4253625-40278,"14,598.68",BUDDIES CHILDCARE CENTRE.
Dedicated Schools Grant BG0015,DSG Early Years Block,Transfer Payments,510030,School Children,03/04/2024,4253625-40821,"22,990.50",BUDDIES CHILDCARE CENTRE.
Dedicated Schools Grant BG0015,DSG Early Years Block,Transfer Payments,510032,School Children,03/04/2024,4253627-40279,"52,138.13",BUSY BEARS (DURHAM) LTD.
Dedicated Schools Grant BG0015,DSG Early Years Block,Transfer Payments,510030,School Children,03/04/2024,4253627-40823,"92,712.75",BUSY BEARS (DURHAM) LTD.
Dedicated Schools Grant BG0015,DSG Early Years Block,Transfer Payments,510032,School Children,03/04/2024,4253628-40280,"78,207.19",BUSY BEES (DURHAM) LTD.
Dedicated Schools Grant BG0015,DSG Early Years Block,Transfer Payments,510030,School Children,03/04/2024,4253628-40824,"174,447.00",BUSY BEES (DURHAM) LTD.
Dedicated Schools Grant BG0015,DSG Early Years Block,Transfer Payments,510032,School Children,03/04/2024,4253630-40383,"6,951.75",BYERLEY ROAD PRE SCHOOL.
Dedicated Schools Grant BG0015,DSG Early Years Block,Transfer Payments,510030,School Children,03/04/2024,4253630-40660,"9,451.65",BYERLEY ROAD PRE SCHOOL.
Adult and Health Services,Head of Adults,Supplies and Services,384616,Miscellaneous Expenses,03/04/2024,4253632-MA240977/1,"5,529.45",CARE HOUSING ASSOCIATION LTD.
Dedicated Schools Grant BG0015,DSG Early Years Block,Transfer Payments,510032,School Children,03/04/2024,4253635-40386,"6,951.75",CASTLE KINDERGARTEN LTD.
Dedicated Schools Grant BG0015,DSG Early Years Block,Transfer Payments,510030,School Children,03/04/2024,4253635-40663,"13,022.10",CASTLE KINDERGARTEN LTD.
Dedicated Schools Grant BG0015,DSG Early Years Block,Transfer Payments,510032,School Children,03/04/2024,4253636-40387,"26,744.63",CASTLE VIEW PRIVATE DAY NURSERY LTD.
Dedicated Schools Grant BG0015,DSG Early Years Block,Transfer Payments,510030,School Children,03/04/2024,4253636-40664,"55,495.44",CASTLE VIEW PRIVATE DAY NURSERY LTD.
Regeneration Economy and Growth,Culture Sport and Tourism,Supplies and Services,384199,Miscellaneous Expenses,03/04/2024,4253638-1103,"5,724.00",CHEFS ON STAGE LTD.
Children and Young Peoples Services,Head of Education and Skills,Transport,230006,Contract Hire,03/04/2024,4253641-2598,780.00,CHEVRON TAXIS LTD.
Children and Young Peoples Services,Head of Education and Skills,Transport,230007,Contract Hire,03/04/2024,4253641-2637,"1,280.00",CHEVRON TAXIS LTD.
Dedicated Schools Grant BG0015,DSG Early Years Block,Transfer Payments,510032,School Children,03/04/2024,4253648-40282,"41,362.91",CLEVER CLOGS DAY NURSERIES LTD.
Dedicated Schools Grant BG0015,DSG Early Years Block,Transfer Payments,510030,School Children,03/04/2024,4253648-40828,"42,997.50",CLEVER CLOGS DAY NURSERIES LTD.
Dedicated Schools Grant BG0015,DSG Early Years Block,Transfer Payments,510032,School Children,03/04/2024,4253649-40283,"45,186.38",CLEVER CLOGS DAY NURSERY (DURHAM) LTD.
Dedicated Schools Grant BG0015,DSG Early Years Block,Transfer Payments,510030,School Children,03/04/2024,4253649-40829,"91,105.56",CLEVER CLOGS DAY NURSERY (DURHAM) LTD.
Neighbourhoods and Climate Change,Highways,Stock A926,926900,Stock in hand-Inventory system,03/04/2024,4253652-23000RX24003386,"2,301.12",COLAS LTD.
Dedicated Schools Grant BG0015,DSG Early Years Block,Transfer Payments,510030,School Children,03/04/2024,4253656-40670,"4,701.06",CONKERS LIFE LTD (NURSERY SCHOOL).
Children and Young Peoples Services,Head of Education and Skills,Transport,230008,Contract Hire,03/04/2024,4253658-9-FEB24,"3,005.12",CONSETT CONTRACTS LTD.
Neighbourhoods and Climate Change,Highways,Third Party Payments,430100,Rendered by Private Contractors,03/04/2024,4253659-129348,"3,335.00",CONSTRUCTION TESTING SOLUTIONS LTD.
Dedicated Schools Grant BG0015,DSG Early Years Block,Transfer Payments,510032,School Children,03/04/2024,4253662-40289,"8,342.10",CORE CARE EVENWOOD LTD T/A FLOWERPOTS NURSERY.
Dedicated Schools Grant BG0015,DSG Early Years Block,Transfer Payments,510030,School Children,03/04/2024,4253662-40836,"12,027.60",CORE CARE EVENWOOD LTD T/A FLOWERPOTS NURSERY.
Dedicated Schools Grant BG0015,DSG Early Years Block,Transfer Payments,510032,School Children,03/04/2024,4253663-40297,"15,641.44",CORECARE N/A LTD.
Dedicated Schools Grant BG0015,DSG Early Years Block,Transfer Payments,510032,School Children,03/04/2024,4253665-40393,"6,256.58",COUNDON & LEEHOLME EARLY YEARS CENTRE LTD.
Dedicated Schools Grant BG0015,DSG Early Years Block,Transfer Payments,510030,School Children,03/04/2024,4253665-40671,"8,940.75",COUNDON & LEEHOLME EARLY YEARS CENTRE LTD.
Children and Young Peoples Services,Head of Early Help Inclusion & Vulnerable Children.,Supplies and Services,338099,Services,03/04/2024,4253666-SFLF0010,"26,401.26",COUNTY DURHAM FURNITURE HELP SCHEME (CDFHS).
Neighbourhoods and Climate Change,Environmental Services,Supplies and Services,304252,Equipment and Materials,03/04/2024,4253666-SW0025,528.44,COUNTY DURHAM FURNITURE HELP SCHEME (CDFHS).
Dedicated Schools Grant BG0015,DSG Early Years Block,Transfer Payments,510032,School Children,03/04/2024,4253668-40394,"8,342.10",CRAGHEAD CHILDCARE CENTRE.
Dedicated Schools Grant BG0015,DSG Early Years Block,Transfer Payments,510030,School Children,03/04/2024,4253668-40672,"8,519.55",CRAGHEAD CHILDCARE CENTRE.
Neighbourhoods and Climate Change,Environmental Services,Premises,145023,Cleaning and Domestic Supplies,03/04/2024,4253670-INV0145785,"3,582.00",CROMWELL POLYTHENE LTD.
Children and Young Peoples Services,Head of Early Help Inclusion & Vulnerable Children.,Third Party Payments,410037,Rendered by Other Local Authorities,03/04/2024,4253673-6804,900.00,DAISY CHAIN PROJECT TEESSIDE.
Dedicated Schools Grant BG0015,DSG Early Years Block,Transfer Payments,510032,School Children,03/04/2024,4253681-40284,"14,424.89",DAWN TILL DUSK CHILDCARE.
Dedicated Schools Grant BG0015,DSG Early Years Block,Transfer Payments,510032,School Children,03/04/2024,4253682-40334,"25,373.89",DAYPARK LTD T/A YELLOW WELLIES.
Dedicated Schools Grant BG0015,DSG Early Years Block,Transfer Payments,510030,School Children,03/04/2024,4253682-40898,"36,427.17",DAYPARK LTD T/A YELLOW WELLIES.
Dedicated Schools Grant BG0015,DSG Early Years Block,Transfer Payments,510032,School Children,03/04/2024,4253683-40335,"15,571.92",DAYPARK LTD T/A YELLOW WELLIES.
Dedicated Schools Grant BG0015,DSG Early Years Block,Transfer Payments,510030,School Children,03/04/2024,4253683-40899,"30,970.10",DAYPARK LTD T/A YELLOW WELLIES.
Dedicated Schools Grant BG0015,DSG Early Years Block,Transfer Payments,510032,School Children,03/04/2024,4253687-40286,"2,850.22",DEERNESS VALLEY NURSERY SCHOOL.
Dedicated Schools Grant BG0015,DSG Early Years Block,Transfer Payments,510030,School Children,03/04/2024,4253687-40832,"23,194.08",DEERNESS VALLEY NURSERY SCHOOL.
Neighbourhoods and Climate Change,Environmental Services,Transport,210057,Repair and Maintenance of Vehicles,03/04/2024,4253689-96455516,769.76,DENNIS EAGLE LTD T/A TERBERG MATEC (UK) LTD.
Neighbourhoods and Climate Change,Environmental Services,Transport,210057,Repair and Maintenance of Vehicles,03/04/2024,4253689-96455858,569.29,DENNIS EAGLE LTD T/A TERBERG MATEC (UK) LTD.
Neighbourhoods and Climate Change,Environmental Services,Transport,210057,Repair and Maintenance of Vehicles,03/04/2024,4253690-DE11660139,677.95,DENNIS EAGLE LTD.
Dedicated Schools Grant BG0015,DSG Early Years Block,Transfer Payments,510030,School Children,03/04/2024,4253701-40695,"3,194.10",DURHAM & NEWCASTLE DIOCESAN LEARNING TRUST T/A INGLETON CE PRIMARY SCHOOL
Dedicated Schools Grant BG0015,DSG Early Years Block,Transfer Payments,510030,School Children,03/04/2024,4253702-40758,"5,109.00",DURHAM & NEWCASTLE DIOCESAN LEARNING TRUST T/A STANHOPE BARRINGTON C OF E PRIMARY SCHOOL.
Dedicated Schools Grant BG0015,DSG Early Years Block,Transfer Payments,510032,School Children,03/04/2024,4253708-40466,"6,256.58",EAST DURHAM COLLEGE.
Dedicated Schools Grant BG0015,DSG Early Years Block,Transfer Payments,510030,School Children,03/04/2024,4253708-40743,"10,473.45",EAST DURHAM COLLEGE.
Dedicated Schools Grant BG0015,DSG Early Years Block,Transfer Payments,510032,School Children,03/04/2024,4253709-40381,"5,213.81",EDEN ACADEMY TRUST.
Dedicated Schools Grant BG0015,DSG Early Years Block,Transfer Payments,510030,School Children,03/04/2024,4253709-40657,"14,032.20",EDEN ACADEMY TRUST.
Dedicated Schools Grant BG0015,DSG Early Years Block,Transfer Payments,510032,School Children,03/04/2024,4253710-40407,"3,128.29",EDEN ACADEMY TRUST.
Dedicated Schools Grant BG0015,DSG Early Years Block,Transfer Payments,510030,School Children,03/04/2024,4253710-40685,"8,519.55",EDEN ACADEMY TRUST.
Dedicated Schools Grant BG0015,DSG Early Years Block,Transfer Payments,510032,School Children,03/04/2024,4253711-40402,"8,342.10",EDEN GARDEN NURSERY.
Dedicated Schools Grant BG0015,DSG Early Years Block,Transfer Payments,510030,School Children,03/04/2024,4253711-40680,"19,459.44",EDEN GARDEN NURSERY.
Dedicated Schools Grant BG0015,DSG Early Years Block,Transfer Payments,510030,School Children,03/04/2024,4253712-40825,"45,855.23",EDEN LEARNING TRUST T/A CHILTON ACADEMY.
Dedicated Schools Grant BG0015,DSG Early Years Block,Transfer Payments,510032,School Children,03/04/2024,4253720-40405,"10,427.63",EMERALDS LITTLE GEMS DAYCARE LTD.
Dedicated Schools Grant BG0015,DSG Early Years Block,Transfer Payments,510032,School Children,03/04/2024,4253720-40406,"15,815.23",EMERALDS LITTLE GEMS DAYCARE LTD.
Dedicated Schools Grant BG0015,DSG Early Years Block,Transfer Payments,510030,School Children,03/04/2024,4253720-40683,"12,006.15",EMERALDS LITTLE GEMS DAYCARE LTD.
Dedicated Schools Grant BG0015,DSG Early Years Block,Transfer Payments,510030,School Children,03/04/2024,4253720-40684,"24,656.58",EMERALDS LITTLE GEMS DAYCARE LTD.
Dedicated Schools Grant BG0015,DSG Early Years Block,Transfer Payments,510032,School Children,03/04/2024,4253721-40441,"1,042.76",EMMA & KIRSTY CHILDMINDING.
Dedicated Schools Grant BG0015,DSG Early Years Block,Transfer Payments,510030,School Children,03/04/2024,4253721-40715,"1,226.16",EMMA & KIRSTY CHILDMINDING.
Neighbourhoods and Climate Change,Environmental Services,Supplies and Services,384956,Miscellaneous Expenses,03/04/2024,4253722-H00168824,"4,070.00",ENVIRONMENT AGENCY.
Regeneration Economy and Growth,Corporate Property and Land,Construction work A908,908105,Construction work,03/04/2024,4253723-181466,"108,706.16",ESH CONSTRUCTION LTD FORMERLY LUMSDEN & CARROLL CONSTRUCTION LTD.
Regeneration Economy and Growth,Transport and Contract Services,Supplies and Services,338080,Services,03/04/2024,4253724-6764,"1,425.60",ESP SYSTEX LTD.
Regeneration Economy and Growth,Transport and Contract Services,Supplies and Services,338080,Services,03/04/2024,4253724-7041,"1,641.60",ESP SYSTEX LTD.
Neighbourhoods and Climate Change,Environmental Services,Supplies and Services,338047,Services,03/04/2024,4253728-INV-24-0449,"4,000.00",EXPERIENCE COMMUNITY CIC.
Dedicated Schools Grant BG0015,DSG Early Years Block,Transfer Payments,510032,School Children,03/04/2024,4253729-40287,"43,796.03",EXPLORERS DAY CARE.
Dedicated Schools Grant BG0015,DSG Early Years Block,Transfer Payments,510030,School Children,03/04/2024,4253729-40834,"105,241.50",EXPLORERS DAY CARE.
Adult and Health Services,Commissioning inc Supporting People,Third Party Payments,479102,Purchase of Care,03/04/2024,4253733-FEB24-0007,"12,500.00",FAMILY ACTION T/A PAC-UK LTD.
Dedicated Schools Grant BG0015,DSG Early Years Block,Transfer Payments,510032,School Children,03/04/2024,4253734-40288,"10,427.63",FIRST STEPS NURSERY.
Dedicated Schools Grant BG0015,DSG Early Years Block,Transfer Payments,510030,School Children,03/04/2024,4253734-40835,"32,678.10",FIRST STEPS NURSERY.
Resources BK0010,Legal & Democratic Services,Supplies and Services,338105,Services,03/04/2024,4253736-PNC2024/0049,525.00,FORENSIC PATHOLOGY LTD.
Children and Young Peoples Services,Head of Education and Skills,Transport,230007,Contract Hire,03/04/2024,4253739-6518,"3,311.34",GEM TRAVEL.
Dedicated Schools Grant BG0015,DSG Early Years Block,Transfer Payments,510032,School Children,03/04/2024,4253743-40290,"18,769.73",GIANT STEPS LTD.
Dedicated Schools Grant BG0015,DSG Early Years Block,Transfer Payments,510030,School Children,03/04/2024,4253743-40837,"35,252.10",GIANT STEPS LTD.
Dedicated Schools Grant BG0015,DSG Early Years Block,Transfer Payments,510032,School Children,03/04/2024,4253745-40307,"36,044.83",GLOW CHURCH T/A LITTLE CUBS DAY NURSERY.
Dedicated Schools Grant BG0015,DSG Early Years Block,Transfer Payments,510030,School Children,03/04/2024,4253745-40854,"66,977.82",GLOW CHURCH T/A LITTLE CUBS DAY NURSERY.
Dedicated Schools Grant BG0015,DSG Early Years Block,Transfer Payments,510032,School Children,03/04/2024,4253750-40409,"5,410.78",GREEN LANE NURSERY & CHILDCARE CENTRE.
Dedicated Schools Grant BG0015,DSG Early Years Block,Transfer Payments,510030,School Children,03/04/2024,4253750-40687,"14,004.90",GREEN LANE NURSERY & CHILDCARE CENTRE.
Children and Young Peoples Services,Head of Education and Skills,Supplies and Services,384199,Miscellaneous Expenses,03/04/2024,4253754-SI-0001250,"10,000.00",GROUNDWORK NORTH EAST.
Adult and Health Services,Head of Adults,Transport,230005,Contract Hire,03/04/2024,4253756-198,"1,075.20",HAMLET TAXIS.
Dedicated Schools Grant BG0015,DSG Early Years Block,Transfer Payments,510032,School Children,03/04/2024,4253757-40291,"22,940.78",HAPPY TIMES DAYCARE LTD.
Dedicated Schools Grant BG0015,DSG Early Years Block,Transfer Payments,510032,School Children,03/04/2024,4253758-40277,"19,812.49",HAPPYTIMES DAYCARE LTD.
Dedicated Schools Grant BG0015,DSG Early Years Block,Transfer Payments,510030,School Children,03/04/2024,4253758-40820,"16,537.95",HAPPYTIMES DAYCARE LTD.
Dedicated Schools Grant BG0015,DSG Early Years Block,Transfer Payments,510030,School Children,03/04/2024,4253759-40838,"30,820.73",HARTSIDE PRIMARY ACADEMY.
Dedicated Schools Grant BG0015,DSG Early Years Block,Transfer Payments,510032,School Children,03/04/2024,4253763-40292,"37,539.45",HAYSTACKS NURSERY..
Dedicated Schools Grant BG0015,DSG Early Years Block,Transfer Payments,510030,School Children,03/04/2024,4253763-40839,"59,705.10",HAYSTACKS NURSERY..
Dedicated Schools Grant BG0015,DSG Early Years Block,Transfer Payments,510032,School Children,03/04/2024,4253764-40293,"8,342.10",HAZEL DENE CHILDCARE LTD.
Dedicated Schools Grant BG0015,DSG Early Years Block,Transfer Payments,510030,School Children,03/04/2024,4253764-40840,"6,765.53",HAZEL DENE CHILDCARE LTD.
Neighbourhoods and Climate Change,Highways,Third Party Payments,430100,Rendered by Private Contractors,03/04/2024,4253770-3627,"8,557.50",HIGHWAY CONSTRUCTION SERVICES LTD.
Neighbourhoods and Climate Change,Highways,Third Party Payments,430100,Rendered by Private Contractors,03/04/2024,4253770-3628,"8,880.00",HIGHWAY CONSTRUCTION SERVICES LTD.
Dedicated Schools Grant BG0015,DSG Early Years Block,Transfer Payments,510032,School Children,03/04/2024,4253771-40295,"13,503.77",HIPPITOTS LTD.
Dedicated Schools Grant BG0015,DSG Early Years Block,Transfer Payments,510030,School Children,03/04/2024,4253771-40841,"42,850.08",HIPPITOTS LTD.
Children and Young Peoples Services,Head of Education and Skills,Transport,230007,Contract Hire,03/04/2024,4253772-24580,"2,800.00",HODGSONS COACH OPERATORS LTD.
Children and Young Peoples Services,Head of Education and Skills,Transport,230007,Contract Hire,03/04/2024,4253772-24585,"2,400.00",HODGSONS COACH OPERATORS LTD.
Neighbourhoods and Climate Change,Partnerships & Community Engagement Div.,Supplies and Services,384086,Miscellaneous Expenses,03/04/2024,4253774-VOUCHERMCLI06-23,600.00,HORDEN CENTENNIAL CENTRE.
Dedicated Schools Grant BG0015,DSG Early Years Block,Transfer Payments,510032,School Children,03/04/2024,4253775-40296,"34,063.58",HOUSE OF EDEN LTD.
Dedicated Schools Grant BG0015,DSG Early Years Block,Transfer Payments,510030,School Children,03/04/2024,4253775-40842,"51,117.30",HOUSE OF EDEN LTD.
Dedicated Schools Grant BG0015,DSG Early Years Block,Transfer Payments,510032,School Children,03/04/2024,4253776-40298,"11,470.39",HOWLETCH & SHOTTON CHILDCARE LTD.
Dedicated Schools Grant BG0015,DSG Early Years Block,Transfer Payments,510030,School Children,03/04/2024,4253776-40845,"20,691.45",HOWLETCH & SHOTTON CHILDCARE LTD.
Dedicated Schools Grant BG0015,DSG Early Years Block,Transfer Payments,510032,School Children,03/04/2024,4253777-40299,"23,983.54",HOWLETCH & SHOTTON CHILDCARE LTD.
Dedicated Schools Grant BG0015,DSG Early Years Block,Transfer Payments,510030,School Children,03/04/2024,4253777-40846,"34,579.35",HOWLETCH & SHOTTON CHILDCARE LTD.
Regeneration Economy and Growth,Corporate Property and Land,Supplies and Services,338066,Services,03/04/2024,4253779-22602,"2,350.00",IDENTITY CONSULT LTD.*
Neighbourhoods and Climate Change,Highways,Supplies and Services,304221,Equipment and Materials,03/04/2024,4253783-929829,"3,156.16",INSTARMAC GROUP PLC.
Neighbourhoods and Climate Change,Environmental Services,Supplies and Services,384700,Miscellaneous Expenses,03/04/2024,4253786-RES-03-2024-548,"13,212.50",J & J CLARK & SONS.
Dedicated Schools Grant BG0015,DSG Early Years Block,Transfer Payments,510030,School Children,03/04/2024,4253799-40740,"9,189.18",JIGSAW LEARNING TRUST.
Regeneration Economy and Growth,Culture Sport and Tourism,Supplies and Services,324117,Provisions E324,03/04/2024,4253801-INV23412316,745.28,JIMMY PRODUCTS UK LTD.
Regeneration Economy and Growth,Corporate Property and Land,Supplies and Services,304221,Equipment and Materials,03/04/2024,4253813-0108/00038373,760.96,JT DOVE LTD.
Neighbourhoods and Climate Change,Environmental Services,Supplies and Services,304259,Equipment and Materials,03/04/2024,4253813-0123/01186821,636.00,JT DOVE LTD.
Regeneration Economy and Growth,Corporate Property and Land,Supplies and Services,304221,Equipment and Materials,03/04/2024,4253813-0303/01189358,"2,519.45",JT DOVE LTD.
Dedicated Schools Grant BG0015,DSG Early Years Block,Transfer Payments,510032,School Children,03/04/2024,4253820-40434,"5,213.81",KELLOE PHOENIX CENTRE (CHILDCARE).
Dedicated Schools Grant BG0015,DSG Early Years Block,Transfer Payments,510030,School Children,03/04/2024,4253820-40710,"7,266.68",KELLOE PHOENIX CENTRE (CHILDCARE).
Dedicated Schools Grant BG0015,DSG Early Years Block,Transfer Payments,510032,School Children,03/04/2024,4253827-40304,"7,299.34",KIDZ VILLAGE LTD.
Dedicated Schools Grant BG0015,DSG Early Years Block,Transfer Payments,510030,School Children,03/04/2024,4253827-40850,"20,296.58",KIDZ VILLAGE LTD.
Dedicated Schools Grant BG0015,DSG Early Years Block,Transfer Payments,510032,School Children,03/04/2024,4253828-40438,"10,775.21",KIDZONE.
Dedicated Schools Grant BG0015,DSG Early Years Block,Transfer Payments,510032,School Children,03/04/2024,4253830-40439,"3,475.88",KIRK MERRINGTON PRE SCHOOL.
Dedicated Schools Grant BG0015,DSG Early Years Block,Transfer Payments,510030,School Children,03/04/2024,4253830-40713,"6,214.26",KIRK MERRINGTON PRE SCHOOL.
Dedicated Schools Grant BG0015,DSG Early Years Block,Transfer Payments,510032,School Children,03/04/2024,4253831-40440,"5,746.78",KIRKLANDS DAY NURSERY.
Dedicated Schools Grant BG0015,DSG Early Years Block,Transfer Payments,510030,School Children,03/04/2024,4253831-40714,"8,673.21",KIRKLANDS DAY NURSERY.
Dedicated Schools Grant BG0015,DSG Early Years Block,Transfer Payments,510032,School Children,03/04/2024,4253842-40446,"14,251.09",LEADGATE CHILD CENTRE LTD.
Dedicated Schools Grant BG0015,DSG Early Years Block,Transfer Payments,510030,School Children,03/04/2024,4253842-40720,"15,034.50",LEADGATE CHILD CENTRE LTD.
Dedicated Schools Grant BG0015,DSG Early Years Block,Transfer Payments,510030,School Children,03/04/2024,4253848-40897,"32,186.70",LINGFIELD EDUCATION TRUST T/A WOODHAM BURN COMMUNITY PRIMARY SCHOOL.
Dedicated Schools Grant BG0015,DSG Early Years Block,Transfer Payments,510032,School Children,03/04/2024,4253852-40449,"4,507.05",LITLE MEADOWS NURSERY.
Dedicated Schools Grant BG0015,DSG Early Years Block,Transfer Payments,510030,School Children,03/04/2024,4253852-40724,"5,142.67",LITLE MEADOWS NURSERY.
Dedicated Schools Grant BG0015,DSG Early Years Block,Transfer Payments,510032,School Children,03/04/2024,4253853-40448,"3,475.88",LITTLE ACORNS NORTH EAST LTD.
Dedicated Schools Grant BG0015,DSG Early Years Block,Transfer Payments,510030,School Children,03/04/2024,4253853-40723,"7,663.50",LITTLE ACORNS NORTH EAST LTD.
Dedicated Schools Grant BG0015,DSG Early Years Block,Transfer Payments,510032,School Children,03/04/2024,4253855-40308,"14,598.68",LITTLE STARS EARLY YEARS.
Dedicated Schools Grant BG0015,DSG Early Years Block,Transfer Payments,510030,School Children,03/04/2024,4253855-40855,"19,260.93",LITTLE STARS EARLY YEARS.
Dedicated Schools Grant BG0015,DSG Early Years Block,Transfer Payments,510032,School Children,03/04/2024,4253856-40452,"5,561.40",LITTLE WAVES DAY NURSERY LTD.
Dedicated Schools Grant BG0015,DSG Early Years Block,Transfer Payments,510030,School Children,03/04/2024,4253856-40727,"13,029.90",LITTLE WAVES DAY NURSERY LTD.
Children and Young Peoples Services,Head of Early Help Inclusion & Vulnerable Children.,Supplies and Services,344033,Telephones,03/04/2024,4253864-12662728,"1,587.00",MAINTEL EUROPE LTD.
Resources BK0010,Procurement Sales & Business Services,Supplies and Services,344033,Telephones,03/04/2024,4253864-12662804,"10,890.25",MAINTEL EUROPE LTD.
Resources BK0010,Digital Services,Intangible Assets,917001,Software capitalised licence fees,03/04/2024,4253864-12662851,"20,410.00",MAINTEL EUROPE LTD.
Resources BK0010,Digital Services,Intangible Assets,917001,Software capitalised licence fees,03/04/2024,4253864-12662862,"2,100.00",MAINTEL EUROPE LTD.
Children and Young Peoples Services,Head of Early Help Inclusion & Vulnerable Children.,Vehicles Equipment Furniture and Fittings,912529,Purchase-equipment,03/04/2024,4253864-12662875,"12,834.94",MAINTEL EUROPE LTD.
Children and Young Peoples Services,Head of Education and Skills,Transport,230008,Contract Hire,03/04/2024,4253868-E048-FEBRUARY2024,"2,016.00",MARK & JOHN CHISHOLM T/A (CHEVRON).
Regeneration Economy and Growth,Planning & Housing,Supplies and Services,342053,Computers and Communications,03/04/2024,4253876-194,"32,000.00",METASTREET LTD.
Regeneration Economy and Growth,Culture Sport and Tourism,Supplies and Services,324001,Provisions E324,03/04/2024,4253886-907574804,"1,334.52",MOLSON COORS BREWING COMPANY (UK) LTD.
Regeneration Economy and Growth,Culture Sport and Tourism,Supplies and Services,324001,Provisions E324,03/04/2024,4253886-907590870,"1,061.30",MOLSON COORS BREWING COMPANY (UK) LTD.
Neighbourhoods and Climate Change,Partnerships & Community Engagement Div.,Supplies and Services,384086,Miscellaneous Expenses,03/04/2024,4253903-VOUCHERADCR06-23,980.00,MURTON WELFARE ASSOCIATION.
Children and Young Peoples Services,Head of Childrens Social Care,Supplies and Services,384500,Miscellaneous Expenses,03/04/2024,4253904-7035,"1,000.00",NANCY MAILLIE T/A NM TRAUMA RECOVERY.
Dedicated Schools Grant BG0015,DSG Early Years Block,Transfer Payments,510032,School Children,03/04/2024,4253908-40461,"6,256.58",NELLIE`S DAY NURSERY LTD.
Dedicated Schools Grant BG0015,DSG Early Years Block,Transfer Payments,510030,School Children,03/04/2024,4253908-40737,"7,918.95",NELLIE`S DAY NURSERY LTD.
Dedicated Schools Grant BG0015,DSG Early Years Block,Transfer Payments,510032,School Children,03/04/2024,4253909-40462,"6,951.75",NEW BEGINNINGS (MOORSIDE) CO LTD.
Dedicated Schools Grant BG0015,DSG Early Years Block,Transfer Payments,510030,School Children,03/04/2024,4253909-40738,"11,302.20",NEW BEGINNINGS (MOORSIDE) CO LTD.
Dedicated Schools Grant BG0015,DSG Early Years Block,Transfer Payments,510032,School Children,03/04/2024,4253910-40388,"3,475.88",NEW COLLEGE DURHAM ACADEMIES TRUST (NCDAT).
Dedicated Schools Grant BG0015,DSG Early Years Block,Transfer Payments,510030,School Children,03/04/2024,4253910-40665,"10,774.73",NEW COLLEGE DURHAM ACADEMIES TRUST (NCDAT).
Dedicated Schools Grant BG0015,DSG Early Years Block,Transfer Payments,510032,School Children,03/04/2024,4253911-40317,"16,684.20",NEW COLLEGE DURHAM ACADEMIES TRUST (NCDAT).
Dedicated Schools Grant BG0015,DSG Early Years Block,Transfer Payments,510030,School Children,03/04/2024,4253911-40864,"46,606.95",NEW COLLEGE DURHAM ACADEMIES TRUST (NCDAT).
Dedicated Schools Grant BG0015,DSG Early Years Block,Transfer Payments,510032,School Children,03/04/2024,4253912-40275,"7,299.34",NEW COLLEGE DURHAM ACADEMIES TRUST (NCDAT).
Dedicated Schools Grant BG0015,DSG Early Years Block,Transfer Payments,510030,School Children,03/04/2024,4253912-40815,"2,255.18",NEW COLLEGE DURHAM ACADEMIES TRUST (NCDAT).
Children and Young Peoples Services,Head of Education and Skills,Third Party Payments,410037,Rendered by Other Local Authorities,03/04/2024,4253918-SI/00154,"3,060.00",NORTH EAST LEARNING TRUST (NELT).
Dedicated Schools Grant BG0015,DSG Early Years Block,Transfer Payments,510030,School Children,03/04/2024,4253919-40735,"4,701.06",NORTH EAST LEARNING TRUST (NELT).
Neighbourhoods and Climate Change,Environmental Services,Transport,210057,Repair and Maintenance of Vehicles,03/04/2024,4253920-1930490,529.80,NORTH EAST TRUCK & VAN LTD.
Dedicated Schools Grant BG0015,DSG Early Years Block,Transfer Payments,510032,School Children,03/04/2024,4253921-40491,"3,823.46",NORTHUMBRIA DAY NURSERIES LTD T/A WOODLANDS DAY NURSERY.
Dedicated Schools Grant BG0015,DSG Early Years Block,Transfer Payments,510030,School Children,03/04/2024,4253921-40775,"4,176.90",NORTHUMBRIA DAY NURSERIES LTD T/A WOODLANDS DAY NURSERY.
Children and Young Peoples Services,Head of Childrens Social Care,Premises,135005,Water Services,03/04/2024,4253922-267964020029481949,554.56,NORTHUMBRIAN WATER LTD.
Regeneration Economy and Growth,Planning & Housing,Premises,135005,Water Services,03/04/2024,4253922-383127020029528144,"2,511.75",NORTHUMBRIAN WATER LTD.
Regeneration Economy and Growth,Planning & Housing,Premises,135005,Water Services,03/04/2024,4253922-984981020029528085,"1,908.93",NORTHUMBRIAN WATER LTD.
Dedicated Schools Grant BG0015,DSG Early Years Block,Transfer Payments,510032,School Children,03/04/2024,4253924-40315,"29,197.35",NURSERYTIME LTD.
Dedicated Schools Grant BG0015,DSG Early Years Block,Transfer Payments,510030,School Children,03/04/2024,4253924-40862,"34,579.35",NURSERYTIME LTD.
Dedicated Schools Grant BG0015,DSG Early Years Block,Transfer Payments,510030,School Children,03/04/2024,4253926-40882,"23,587.20",ONE EXCELLENCE MULTI ACADEMY TRUST.
Dedicated Schools Grant BG0015,DSG Early Years Block,Transfer Payments,510030,School Children,03/04/2024,4253927-40833,"6,130.80",ONE EXCELLENCE MULTI ACADEMY TRUST.
Regeneration Economy and Growth,Corporate Property and Land,Third Party Payments,430100,Rendered by Private Contractors,03/04/2024,4253929-11830-05,"7,305.93",OPUS BUILDING SERVICES LTD.
Regeneration Economy and Growth,Corporate Property and Land,Third Party Payments,430100,Rendered by Private Contractors,03/04/2024,4253929-12010-17,"4,485.53",OPUS BUILDING SERVICES LTD.
Regeneration Economy and Growth,Corporate Property and Land,Third Party Payments,430100,Rendered by Private Contractors,03/04/2024,4253929-12580-52,518.50,OPUS BUILDING SERVICES LTD.
Regeneration Economy and Growth,Corporate Property and Land,Third Party Payments,430100,Rendered by Private Contractors,03/04/2024,4253929-12580-53,"1,065.53",OPUS BUILDING SERVICES LTD.
Regeneration Economy and Growth,Corporate Property and Land,Third Party Payments,430100,Rendered by Private Contractors,03/04/2024,4253929-12580-54,"1,342.00",OPUS BUILDING SERVICES LTD.
Regeneration Economy and Growth,Corporate Property and Land,Third Party Payments,430100,Rendered by Private Contractors,03/04/2024,4253929-12580-55,"1,252.88",OPUS BUILDING SERVICES LTD.
Regeneration Economy and Growth,Corporate Property and Land,Third Party Payments,430100,Rendered by Private Contractors,03/04/2024,4253929-12580-56,"1,053.38",OPUS BUILDING SERVICES LTD.
Regeneration Economy and Growth,Corporate Property and Land,Third Party Payments,430100,Rendered by Private Contractors,03/04/2024,4253929-12580-57,"1,265.48",OPUS BUILDING SERVICES LTD.
Regeneration Economy and Growth,Corporate Property and Land,Third Party Payments,430100,Rendered by Private Contractors,03/04/2024,4253929-12685-01,"29,512.24",OPUS BUILDING SERVICES LTD.
Regeneration Economy and Growth,Corporate Property and Land,Third Party Payments,430100,Rendered by Private Contractors,03/04/2024,4253933-3857,990.00,PARAMOUNT CEILINGS & PARTITIONS LTD.
Neighbourhoods and Climate Change,Environmental Services,Transport,210057,Repair and Maintenance of Vehicles,03/04/2024,4253935-26345849,601.00,PARTSPLUS.
Children and Young Peoples Services,Head of Education and Skills,Supplies and Services,384199,Miscellaneous Expenses,03/04/2024,4253943-23/24-07,"1,123.50",PGI SMITH SOLUTIONS LTD.
Regeneration Economy and Growth,Corporate Property and Land,Supplies and Services,338066,Services,03/04/2024,4253945-6811776,"21,878.50",PINSENT MASONS LLP.
Dedicated Schools Grant BG0015,DSG Early Years Block,Transfer Payments,510032,School Children,03/04/2024,4253947-40319,"28,154.59",PLAYDAY NURSERY.
Dedicated Schools Grant BG0015,DSG Early Years Block,Transfer Payments,510030,School Children,03/04/2024,4253947-40867,"46,606.95",PLAYDAY NURSERY.
Dedicated Schools Grant BG0015,DSG Early Years Block,Transfer Payments,510032,School Children,03/04/2024,4253948-40465,"2,780.70",PLAYOLOGY LTD.
Dedicated Schools Grant BG0015,DSG Early Years Block,Transfer Payments,510030,School Children,03/04/2024,4253948-40742,"6,240.78",PLAYOLOGY LTD.
Dedicated Schools Grant BG0015,DSG Early Years Block,Transfer Payments,510030,School Children,03/04/2024,4253949-40868,"11,651.74",PLAYOLOGY LTD.
Adult and Health Services,Head of Adults,Third Party Payments,478151,Purchase of Care,03/04/2024,4253950-77002885,"2,368.35",POTENSIAL LTD T/A POTENS.
Regeneration Economy and Growth,Corporate Property and Land,Supplies and Services,338027,Services,03/04/2024,4253954-90239435,"5,637.74",PROPERTY MANAGEMENT INTEGRATED SERVICE & EMPLOYMENT CO LTD.
Dedicated Schools Grant BG0015,DSG Early Years Block,Transfer Payments,510032,School Children,03/04/2024,4253961-40468,"9,732.45",RAINBOW NURSERY LTD (MIDDLESTONE MOOR).
Dedicated Schools Grant BG0015,DSG Early Years Block,Transfer Payments,510030,School Children,03/04/2024,4253961-40745,"20,547.15",RAINBOW NURSERY LTD (MIDDLESTONE MOOR).
Regeneration Economy and Growth,Business Durham,Supplies and Services,336005,Advertising E336,03/04/2024,4253964-INV-2786,"3,000.00",RESOLUTION MEDIA & PUBLISHING LTD T/A WEAR BUSINESS
Dedicated Schools Grant BG0015,DSG Early Years Block,Transfer Payments,510030,School Children,03/04/2024,4253965-40746,"19,544.85",RIBBON ACADEMY TRUST.
Dedicated Schools Grant BG0015,DSG Early Years Block,Transfer Payments,510032,School Children,03/04/2024,4253966-40470,"19,464.90",RIBBON DAYCARE LTD.
Dedicated Schools Grant BG0015,DSG Early Years Block,Transfer Payments,510030,School Children,03/04/2024,4253966-40747,"19,110.52",RIBBON DAYCARE LTD.
Children and Young Peoples Services,Head of Education and Skills,Supplies and Services,304259,Equipment and Materials,03/04/2024,4253971-DE7405697,759.71,RM EDUCATIONAL RESOURCES T/A TTS.
Dedicated Schools Grant BG0015,DSG Early Years Block,Transfer Payments,510032,School Children,03/04/2024,4253986-40322,"26,069.06",SEAHAM KINDERGARTEN LTD.
Dedicated Schools Grant BG0015,DSG Early Years Block,Transfer Payments,510030,School Children,03/04/2024,4253986-40871,"52,620.75",SEAHAM KINDERGARTEN LTD.
Dedicated Schools Grant BG0015,DSG Early Years Block,Transfer Payments,510030,School Children,03/04/2024,4253988-40872,"1,474.20",SEDGEFIELD OUT OF SCHOOL FUN CLUB.
Dedicated Schools Grant BG0015,DSG Early Years Block,Transfer Payments,510032,School Children,03/04/2024,4253993-40473,"3,128.29",SHINING STARS PARKHILL LTD.
Dedicated Schools Grant BG0015,DSG Early Years Block,Transfer Payments,510030,School Children,03/04/2024,4253993-40751,"7,207.20",SHINING STARS PARKHILL LTD.
Dedicated Schools Grant BG0015,DSG Early Years Block,Transfer Payments,510032,School Children,03/04/2024,4253995-40324,"33,368.40",SHOTLEY BRIDGE NURSERY SCHOOL LTD.
Dedicated Schools Grant BG0015,DSG Early Years Block,Transfer Payments,510030,School Children,03/04/2024,4253995-40874,"52,620.75",SHOTLEY BRIDGE NURSERY SCHOOL LTD.
Resources BK0010,Transactional & Customer Services,Supplies and Services,304259,Equipment and Materials,03/04/2024,4253996-CI41197,"1,260.00",SKYGUARD LTD T/A PEOPLESAFE.
Regeneration Economy and Growth,Corporate Property and Land,Third Party Payments,430100,Rendered by Private Contractors,03/04/2024,4254001-9095,"20,975.00",ST ASTIER LTD.
Dedicated Schools Grant BG0015,DSG Early Years Block,Transfer Payments,510032,School Children,03/04/2024,4254002-40327,"23,253.61",ST OSWALD`S PRE SCHOOL LEARNING CENTRE.
Dedicated Schools Grant BG0015,DSG Early Years Block,Transfer Payments,510030,School Children,03/04/2024,4254002-40883,"50,638.77",ST OSWALD`S PRE SCHOOL LEARNING CENTRE.
Dedicated Schools Grant BG0015,DSG Early Years Block,Transfer Payments,510032,School Children,03/04/2024,4254003-40326,"5,213.81",STANLEY LEARNING PARTNERSHIP.
Dedicated Schools Grant BG0015,DSG Early Years Block,Transfer Payments,510030,School Children,03/04/2024,4254003-40876,"27,588.60",STANLEY LEARNING PARTNERSHIP.
Dedicated Schools Grant BG0015,DSG Early Years Block,Transfer Payments,510030,School Children,03/04/2024,4254004-40822,"5,863.46",STANLEY LEARNING PARTNERSHIP.
Dedicated Schools Grant BG0015,DSG Early Years Block,Transfer Payments,510030,School Children,03/04/2024,4254005-40669,"12,278.18",STANLEY LEARNING PARTNERSHIP.
Dedicated Schools Grant BG0015,DSG Early Years Block,Transfer Payments,510032,School Children,03/04/2024,4254006-40442,"5,561.40",STANLEY LEARNING PARTNERSHIP.
Dedicated Schools Grant BG0015,DSG Early Years Block,Transfer Payments,510030,School Children,03/04/2024,4254006-40716,"12,039.30",STANLEY LEARNING PARTNERSHIP.
Dedicated Schools Grant BG0015,DSG Early Years Block,Transfer Payments,510030,School Children,03/04/2024,4254007-40653,"6,897.15",STANLEY LEARNING PARTNERSHIP.
Dedicated Schools Grant BG0015,DSG Early Years Block,Transfer Payments,510030,School Children,03/04/2024,4254008-40819,"7,517.25",STANLEY LEARNING PARTNERSHIP.
Children and Young Peoples Services,Head of Education and Skills,Transport,230007,Contract Hire,03/04/2024,4254009-10136,"1,457.28",STANLEY TRAVEL (NORTH EAST) LTD.
Children and Young Peoples Services,Head of Education and Skills,Transport,230034,Contract Hire,03/04/2024,4254009-10137,"2,826.90",STANLEY TRAVEL (NORTH EAST) LTD.
Dedicated Schools Grant BG0015,DSG Early Years Block,Transfer Payments,510032,School Children,03/04/2024,4254010-40477,"1,737.94",STEPPING STONES DAY NURSERY (DURHAM).
Dedicated Schools Grant BG0015,DSG Early Years Block,Transfer Payments,510030,School Children,03/04/2024,4254010-40760,"6,013.80",STEPPING STONES DAY NURSERY (DURHAM).
Neighbourhoods and Climate Change,Highways,Supplies and Services,304221,Equipment and Materials,03/04/2024,4254013-47508,821.76,STONEGRAVE AGGREGATES LTD.
Neighbourhoods and Climate Change,Highways,Supplies and Services,304221,Equipment and Materials,03/04/2024,4254013-47510,"5,305.20",STONEGRAVE AGGREGATES LTD.
Dedicated Schools Grant BG0015,DSG Early Years Block,Transfer Payments,510032,School Children,03/04/2024,4254014-40478,"11,122.80",SUNSHINE DAY NURSERY LTD.
Dedicated Schools Grant BG0015,DSG Early Years Block,Transfer Payments,510030,School Children,03/04/2024,4254014-40761,"18,903.30",SUNSHINE DAY NURSERY LTD.
Dedicated Schools Grant BG0015,DSG Early Years Block,Transfer Payments,510032,School Children,03/04/2024,4254015-40480,"3,128.29",SUNSHINE DAY NURSERY LTD.
Dedicated Schools Grant BG0015,DSG Early Years Block,Transfer Payments,510030,School Children,03/04/2024,4254015-40763,"8,770.13",SUNSHINE DAY NURSERY LTD.
Dedicated Schools Grant BG0015,DSG High Needs Block,Transfer Payments,510025,School Children,03/04/2024,4254015-RES-03-2024-544,"1,459.60",SUNSHINE DAY NURSERY LTD.
Dedicated Schools Grant BG0015,DSG Early Years Block,Transfer Payments,510032,School Children,03/04/2024,4254016-40479,"9,384.86",SUNSHINE DAY NURSERY LTD.
Dedicated Schools Grant BG0015,DSG Early Years Block,Transfer Payments,510030,School Children,03/04/2024,4254016-40762,"18,136.95",SUNSHINE DAY NURSERY LTD.
Neighbourhoods and Climate Change,Highways,Supplies and Services,304221,Equipment and Materials,03/04/2024,4254023-9048135069,588.13,TARMAC TRADING LTD.
Neighbourhoods and Climate Change,Highways,Supplies and Services,304221,Equipment and Materials,03/04/2024,4254023-9048135070,831.18,TARMAC TRADING LTD.
Neighbourhoods and Climate Change,Highways,Supplies and Services,304221,Equipment and Materials,03/04/2024,4254023-9048136259,"1,335.48",TARMAC TRADING LTD.
Neighbourhoods and Climate Change,Highways,Supplies and Services,304221,Equipment and Materials,03/04/2024,4254023-9048147315,942.05,TARMAC TRADING LTD.
Children and Young Peoples Services,Head of Education and Skills,Transport,230007,Contract Hire,03/04/2024,4254026-INV-0276,"2,240.00",TEESDALE PASSENGER TRANSPORT LTD T/A FIGGY BUS & FIGGY`S TAXIS.
Adult and Health Services,Public Health CC0450,Third Party Payments,460803,Contract Payments,03/04/2024,4254030-7473,"1,665.15",THE DURHAM CENTRE LTD.
Dedicated Schools Grant BG0015,DSG Early Years Block,Transfer Payments,510030,School Children,03/04/2024,4254031-40889,"2,729.34",THE EDUCATION PARTNERSHIP (UK) LTD.
Dedicated Schools Grant BG0015,DSG Early Years Block,Transfer Payments,510030,School Children,03/04/2024,4254033-40750,"14,449.50",THE LAIDLAW SCHOOLS TRUST T/A SEDGEFIELD HARDWICK PRIMARY SCHOOL.
Dedicated Schools Grant BG0015,DSG Early Years Block,Transfer Payments,510032,School Children,03/04/2024,4254034-40482,"5,561.40",THE LAURELS CHILD CARE COMPANY LTD.
Dedicated Schools Grant BG0015,DSG Early Years Block,Transfer Payments,510030,School Children,03/04/2024,4254034-40766,"13,531.05",THE LAURELS CHILD CARE COMPANY LTD.
Dedicated Schools Grant BG0015,DSG Early Years Block,Transfer Payments,510032,School Children,03/04/2024,4254035-40329,"14,598.68",THE NURSERY.
Dedicated Schools Grant BG0015,DSG Early Years Block,Transfer Payments,510030,School Children,03/04/2024,4254035-40890,"33,827.63",THE NURSERY.
Regeneration Economy and Growth,Culture Sport and Tourism,Supplies and Services,384199,Miscellaneous Expenses,03/04/2024,4254037-1023,"42,000.00",THIRD VERSION CREATIVE LTD.
Neighbourhoods and Climate Change,Highways,Stock A926,926900,Stock in hand-Inventory system,03/04/2024,4254038-NSIN00110336,"1,448.86",THOMAS OWEN & SONS (NEWCASTLE) LTD.
Neighbourhoods and Climate Change,Highways,Stock A926,926900,Stock in hand-Inventory system,03/04/2024,4254038-NSIN00110337,723.64,THOMAS OWEN & SONS (NEWCASTLE) LTD.
Neighbourhoods and Climate Change,Highways,Stock A926,926900,Stock in hand-Inventory system,03/04/2024,4254038-NSIN00110339,921.43,THOMAS OWEN & SONS (NEWCASTLE) LTD.
Dedicated Schools Grant BG0015,DSG Early Years Block,Transfer Payments,510032,School Children,03/04/2024,4254039-40330,"28,154.59",TILLY MINTS CHERUBS DAY NURSERY LTD.
Dedicated Schools Grant BG0015,DSG Early Years Block,Transfer Payments,510030,School Children,03/04/2024,4254039-40891,"62,840.70",TILLY MINTS CHERUBS DAY NURSERY LTD.
Dedicated Schools Grant BG0015,DSG Early Years Block,Transfer Payments,510032,School Children,03/04/2024,4254040-40483,"3,823.46",TINY TINKERS NURSERY.
Dedicated Schools Grant BG0015,DSG Early Years Block,Transfer Payments,510030,School Children,03/04/2024,4254040-40767,"1,719.90",TINY TINKERS NURSERY.
Dedicated Schools Grant BG0015,DSG Early Years Block,Transfer Payments,510032,School Children,03/04/2024,4254041-40417,"10,427.63",TM NURSERY ENTERPRISES LTD T/A JACK IN THE BOX DAYCARE.
Dedicated Schools Grant BG0015,DSG Early Years Block,Transfer Payments,510030,School Children,03/04/2024,4254041-40696,"13,280.48",TM NURSERY ENTERPRISES LTD T/A JACK IN THE BOX DAYCARE.
Dedicated Schools Grant BG0015,DSG Early Years Block,Transfer Payments,510030,School Children,03/04/2024,4254044-40830,"48,110.40",TOGETHER LEARNING PARTNERSHIP (CLEVES CROSS PRIMARY SCHOOL).
Dedicated Schools Grant BG0015,DSG Early Years Block,Transfer Payments,510032,School Children,03/04/2024,4254045-40320,"9,384.86",TOGETHER LEARNING PARTNERSHIP (ROSA STREET PRIMARY SCHOOL).
Dedicated Schools Grant BG0015,DSG Early Years Block,Transfer Payments,510030,School Children,03/04/2024,4254045-40869,"43,600.05",TOGETHER LEARNING PARTNERSHIP (ROSA STREET PRIMARY SCHOOL).
Dedicated Schools Grant BG0015,DSG Early Years Block,Transfer Payments,510032,School Children,03/04/2024,4254047-40331,"21,480.91",TOTS `R` US.
Dedicated Schools Grant BG0015,DSG Early Years Block,Transfer Payments,510030,School Children,03/04/2024,4254047-40892,"35,252.10",TOTS `R` US.
Dedicated Schools Grant BG0015,DSG Early Years Block,Transfer Payments,510032,School Children,03/04/2024,4254055-40486,"3,823.46",TRIMDON`S LITTLE TYKES LTD.
Dedicated Schools Grant BG0015,DSG Early Years Block,Transfer Payments,510030,School Children,03/04/2024,4254055-40770,"2,756.33",TRIMDON`S LITTLE TYKES LTD.
Resources BK0010,Legal & Democratic Services,Supplies and Services,338042,Services,03/04/2024,4254056-312250/INVHM465,665.00,TRINITY CHAMBERS.
Resources BK0010,Legal & Democratic Services,Supplies and Services,338042,Services,03/04/2024,4254056-312250/INVKW782,720.00,TRINITY CHAMBERS.
Resources BK0010,Legal & Democratic Services,Supplies and Services,338042,Services,03/04/2024,4254056-313028/INVKW781,785.00,TRINITY CHAMBERS.
Dedicated Schools Grant BG0015,DSG Early Years Block,Transfer Payments,510030,School Children,03/04/2024,4254057-40759,"7,862.40",TUDHOE LEARNING TRUST.
Dedicated Schools Grant BG0015,DSG Early Years Block,Transfer Payments,510030,School Children,03/04/2024,4254058-40771,"6,641.70",TUDHOE LEARNING TRUST.
Dedicated Schools Grant BG0015,DSG Early Years Block,Transfer Payments,510030,School Children,03/04/2024,4254059-40752,"13,283.40",TUDHOE LEARNING TRUST.
Neighbourhoods and Climate Change,Highways,Supplies and Services,304221,Equipment and Materials,03/04/2024,4254062-257594,"1,443.70",TYNEDALE ROADSTONE LTD.
Neighbourhoods and Climate Change,Highways,Supplies and Services,304221,Equipment and Materials,03/04/2024,4254062-257595,872.45,TYNEDALE ROADSTONE LTD.
Neighbourhoods and Climate Change,Highways,Supplies and Services,304221,Equipment and Materials,03/04/2024,4254062-257596,"1,363.10",TYNEDALE ROADSTONE LTD.
Neighbourhoods and Climate Change,Highways,Supplies and Services,304221,Equipment and Materials,03/04/2024,4254062-257599,"1,602.55",TYNEDALE ROADSTONE LTD.
Regeneration Economy and Growth,Corporate Property and Land,Supplies and Services,304221,Equipment and Materials,03/04/2024,4254064-81226,"2,906.75",UK HEALTH SECURITY AGENCY (UKHSA).
Dedicated Schools Grant BG0015,DSG Early Years Block,Transfer Payments,510032,School Children,03/04/2024,4254068-40401,"4,866.23",UNIVERSITY OF DURHAM DAY NURSERY.
Dedicated Schools Grant BG0015,DSG Early Years Block,Transfer Payments,510030,School Children,03/04/2024,4254068-40679,"10,483.20",UNIVERSITY OF DURHAM DAY NURSERY.
Neighbourhoods and Climate Change,Highways,Third Party Payments,430100,Rendered by Private Contractors,03/04/2024,4254069-INV10582,"5,820.00",VELOCITY (UK) LTD.
Neighbourhoods and Climate Change,Highways,Third Party Payments,430100,Rendered by Private Contractors,03/04/2024,4254069-INV10583,"9,700.00",VELOCITY (UK) LTD.
Dedicated Schools Grant BG0015,DSG Early Years Block,Transfer Payments,510032,School Children,03/04/2024,4254072-40487,695.18,VICTORIA ROBINSON CHILDCARE.
Neighbourhoods and Climate Change,Highways,Supplies and Services,304221,Equipment and Materials,03/04/2024,4254075-30082,760.03,WARD TIMBER LTD.
Dedicated Schools Grant BG0015,DSG Early Years Block,Transfer Payments,510032,School Children,03/04/2024,4254078-40333,"30,240.11",WESTFIELD HOUSE NURSERY.
Dedicated Schools Grant BG0015,DSG Early Years Block,Transfer Payments,510030,School Children,03/04/2024,4254078-40894,"47,911.50",WESTFIELD HOUSE NURSERY.
Dedicated Schools Grant BG0015,DSG Early Years Block,Transfer Payments,510032,School Children,03/04/2024,4254080-40489,"7,646.93",WHEATLEY HILL COMMUNITY NURSERY LTD.
Dedicated Schools Grant BG0015,DSG Early Years Block,Transfer Payments,510030,School Children,03/04/2024,4254080-40773,"7,918.95",WHEATLEY HILL COMMUNITY NURSERY LTD.
Regeneration Economy and Growth,Corporate Property and Land,Third Party Payments,430100,Rendered by Private Contractors,03/04/2024,4254081-60899,"1,597.50",WILLOWCRETE MANUFACTURING COMPANY LTD (MFG).
Regeneration Economy and Growth,Corporate Property and Land,Third Party Payments,430100,Rendered by Private Contractors,03/04/2024,4254081-60902,939.24,WILLOWCRETE MANUFACTURING COMPANY LTD (MFG).
Dedicated Schools Grant BG0015,DSG Early Years Block,Transfer Payments,510032,School Children,03/04/2024,4254082-40490,"15,293.85",WINGATE COMMUNITY CHILDCARE LTD.
Dedicated Schools Grant BG0015,DSG Early Years Block,Transfer Payments,510030,School Children,03/04/2024,4254083-40895,"30,515.94",WITTON GILBERT PRE SCHOOL.
Neighbourhoods and Climate Change,Environmental Services,Supplies and Services,338045,Services,03/04/2024,4254084-3768022DUR/0068,"1,800.00",WOMBLE BOND DICKINSON (UK) LLP.
Dedicated Schools Grant BG0015,DSG Early Years Block,Transfer Payments,510032,School Children,03/04/2024,4254085-40492,"11,817.98",YORK HOUSE NURSERY.
Dedicated Schools Grant BG0015,DSG Early Years Block,Transfer Payments,510030,School Children,03/04/2024,4254085-40776,"19,862.25",YORK HOUSE NURSERY.
Dedicated Schools Grant BG0015,DSG Early Years Block,Transfer Payments,510032,School Children,03/04/2024,4254087-40336,"3,058.77",YOUR CO-OP LITTLE PIONEERS NURSERY & PRE SCHOOL.
Dedicated Schools Grant BG0015,DSG Early Years Block,Transfer Payments,510030,School Children,03/04/2024,4254087-40900,"15,034.50",YOUR CO-OP LITTLE PIONEERS NURSERY & PRE SCHOOL.
Neighbourhoods and Climate Change,Environmental Services,Transport,215005,Running Costs of Vehicles,03/04/2024,4254088-1143972,"13,809.60",YOUR NRG LTD.
Neighbourhoods and Climate Change,Environmental Services,Transport,215005,Running Costs of Vehicles,03/04/2024,4254088-1143974,"9,230.40",YOUR NRG LTD.
Neighbourhoods and Climate Change,Environmental Services,Transport,215005,Running Costs of Vehicles,03/04/2024,4254088-1143990,"3,489.90",YOUR NRG LTD.
Neighbourhoods and Climate Change,Environmental Services,Transport,215005,Running Costs of Vehicles,03/04/2024,4254088-1145563,"9,232.71",YOUR NRG LTD.
Neighbourhoods and Climate Change,Highways,Supplies and Services,304221,Equipment and Materials,03/04/2024,4254089-145560298,"1,386.00",ZG LIGHTING (UK) LTD.
Neighbourhoods and Climate Change,Highways,Third Party Payments,430100,Rendered by Private Contractors,03/04/2024,4254089-145561581,"6,380.00",ZG LIGHTING (UK) LTD.
Dedicated Schools Grant BG0015,DSG Early Years Block,Transfer Payments,510032,School Children,03/04/2024,4253556-40396,"3,475.88",AD ASTRA ACADEMY TRUST T/A DEAF HILL PRIMARY SCHOOL.
Dedicated Schools Grant BG0015,DSG Early Years Block,Transfer Payments,510030,School Children,03/04/2024,4253556-40674,"8,519.55",AD ASTRA ACADEMY TRUST T/A DEAF HILL PRIMARY SCHOOL.
Neighbourhoods and Climate Change,Partnerships & Community Engagement Div.,Supplies and Services,384086,Miscellaneous Expenses,03/04/2024,4253664-VOUCHERKAYC03-23,550.00,COUNDON & LEEHOLME COMMUNITY ASSOCIATION.
Neighbourhoods and Climate Change,Partnerships & Community Engagement Div.,Supplies and Services,384086,Miscellaneous Expenses,03/04/2024,4253671-VOUCHERSCOE04-23,999.00,CRUSE BEREAVEMENT CARE.
Dedicated Schools Grant BG0015,DSG Early Years Block,Transfer Payments,510032,School Children,03/04/2024,4253713-40475,"1,737.94",EDEN LEARNING TRUST T/A ST HELEN AUCKLAND COMMUNITY PRIMARY SCHOOL.
Dedicated Schools Grant BG0015,DSG Early Years Block,Transfer Payments,510030,School Children,03/04/2024,4253713-40756,"7,116.33",EDEN LEARNING TRUST T/A ST HELEN AUCKLAND COMMUNITY PRIMARY SCHOOL.
Dedicated Schools Grant BG0015,DSG Early Years Block,Transfer Payments,510032,School Children,03/04/2024,4253854-40455,"1,042.76",LITTLE BUDDIES CHILDCARE.
Dedicated Schools Grant BG0015,DSG Early Years Block,Transfer Payments,510030,School Children,03/04/2024,4253854-40729,737.10,LITTLE BUDDIES CHILDCARE.
Adult and Health Services,Public Health CC0450,Third Party Payments,460803,Contract Payments,03/04/2024,4253874-MC04664,510.39,MCCORQUODALE (MIDLANDS) LTD T/A FAMILY PLANNING ASSOCIATION (FPA).
Dedicated Schools Grant BG0015,DSG Early Years Block,Transfer Payments,510032,School Children,03/04/2024,4253994-40474,695.18,SHONA O`DOWD T/A LITTLE TYKES DAYCARE.
Regeneration Economy and Growth,Planning & Housing,Premises,108099,Service Repairs and Maintenance,03/04/2024,4253629-14KENTSTREET,"1,000.00",BY FORM CONSTRUCTION LTD.
Regeneration Economy and Growth,Planning & Housing,Vehicles Equipment Furniture and Fittings,912529,Purchase-equipment,03/04/2024,4253642-INV-5474,"463,500.00",CHIPTECH INTERNATIONAL LTD.
Neighbourhoods and Climate Change,Partnerships & Community Engagement Div.,Supplies and Services,384086,Miscellaneous Expenses,03/04/2024,4253669-VOUCHERHANA05-23,994.00,CRAGHEAD DEVELOPMENT TRUST LTD.
Regeneration Economy and Growth,Planning & Housing,Construction work A908,908105,Construction work,03/04/2024,4253688-SI-85,"2,846.00",DELL ROOFING SERVICES LTD.
Regeneration Economy and Growth,Planning & Housing,Supplies and Services,342051,Computers and Communications,03/04/2024,4253727-RES-03-2024-545,"7,000.00",EXACOM SYSTEMS LTD.
Neighbourhoods and Climate Change,Partnerships & Community Engagement Div.,Supplies and Services,384086,Miscellaneous Expenses,03/04/2024,4253843-VOUCHERSTEA05-23,500.00,LEADGATE COMMUNITY LIVEWIRES.
Regeneration Economy and Growth,Planning & Housing,Supplies and Services,342051,Computers and Communications,03/04/2024,4254070-RES-03-2024-561,"20,000.00",VERNA EARTH SOLUTIONS LTD.
Dedicated Schools Grant BG0015,DSG Early Years Block,Transfer Payments,510032,School Children,04/04/2024,4254155-41027,"1,737.94",REDACTED - PAYMENT TO INDIVIDUAL
Neighbourhoods and Climate Change,Environmental Services,Supplies and Services,384700,Miscellaneous Expenses,04/04/2024,4254230-RES-03-2024-565,"26,571.48",REDACTED - PAYMENT TO INDIVIDUAL
Adult and Health Services,Head of Adults,Premises,150005,Apportioned Exps of Operational Blds,04/04/2024,4254090-24461-15/02/24,"1,053.00",4 PAWS FARM KENNELS & CATTERY.
Neighbourhoods and Climate Change,Highways,Third Party Payments,430100,Rendered by Private Contractors,04/04/2024,4254093-7017,940.00,ACADEMY GEOMATICS LTD.
Regeneration Economy and Growth,Culture Sport and Tourism,Premises,145023,Cleaning and Domestic Supplies,04/04/2024,4254097-427077154,"1,374.50",AIR PRODUCTS PLC.
Regeneration Economy and Growth,Culture Sport and Tourism,Supplies and Services,304259,Equipment and Materials,04/04/2024,4254098-181067,500.00,ALBANY OFFICE EQUIPMENT (WHOLESALE) LTD.
Children and Young Peoples Services,Head of Education and Skills,Supplies and Services,338035,Services,04/04/2024,4254105-SI-1026,750.00,ASCENTIS.
Children and Young Peoples Services,Head of Early Help Inclusion & Vulnerable Children.,Premises,108251,Service Repairs and Maintenance,04/04/2024,4254106-1222376075,745.60,ASSA ABLOY LTD.*
Neighbourhoods and Climate Change,Highways,Fees,901001,Internal fees,04/04/2024,4254107-24010628,"16,769.03",ATKINSREALIS PPS LTD.
Regeneration Economy and Growth,Corporate Property and Land,Supplies and Services,304221,Equipment and Materials,04/04/2024,4254108-312056,839.74,AVIRE LTD.
Regeneration Economy and Growth,Business Durham,Supplies and Services,338066,Services,04/04/2024,4254111-SIN053319,"1,292.92",BEAMISH MUSEUM LTD.
Neighbourhoods and Climate Change,Highways,Fees,901002,Consultants fees 901002,04/04/2024,4254117-SIN050918,"58,412.60",BLOOM PROCUREMENT SERVICES LTD (FORMERLY NEPRO LTD).
Regeneration Economy and Growth,Business Durham,Supplies and Services,338066,Services,04/04/2024,4254117-SIN050919,"5,000.00",BLOOM PROCUREMENT SERVICES LTD (FORMERLY NEPRO LTD).
Regeneration Economy and Growth,Business Durham,Supplies and Services,338066,Services,04/04/2024,4254117-SIN050920,"6,000.00",BLOOM PROCUREMENT SERVICES LTD (FORMERLY NEPRO LTD).
Regeneration Economy and Growth,Economic Development CL0150,Supplies and Services,338066,Services,04/04/2024,4254117-SIN050921,"7,736.00",BLOOM PROCUREMENT SERVICES LTD (FORMERLY NEPRO LTD).
Neighbourhoods and Climate Change,Highways,Supplies and Services,338029,Services,04/04/2024,4254124-54002,"3,880.50",BRIDGEWAY CONSULTING LTD.
Neighbourhoods and Climate Change,Highways,Supplies and Services,338029,Services,04/04/2024,4254124-54003,"4,212.73",BRIDGEWAY CONSULTING LTD.
Neighbourhoods and Climate Change,Highways,Construction work A908,908105,Construction work,04/04/2024,4254132-1733A,"4,795.00",CASTLE KEEP SURVEYS LTD.
Regeneration Economy and Growth,Corporate Property and Land,Third Party Payments,430100,Rendered by Private Contractors,04/04/2024,4254133-12587,"5,982.62",CATHEDRAL LOCK & SAFE SERVICES LTD.
Children and Young Peoples Services,Head of Childrens Social Care,Supplies and Services,384500,Miscellaneous Expenses,04/04/2024,4254134-INV-0444,750.00,CHAMELEON CONNECTION CIC.
Children and Young Peoples Services,Head of Childrens Social Care,Supplies and Services,384500,Miscellaneous Expenses,04/04/2024,4254134-INV-0454,672.00,CHAMELEON CONNECTION CIC.
Children and Young Peoples Services,Head of Childrens Social Care,Supplies and Services,384500,Miscellaneous Expenses,04/04/2024,4254137-3075,"3,800.00",CHRYSALIS ASSOCIATES LTD.
Neighbourhoods and Climate Change,Highways,Supplies and Services,304221,Equipment and Materials,04/04/2024,4254138-2416,"1,700.00",CIS STREET FURNITURE LTD.
Dedicated Schools Grant BG0015,DSG Early Years Block,Transfer Payments,510030,School Children,04/04/2024,4254149-40843,"20,691.45",CORECARE N/A LTD.
Children and Young Peoples Services,Head of Education and Skills,Supplies and Services,338094,Services,04/04/2024,4254150-1731,510.00,CORNERSTONES CENTRE FOR THE COMMUNITY.
Resources BK0010,Legal & Democratic Services,Supplies and Services,338042,Services,04/04/2024,4254158-393822/INVMMC61,950.00,DERE STREET BARRISTERS.
Resources BK0010,Legal & Democratic Services,Supplies and Services,338042,Services,04/04/2024,4254158-397625/INVSU596,775.00,DERE STREET BARRISTERS.
Resources BK0010,Legal & Democratic Services,Supplies and Services,338042,Services,04/04/2024,4254158-397904/INVJAH299,"1,200.00",DERE STREET BARRISTERS.
Resources BK0010,Legal & Democratic Services,Supplies and Services,338042,Services,04/04/2024,4254158-398579/INVSEB1X361,775.00,DERE STREET BARRISTERS.
Regeneration Economy and Growth,Culture Sport and Tourism,Supplies and Services,338047,Services,04/04/2024,4254169-ANYTHINGGOES30/1-3/2/24,"23,819.50",DURHAM UNIVERSITY LIGHT OPERA GROUP (DULOG).*
Neighbourhoods and Climate Change,Environmental Services,Supplies and Services,338066,Services,04/04/2024,4254190-200220,"1,327.00",H & H REEDS PRINTERS LTD.
Neighbourhoods and Climate Change,Environmental Services,Supplies and Services,384899,Miscellaneous Expenses,04/04/2024,4254196-NEI-EXP-03-2024-052,500.00,HOLMLANDS PARK RESIDENTS ASSOCIATION.
Regeneration Economy and Growth,Corporate Property and Land,Construction work A908,908105,Construction work,04/04/2024,4254201-22429,"40,456.49",IDENTITY CONSULT LTD.*
Regeneration Economy and Growth,Corporate Property and Land,Supplies and Services,338066,Services,04/04/2024,4254201-22605,"1,250.00",IDENTITY CONSULT LTD.*
Regeneration Economy and Growth,Corporate Property and Land,Supplies and Services,338066,Services,04/04/2024,4254201-22612,"1,495.00",IDENTITY CONSULT LTD.*
Regeneration Economy and Growth,Culture Sport and Tourism,Premises,120021,Energy Costs,04/04/2024,4254203-18745,"7,869.75",IMPALA ESTATES LTD.
Neighbourhoods and Climate Change,Highways,Stock A926,926900,Stock in hand-Inventory system,04/04/2024,4254204-929958,796.80,INSTARMAC GROUP PLC.
Neighbourhoods and Climate Change,Highways,Stock A926,926900,Stock in hand-Inventory system,04/04/2024,4254205-35572,"1,541.20",INTERPLAN SIGN SYSTEMS LTD.
Neighbourhoods and Climate Change,Highways,Third Party Payments,460503,Contract Payments,04/04/2024,4254210-28832,"10,822.50",JACK COUPE & SONS LTD T/A COUPE LINE.
Neighbourhoods and Climate Change,Highways,Construction work A908,908105,Construction work,04/04/2024,4254210-29007,"1,028.71",JACK COUPE & SONS LTD T/A COUPE LINE.
Neighbourhoods and Climate Change,Highways,Construction work A908,908105,Construction work,04/04/2024,4254210-29012,"2,993.11",JACK COUPE & SONS LTD T/A COUPE LINE.
Neighbourhoods and Climate Change,Highways,Supplies and Services,304221,Equipment and Materials,04/04/2024,4254218-0303/01188156,547.16,JT DOVE LTD.
Neighbourhoods and Climate Change,Highways,Supplies and Services,304358,Equipment and Materials,04/04/2024,4254225-4957,943.50,KEVIN SNOWDON GROUNDWORKS LTD.
Neighbourhoods and Climate Change,Highways,Supplies and Services,304358,Equipment and Materials,04/04/2024,4254225-4958,943.50,KEVIN SNOWDON GROUNDWORKS LTD.
Neighbourhoods and Climate Change,Highways,Supplies and Services,304358,Equipment and Materials,04/04/2024,4254225-4978,925.00,KEVIN SNOWDON GROUNDWORKS LTD.
Neighbourhoods and Climate Change,Highways,Supplies and Services,304358,Equipment and Materials,04/04/2024,4254225-4979,925.00,KEVIN SNOWDON GROUNDWORKS LTD.
Neighbourhoods and Climate Change,Highways,Supplies and Services,304358,Equipment and Materials,04/04/2024,4254225-4980,952.00,KEVIN SNOWDON GROUNDWORKS LTD.
Neighbourhoods and Climate Change,Highways,Supplies and Services,304358,Equipment and Materials,04/04/2024,4254225-4981,943.50,KEVIN SNOWDON GROUNDWORKS LTD.
Neighbourhoods and Climate Change,Highways,Supplies and Services,304358,Equipment and Materials,04/04/2024,4254225-4982,943.50,KEVIN SNOWDON GROUNDWORKS LTD.
Neighbourhoods and Climate Change,Highways,Supplies and Services,304358,Equipment and Materials,04/04/2024,4254225-4983,943.50,KEVIN SNOWDON GROUNDWORKS LTD.
Neighbourhoods and Climate Change,Highways,Supplies and Services,304358,Equipment and Materials,04/04/2024,4254225-4993,795.50,KEVIN SNOWDON GROUNDWORKS LTD.
Neighbourhoods and Climate Change,Highways,Supplies and Services,304358,Equipment and Materials,04/04/2024,4254225-4994,795.50,KEVIN SNOWDON GROUNDWORKS LTD.
Neighbourhoods and Climate Change,Highways,Supplies and Services,304358,Equipment and Materials,04/04/2024,4254225-4995,795.50,KEVIN SNOWDON GROUNDWORKS LTD.
Neighbourhoods and Climate Change,Highways,Supplies and Services,304358,Equipment and Materials,04/04/2024,4254225-4996,"1,190.00",KEVIN SNOWDON GROUNDWORKS LTD.
Neighbourhoods and Climate Change,Highways,Supplies and Services,304358,Equipment and Materials,04/04/2024,4254225-4997,943.50,KEVIN SNOWDON GROUNDWORKS LTD.
Neighbourhoods and Climate Change,Highways,Supplies and Services,304358,Equipment and Materials,04/04/2024,4254225-4998,925.00,KEVIN SNOWDON GROUNDWORKS LTD.
Neighbourhoods and Climate Change,Highways,Supplies and Services,304358,Equipment and Materials,04/04/2024,4254225-4999,965.00,KEVIN SNOWDON GROUNDWORKS LTD.
Neighbourhoods and Climate Change,Highways,Supplies and Services,304358,Equipment and Materials,04/04/2024,4254225-5002,952.00,KEVIN SNOWDON GROUNDWORKS LTD.
Neighbourhoods and Climate Change,Highways,Supplies and Services,304358,Equipment and Materials,04/04/2024,4254225-5003,943.50,KEVIN SNOWDON GROUNDWORKS LTD.
Children and Young Peoples Services,Head of Education and Skills,Construction work A908,908105,Construction work,04/04/2024,4254226-10334229,"1,560,352.44",KIER CONSTRUCTION LTD - SCOTLAND
Resources BK0010,HR & Employee Services,Supplies and Services,338220,Services,04/04/2024,4254234-DCCOCCH1-56,"1,089.00",LET`S CONNECT (ENG) LTD.
Resources BK0010,HR & Employee Services,Supplies and Services,338220,Services,04/04/2024,4254234-DCCOCCH1-57,990.00,LET`S CONNECT (ENG) LTD.
Children and Young Peoples Services,Head of Childrens Social Care,Supplies and Services,338044,Services,04/04/2024,4254235-317810,"1,330.60",LEXTOX.
Regeneration Economy and Growth,Culture Sport and Tourism,Supplies and Services,312009,Newspapers books and periodicals E312,04/04/2024,4254236-3260,589.23,LIBRARIES CONNECTED LTD.
Children and Young Peoples Services,Head of Early Help Inclusion & Vulnerable Children.,Employees,080025,Agency Staff,04/04/2024,4254242-2480917,"152,566.01",MAGNIT GLOBAL GRI LTD.
Children and Young Peoples Services,Head of Childrens Social Care,Supplies and Services,304516,Equipment and Materials,04/04/2024,4254248-15754,923.00,NEUROBOX LTD.
Children and Young Peoples Services,Head of Childrens Social Care,Supplies and Services,304516,Equipment and Materials,04/04/2024,4254248-15756,923.00,NEUROBOX LTD.
Children and Young Peoples Services,Head of Childrens Social Care,Supplies and Services,304516,Equipment and Materials,04/04/2024,4254248-15757,559.00,NEUROBOX LTD.
Resources BK0010,Legal & Democratic Services,Supplies and Services,384999,Miscellaneous Expenses,04/04/2024,4254249-374145-12/03/2024,"1,000.00",NEW PARK COURT CHAMBERS.
Regeneration Economy and Growth,Corporate Property and Land,Construction work A908,908105,Construction work,04/04/2024,4254251-44732097,816.04,NEWSQUEST (YORKSHIRE & NORTH EAST) LTD.
Neighbourhoods and Climate Change,Highways,Construction work A908,908105,Construction work,04/04/2024,4254251-44732906,603.76,NEWSQUEST (YORKSHIRE & NORTH EAST) LTD.
Neighbourhoods and Climate Change,Highways,Fees,901004,Capital - Detailed Design,04/04/2024,4254251-44732907,603.76,NEWSQUEST (YORKSHIRE & NORTH EAST) LTD.
Neighbourhoods and Climate Change,Partnerships & Community Engagement Div.,Cap Exp on Grants & Other Financial Assistance (REFCUS),918004,Contributions to other bodies 918004,04/04/2024,4254252-VOUCHER23NB-GAMP004,"14,600.00",NEWTON AYCLIFFE FC.
Regeneration Economy and Growth,Planning & Housing,Premises,135005,Water Services,04/04/2024,4254255-542916020029527596,932.10,NORTHUMBRIAN WATER LTD.
Regeneration Economy and Growth,Planning & Housing,Premises,135005,Water Services,04/04/2024,4254255-572091020029527800,"2,511.75",NORTHUMBRIAN WATER LTD.
Regeneration Economy and Growth,Planning & Housing,Premises,135005,Water Services,04/04/2024,4254255-614548020029527583,"1,908.93",NORTHUMBRIAN WATER LTD.
Regeneration Economy and Growth,Corporate Property and Land,Third Party Payments,430100,Rendered by Private Contractors,04/04/2024,4254261-12580-58,"1,254.68",OPUS BUILDING SERVICES LTD.
Regeneration Economy and Growth,Corporate Property and Land,Third Party Payments,430100,Rendered by Private Contractors,04/04/2024,4254261-12580-59,"1,073.18",OPUS BUILDING SERVICES LTD.
Neighbourhoods and Climate Change,Environmental Services,Supplies and Services,304259,Equipment and Materials,04/04/2024,4254262-OASI0096495,685.00,ORIGIN AMENITY SOLUTIONS LTD.
Children and Young Peoples Services,Head of Education and Skills,Supplies and Services,304516,Equipment and Materials,04/04/2024,4254267-130BROOMROADTOHAUNTINGHEAVEN,500.00,PETER`S TAXIS.
Children and Young Peoples Services,Head of Early Help Inclusion & Vulnerable Children.,Third Party Payments,410037,Rendered by Other Local Authorities,04/04/2024,4254270-0000456418,900.00,PROSPERO GROUP LTD.
Children and Young Peoples Services,Head of Early Help Inclusion & Vulnerable Children.,Third Party Payments,410037,Rendered by Other Local Authorities,04/04/2024,4254270-0000463675,900.00,PROSPERO GROUP LTD.
Neighbourhoods and Climate Change,Highways,Supplies and Services,304221,Equipment and Materials,04/04/2024,4254272-246177,"1,495.45",PUDSEY DIAMOND ENGINEERING LTD.
Neighbourhoods and Climate Change,Highways,Third Party Payments,430100,Rendered by Private Contractors,04/04/2024,4254274-15651,"10,543.44",QUANTUM POWER CONNECTIONS LTD.
Children and Young Peoples Services,Head of Education and Skills,Supplies and Services,304259,Equipment and Materials,04/04/2024,4254282-DE7415889,"1,449.82",RM EDUCATIONAL RESOURCES T/A TTS.
Neighbourhoods and Climate Change,Partnerships & Community Engagement Div.,Supplies and Services,364501,Grants to Voluntary Organisations,04/04/2024,4254287-73BASINGSTOKE,500.00,SC CARPETS.
Neighbourhoods and Climate Change,Partnerships & Community Engagement Div.,Supplies and Services,384086,Miscellaneous Expenses,04/04/2024,4254290-VOUCHER23NB-EDUR042,"4,835.00",SEAHAM SEA CADETS.
Neighbourhoods and Climate Change,Highways,Third Party Payments,430100,Rendered by Private Contractors,04/04/2024,4254292-2400143,"66,729.83",SEYMOUR (CIVIL ENGINEERING CONTRACTORS) LTD.
Adult and Health Services,Commissioning inc Supporting People,Third Party Payments,470103,Purchase of Care,04/04/2024,4254293-GRW306162,881.52,SHAFTESBURY CARE GROUP LTD.
Regeneration Economy and Growth,Culture Sport and Tourism,Supplies and Services,384199,Miscellaneous Expenses,04/04/2024,4254298-SI010788,"3,542.93",SPEKTRIX LTD.
Neighbourhoods and Climate Change,Highways,Supplies and Services,304221,Equipment and Materials,04/04/2024,4254304-47545,"3,882.10",STONEGRAVE AGGREGATES LTD.
Neighbourhoods and Climate Change,Highways,Supplies and Services,304221,Equipment and Materials,04/04/2024,4254304-47546,604.20,STONEGRAVE AGGREGATES LTD.
Regeneration Economy and Growth,Transport and Contract Services,Third Party Payments,430106,Rendered by Private Contractors,04/04/2024,4254307-12577,"9,205.80",SUPPORTIVE SRC LTD.
Children and Young Peoples Services,Head of Education and Skills,Construction work A908,908105,Construction work,04/04/2024,4254308-148868,592.76,SWITCHSHOP LTD.
Children and Young Peoples Services,Head of Early Help Inclusion & Vulnerable Children.,Employees,080025,Agency Staff,04/04/2024,4254312-0000570634,"1,199.88",TEACHERACTIVE LTD.
Neighbourhoods and Climate Change,Highways,Supplies and Services,336005,Advertising E336,04/04/2024,4254313-19587,612.00,TEESDALE MERCURY LTD.
Children and Young Peoples Services,Central Charges (CYPS),Supplies and Services,352001,Conference Expenses,04/04/2024,4254314-SI-37078,911.00,THE ASSOCIATION OF DIRECTORS OF CHILDREN`S SERVICES LTD (ADCS).
Adult and Health Services,Head of Adults,Supplies and Services,338094,Services,04/04/2024,4254316-7481,"1,003.25",THE DURHAM CENTRE LTD.
Resources BK0010,Legal & Democratic Services,Supplies and Services,338042,Services,04/04/2024,4254326-312687/INVKF552,720.00,TRINITY CHAMBERS.
Neighbourhoods and Climate Change,Highways,Supplies and Services,304221,Equipment and Materials,04/04/2024,4254327-257600,"1,062.40",TYNEDALE ROADSTONE LTD.
Neighbourhoods and Climate Change,Highways,Supplies and Services,304221,Equipment and Materials,04/04/2024,4254327-257604,"1,662.15",TYNEDALE ROADSTONE LTD.
Neighbourhoods and Climate Change,Highways,Supplies and Services,304221,Equipment and Materials,04/04/2024,4254327-257605,875.43,TYNEDALE ROADSTONE LTD.
Neighbourhoods and Climate Change,Highways,Supplies and Services,304221,Equipment and Materials,04/04/2024,4254327-257606,"1,602.55",TYNEDALE ROADSTONE LTD.
Neighbourhoods and Climate Change,Highways,Supplies and Services,304221,Equipment and Materials,04/04/2024,4254327-257609,"1,644.88",TYNEDALE ROADSTONE LTD.
Neighbourhoods and Climate Change,Highways,Supplies and Services,304221,Equipment and Materials,04/04/2024,4254327-257611,"1,062.40",TYNEDALE ROADSTONE LTD.
Neighbourhoods and Climate Change,Highways,Supplies and Services,304221,Equipment and Materials,04/04/2024,4254327-257613,714.57,TYNEDALE ROADSTONE LTD.
Neighbourhoods and Climate Change,Highways,Supplies and Services,304221,Equipment and Materials,04/04/2024,4254327-257929,"1,353.67",TYNEDALE ROADSTONE LTD.
Neighbourhoods and Climate Change,Highways,Supplies and Services,304358,Equipment and Materials,04/04/2024,4254332-53064,762.50,W MARLEY AGRICULTURAL CONTRACTORS LTD.
Regeneration Economy and Growth,Transport and Contract Services,Premises,135005,Water Services,04/04/2024,4254335-888888964051060309,"104,179.80",WAVE (AWBN).
Neighbourhoods and Climate Change,Highways,Stock A926,926900,Stock in hand-Inventory system,04/04/2024,4254342-1142584,725.90,YOUR NRG LTD.
Neighbourhoods and Climate Change,Environmental Services,Supplies and Services,384606,Miscellaneous Expenses,04/04/2024,4254171-RES-03-2024-556,"1,502.37",EDEN VALLEY CAMERA CLUB.
Children and Young Peoples Services,Head of Education and Skills,Transfer Payments,510034,School Children,04/04/2024,4254116-RES-03-2024-557,"3,000.00",BLACKBURN COLLEGE.
Neighbourhoods and Climate Change,Environmental Services,Supplies and Services,384606,Miscellaneous Expenses,04/04/2024,4254122-RES-03-2024-553,"1,480.80",BRAMPTON AND BEYOND COMMUNITY TRUST.
Children and Young Peoples Services,Head of Education and Skills,Supplies and Services,324500,Provisions E324,04/04/2024,4254145-94334989,"2,234.07",COMPASS CONTRACT SERVICES (UK) LTD T/A CHARTWELLS.
Children and Young Peoples Services,Head of Early Help Inclusion & Vulnerable Children.,Supplies and Services,352001,Conference Expenses,04/04/2024,4254333-2101364665,"1,600.00",WANDSWORTH BOROUGH COUNCIL.
Children and Young Peoples Services,Head of Education and Skills,Transport,230034,Contract Hire,05/04/2024,4254547-004,"2,520.00",REDACTED - PAYMENT TO INDIVIDUAL
Regeneration Economy and Growth,Culture Sport and Tourism,Supplies and Services,338047,Services,05/04/2024,4254572-INV-2580,"4,818.00",REDACTED - PAYMENT TO INDIVIDUAL
Children and Young Peoples Services,Head of Education and Skills,Transport,230034,Contract Hire,05/04/2024,4254690-3014MAR24,"1,760.00",REDACTED - PAYMENT TO INDIVIDUAL
Children and Young Peoples Services,Head of Education and Skills,Transport,230008,Contract Hire,05/04/2024,4254690-E033MAR24,"3,421.31",REDACTED - PAYMENT TO INDIVIDUAL
Children and Young Peoples Services,Head of Education and Skills,Transport,230008,Contract Hire,05/04/2024,4254690-E055MAR24,"1,940.00",REDACTED - PAYMENT TO INDIVIDUAL
Children and Young Peoples Services,Head of Education and Skills,Transport,230006,Contract Hire,05/04/2024,4254690-F350MAR24,"1,584.00",REDACTED - PAYMENT TO INDIVIDUAL
Children and Young Peoples Services,Head of Education and Skills,Transport,230008,Contract Hire,05/04/2024,4254360-98/MAR24,"3,390.00",REDACTED - PAYMENT TO INDIVIDUAL
Children and Young Peoples Services,Head of Education and Skills,Transport,230006,Contract Hire,05/04/2024,4254360-99,"3,030.50",REDACTED - PAYMENT TO INDIVIDUAL
Children and Young Peoples Services,Head of Education and Skills,Transport,230013,Contract Hire,05/04/2024,4254362-0345,834.12,REDACTED - PAYMENT TO INDIVIDUAL
Children and Young Peoples Services,Head of Education and Skills,Transport,230007,Contract Hire,05/04/2024,4254362-0347,"3,849.00",REDACTED - PAYMENT TO INDIVIDUAL
Children and Young Peoples Services,Head of Education and Skills,Transport,230034,Contract Hire,05/04/2024,4254363-5456-0324,"3,300.41",REDACTED - PAYMENT TO INDIVIDUAL
Children and Young Peoples Services,Head of Education and Skills,Transport,230009,Contract Hire,05/04/2024,4254363-7012-MARCH24,980.00,REDACTED - PAYMENT TO INDIVIDUAL
Children and Young Peoples Services,Head of Education and Skills,Transport,230006,Contract Hire,05/04/2024,4254363-F355-MARCH24,768.00,REDACTED - PAYMENT TO INDIVIDUAL
Children and Young Peoples Services,Head of Education and Skills,Transport,230008,Contract Hire,05/04/2024,4254363-W092-MARCH24,"3,720.60",REDACTED - PAYMENT TO INDIVIDUAL
Children and Young Peoples Services,Head of Education and Skills,Transport,230009,Contract Hire,05/04/2024,4254364-7384MAR24,"1,817.80",REDACTED - PAYMENT TO INDIVIDUAL
Adult and Health Services,Head of Adults,Transport,230005,Contract Hire,05/04/2024,4254364-DW138MAR24,680.00,REDACTED - PAYMENT TO INDIVIDUAL
Children and Young Peoples Services,Head of Education and Skills,Transport,230006,Contract Hire,05/04/2024,4254364-F155MAR24,"1,158.60",REDACTED - PAYMENT TO INDIVIDUAL
Children and Young Peoples Services,Head of Education and Skills,Transport,230034,Contract Hire,05/04/2024,4254368-02220,"2,305.92",REDACTED - PAYMENT TO INDIVIDUAL
Children and Young Peoples Services,Head of Education and Skills,Transport,230007,Contract Hire,05/04/2024,4254368-02221,"2,768.34",REDACTED - PAYMENT TO INDIVIDUAL
Children and Young Peoples Services,Head of Education and Skills,Transport,230007,Contract Hire,05/04/2024,4254368-02222,"1,932.10",REDACTED - PAYMENT TO INDIVIDUAL
Children and Young Peoples Services,Head of Education and Skills,Transport,230008,Contract Hire,05/04/2024,4254368-02224,"3,237.00",REDACTED - PAYMENT TO INDIVIDUAL
Children and Young Peoples Services,Head of Education and Skills,Transport,230007,Contract Hire,05/04/2024,4254368-02225,"1,520.00",REDACTED - PAYMENT TO INDIVIDUAL
Children and Young Peoples Services,Head of Education and Skills,Transport,230008,Contract Hire,05/04/2024,4254368-02226,"3,538.00",REDACTED - PAYMENT TO INDIVIDUAL
Children and Young Peoples Services,Head of Education and Skills,Transport,230008,Contract Hire,05/04/2024,4254368-02227,"3,089.60",REDACTED - PAYMENT TO INDIVIDUAL
Children and Young Peoples Services,Head of Education and Skills,Transport,230010,Contract Hire,05/04/2024,4254368-02229,"3,372.04",REDACTED - PAYMENT TO INDIVIDUAL
Children and Young Peoples Services,Head of Education and Skills,Transport,230006,Contract Hire,05/04/2024,4254368-02230,"3,860.00",REDACTED - PAYMENT TO INDIVIDUAL
Children and Young Peoples Services,Head of Education and Skills,Transport,230008,Contract Hire,05/04/2024,4254368-02231,"2,560.00",REDACTED - PAYMENT TO INDIVIDUAL
Children and Young Peoples Services,Head of Education and Skills,Transport,230007,Contract Hire,05/04/2024,4254368-02233,"1,160.00",REDACTED - PAYMENT TO INDIVIDUAL
Children and Young Peoples Services,Head of Education and Skills,Transport,230008,Contract Hire,05/04/2024,4254368-02248,"3,560.00",REDACTED - PAYMENT TO INDIVIDUAL
Adult and Health Services,Head of Adults,Transport,230005,Contract Hire,05/04/2024,4254368-02252,960.00,REDACTED - PAYMENT TO INDIVIDUAL
Children and Young Peoples Services,Head of Education and Skills,Transport,230034,Contract Hire,05/04/2024,4254368-02253,"1,932.00",REDACTED - PAYMENT TO INDIVIDUAL
Children and Young Peoples Services,Head of Education and Skills,Transport,230006,Contract Hire,05/04/2024,4254368-02307,"2,987.84",REDACTED - PAYMENT TO INDIVIDUAL
Children and Young Peoples Services,Head of Education and Skills,Transport,230008,Contract Hire,05/04/2024,4254368-A061-0324,"3,560.00",REDACTED - PAYMENT TO INDIVIDUAL
Children and Young Peoples Services,Head of Education and Skills,Transport,230034,Contract Hire,05/04/2024,4254394-1-5492MAR24,"2,400.00",REDACTED - PAYMENT TO INDIVIDUAL
Adult and Health Services,Head of Adults,Transport,230005,Contract Hire,05/04/2024,4254403-EAS1199-MAR24,"1,144.50",REDACTED - PAYMENT TO INDIVIDUAL
Children and Young Peoples Services,Head of Education and Skills,Transport,230003,Contract Hire,05/04/2024,4254406-47909,"5,800.00",REDACTED - PAYMENT TO INDIVIDUAL
Children and Young Peoples Services,Head of Education and Skills,Transport,230007,Contract Hire,05/04/2024,4254406-47910,"4,980.00",REDACTED - PAYMENT TO INDIVIDUAL
Children and Young Peoples Services,Head of Education and Skills,Transport,230034,Contract Hire,05/04/2024,4254407-5289/29,"3,842.20",REDACTED - PAYMENT TO INDIVIDUAL
Adult and Health Services,Head of Adults,Transport,230005,Contract Hire,05/04/2024,4254407-EAS197/19,600.00,REDACTED - PAYMENT TO INDIVIDUAL
Children and Young Peoples Services,Head of Education and Skills,Transport,230006,Contract Hire,05/04/2024,4254407-F326/7,"1,104.00",REDACTED - PAYMENT TO INDIVIDUAL
Children and Young Peoples Services,Head of Education and Skills,Transport,230008,Contract Hire,05/04/2024,4254412-INV-114,"2,800.00",REDACTED - PAYMENT TO INDIVIDUAL
Children and Young Peoples Services,Head of Education and Skills,Transport,230007,Contract Hire,05/04/2024,4254429-3074-0324,"3,200.00",REDACTED - PAYMENT TO INDIVIDUAL
Children and Young Peoples Services,Head of Education and Skills,Transport,230006,Contract Hire,05/04/2024,4254431-F119/MARCH-24,"4,822.56",REDACTED - PAYMENT TO INDIVIDUAL
Children and Young Peoples Services,Head of Education and Skills,Supplies and Services,384199,Miscellaneous Expenses,05/04/2024,4254432-209,560.00,REDACTED - PAYMENT TO INDIVIDUAL
Children and Young Peoples Services,Head of Education and Skills,Transport,230008,Contract Hire,05/04/2024,4254433-7-24,"2,673.00",REDACTED - PAYMENT TO INDIVIDUAL
Children and Young Peoples Services,Head of Education and Skills,Transport,230008,Contract Hire,05/04/2024,4254434-07,"2,700.00",REDACTED - PAYMENT TO INDIVIDUAL
Children and Young Peoples Services,Head of Education and Skills,Transport,230006,Contract Hire,05/04/2024,4254437-F132-0324,"1,890.10",REDACTED - PAYMENT TO INDIVIDUAL
Adult and Health Services,Head of Adults,Premises,145009,Cleaning and Domestic Supplies,05/04/2024,4254438-1081,"1,895.00",REDACTED - PAYMENT TO INDIVIDUAL
Children and Young Peoples Services,Head of Education and Skills,Transport,230034,Contract Hire,05/04/2024,4254440-DTS2108/03/24,"1,287.00",REDACTED - PAYMENT TO INDIVIDUAL
Children and Young Peoples Services,Head of Education and Skills,Transport,230009,Contract Hire,05/04/2024,4254440-DTS6005/03/24,"2,614.26",REDACTED - PAYMENT TO INDIVIDUAL
Children and Young Peoples Services,Head of Education and Skills,Transport,230010,Contract Hire,05/04/2024,4254440-DTSB060/03/24,695.03,REDACTED - PAYMENT TO INDIVIDUAL
Regeneration Economy and Growth,Culture Sport and Tourism,Supplies and Services,384302,Miscellaneous Expenses,05/04/2024,4254469-155,500.00,REDACTED - PAYMENT TO INDIVIDUAL
Regeneration Economy and Growth,Culture Sport and Tourism,Supplies and Services,384199,Miscellaneous Expenses,05/04/2024,4254471-GALA91,750.00,REDACTED - PAYMENT TO INDIVIDUAL
Children and Young Peoples Services,Head of Education and Skills,Transport,230006,Contract Hire,05/04/2024,4254485-21-24,"3,624.88",REDACTED - PAYMENT TO INDIVIDUAL
Children and Young Peoples Services,Head of Education and Skills,Transport,230006,Contract Hire,05/04/2024,4254485-22-F319MAR24,"3,668.20",REDACTED - PAYMENT TO INDIVIDUAL
Children and Young Peoples Services,Head of Education and Skills,Transport,230004,Contract Hire,05/04/2024,4254487-F191/03/07,"1,971.58",REDACTED - PAYMENT TO INDIVIDUAL
Children and Young Peoples Services,Head of Education and Skills,Transport,230006,Contract Hire,05/04/2024,4254499-202403,"2,367.63",REDACTED - PAYMENT TO INDIVIDUAL
Children and Young Peoples Services,Head of Education and Skills,Transport,230007,Contract Hire,05/04/2024,4254518-4409MAR24,"1,506.20",REDACTED - PAYMENT TO INDIVIDUAL
Adult and Health Services,Head of Adults,Transport,230005,Contract Hire,05/04/2024,4254518-CLS078MAR24,"1,107.20",REDACTED - PAYMENT TO INDIVIDUAL
Children and Young Peoples Services,Head of Education and Skills,Transport,230006,Contract Hire,05/04/2024,4254518-F896MAR24,"2,471.96",REDACTED - PAYMENT TO INDIVIDUAL
Children and Young Peoples Services,Head of Education and Skills,Transport,230008,Contract Hire,05/04/2024,4254526-A064/02,"3,100.00",REDACTED - PAYMENT TO INDIVIDUAL
Children and Young Peoples Services,Head of Education and Skills,Transport,230008,Contract Hire,05/04/2024,4254526-HWA07,"2,704.40",REDACTED - PAYMENT TO INDIVIDUAL
Children and Young Peoples Services,Head of Education and Skills,Transport,230006,Contract Hire,05/04/2024,4254526-PA07,"2,500.00",REDACTED - PAYMENT TO INDIVIDUAL
Children and Young Peoples Services,Head of Education and Skills,Transport,230034,Contract Hire,05/04/2024,4254531-340,"1,764.00",REDACTED - PAYMENT TO INDIVIDUAL
Children and Young Peoples Services,Head of Education and Skills,Transport,230007,Contract Hire,05/04/2024,4254540-LP007,"1,960.00",REDACTED - PAYMENT TO INDIVIDUAL
Children and Young Peoples Services,Head of Education and Skills,Transport,230008,Contract Hire,05/04/2024,4254540-SC006,"3,580.00",REDACTED - PAYMENT TO INDIVIDUAL
Children and Young Peoples Services,Head of Education and Skills,Transport,230034,Contract Hire,05/04/2024,4254540-SD006,"2,165.60",REDACTED - PAYMENT TO INDIVIDUAL
Children and Young Peoples Services,Head of Education and Skills,Transport,230007,Contract Hire,05/04/2024,4254541-010324,"1,352.40",REDACTED - PAYMENT TO INDIVIDUAL
Children and Young Peoples Services,Head of Education and Skills,Transport,230006,Contract Hire,05/04/2024,4254541-020324,"1,399.92",REDACTED - PAYMENT TO INDIVIDUAL
Children and Young Peoples Services,Head of Education and Skills,Transport,230008,Contract Hire,05/04/2024,4254554-0145,"4,500.00",REDACTED - PAYMENT TO INDIVIDUAL
Children and Young Peoples Services,Head of Education and Skills,Transport,230008,Contract Hire,05/04/2024,4254554-0146,"4,123.00",REDACTED - PAYMENT TO INDIVIDUAL
Children and Young Peoples Services,Head of Education and Skills,Transport,230008,Contract Hire,05/04/2024,4254564-28-24,"2,445.60",REDACTED - PAYMENT TO INDIVIDUAL
Children and Young Peoples Services,Head of Education and Skills,Transport,230034,Contract Hire,05/04/2024,4254566-270324,"2,630.00",REDACTED - PAYMENT TO INDIVIDUAL
Children and Young Peoples Services,Head of Education and Skills,Transport,230008,Contract Hire,05/04/2024,4254567-KC-4032,678.20,REDACTED - PAYMENT TO INDIVIDUAL
Children and Young Peoples Services,Head of Education and Skills,Transport,230008,Contract Hire,05/04/2024,4254567-KC4031,"4,264.40",REDACTED - PAYMENT TO INDIVIDUAL
Children and Young Peoples Services,Head of Education and Skills,Transport,230008,Contract Hire,05/04/2024,4254567-KW4033,"3,642.30",REDACTED - PAYMENT TO INDIVIDUAL
Children and Young Peoples Services,Head of Education and Skills,Transport,230010,Contract Hire,05/04/2024,4254568-0158,"3,600.00",REDACTED - PAYMENT TO INDIVIDUAL
Children and Young Peoples Services,Head of Education and Skills,Transport,230008,Contract Hire,05/04/2024,4254568-0159,"2,800.00",REDACTED - PAYMENT TO INDIVIDUAL
Children and Young Peoples Services,Head of Education and Skills,Transport,230008,Contract Hire,05/04/2024,4254568-0160,"3,126.60",REDACTED - PAYMENT TO INDIVIDUAL
Children and Young Peoples Services,Head of Education and Skills,Transport,230034,Contract Hire,05/04/2024,4254571-311,"1,544.00",REDACTED - PAYMENT TO INDIVIDUAL
Children and Young Peoples Services,Head of Education and Skills,Transport,230035,Contract Hire,05/04/2024,4254571-313,"2,660.00",REDACTED - PAYMENT TO INDIVIDUAL
Children and Young Peoples Services,Head of Education and Skills,Transport,230010,Contract Hire,05/04/2024,4254571-INV314,"4,642.25",REDACTED - PAYMENT TO INDIVIDUAL
Adult and Health Services,Head of Adults,Transport,230005,Contract Hire,05/04/2024,4254575-KDC-020322024,"4,340.00",REDACTED - PAYMENT TO INDIVIDUAL
Children and Young Peoples Services,Head of Education and Skills,Transport,230008,Contract Hire,05/04/2024,4254577-233,"1,548.20",REDACTED - PAYMENT TO INDIVIDUAL
Children and Young Peoples Services,Head of Education and Skills,Transport,230006,Contract Hire,05/04/2024,4254578-F787-0324,"3,300.00",REDACTED - PAYMENT TO INDIVIDUAL
Children and Young Peoples Services,Head of Education and Skills,Transport,230008,Contract Hire,05/04/2024,4254579-CROFT1-03-24,"2,097.20",REDACTED - PAYMENT TO INDIVIDUAL
Children and Young Peoples Services,Head of Education and Skills,Transport,230009,Contract Hire,05/04/2024,4254579-FRAM1-03-24,"1,660.40",REDACTED - PAYMENT TO INDIVIDUAL
Children and Young Peoples Services,Head of Education and Skills,Transport,230006,Contract Hire,05/04/2024,4254579-OAK1-03-04,"2,776.00",REDACTED - PAYMENT TO INDIVIDUAL
Children and Young Peoples Services,Head of Education and Skills,Transport,230008,Contract Hire,05/04/2024,4254580-E045/MAR24,"2,670.00",REDACTED - PAYMENT TO INDIVIDUAL
Children and Young Peoples Services,Head of Education and Skills,Transport,230008,Contract Hire,05/04/2024,4254580-E110/MAR24,"1,942.00",REDACTED - PAYMENT TO INDIVIDUAL
Children and Young Peoples Services,Head of Education and Skills,Transport,230008,Contract Hire,05/04/2024,4254581-W014-032024,"3,889.80",REDACTED - PAYMENT TO INDIVIDUAL
Children and Young Peoples Services,Head of Education and Skills,Transport,230035,Contract Hire,05/04/2024,4254582-MAR282024,"1,185.20",REDACTED - PAYMENT TO INDIVIDUAL
Children and Young Peoples Services,Head of Education and Skills,Transport,230007,Contract Hire,05/04/2024,4254582-STLEONARDSMAR282024,"1,100.10",REDACTED - PAYMENT TO INDIVIDUAL
Adult and Health Services,Head of Adults,Transport,230005,Contract Hire,05/04/2024,4254582-THORFEB292024,"1,496.40",REDACTED - PAYMENT TO INDIVIDUAL
Children and Young Peoples Services,Head of Education and Skills,Transport,230008,Contract Hire,05/04/2024,4254583-45-W083,"3,918.40",REDACTED - PAYMENT TO INDIVIDUAL
Children and Young Peoples Services,Head of Education and Skills,Transport,230008,Contract Hire,05/04/2024,4254584-A022-MARCH2024,"3,560.00",REDACTED - PAYMENT TO INDIVIDUAL
Children and Young Peoples Services,Head of Education and Skills,Transport,230008,Contract Hire,05/04/2024,4254584-A072-MARCH2024,"3,580.00",REDACTED - PAYMENT TO INDIVIDUAL
Children and Young Peoples Services,Head of Education and Skills,Transport,230009,Contract Hire,05/04/2024,4254584-E038 - March2024,"2,963.00",REDACTED - PAYMENT TO INDIVIDUAL
Children and Young Peoples Services,Head of Education and Skills,Transport,230008,Contract Hire,05/04/2024,4254584-E080 - March2024,"3,572.60",REDACTED - PAYMENT TO INDIVIDUAL
Children and Young Peoples Services,Head of Education and Skills,Transport,230004,Contract Hire,05/04/2024,4254585-F356MARCH2024,"1,600.00",REDACTED - PAYMENT TO INDIVIDUAL
Children and Young Peoples Services,Head of Education and Skills,Transport,230007,Contract Hire,05/04/2024,4254586-4408-0324,"2,000.00",REDACTED - PAYMENT TO INDIVIDUAL
Children and Young Peoples Services,Head of Education and Skills,Transport,230009,Contract Hire,05/04/2024,4254586-7010-MARCH,"2,358.60",REDACTED - PAYMENT TO INDIVIDUAL
Children and Young Peoples Services,Head of Education and Skills,Transport,230006,Contract Hire,05/04/2024,4254586-F340-MARCH,"2,394.40",REDACTED - PAYMENT TO INDIVIDUAL
Children and Young Peoples Services,Head of Education and Skills,Transport,230006,Contract Hire,05/04/2024,4254586-F367-0324,"1,995.00",REDACTED - PAYMENT TO INDIVIDUAL
Children and Young Peoples Services,Head of Education and Skills,Transport,230006,Contract Hire,05/04/2024,4254586-F882-0324,"2,100.63",REDACTED - PAYMENT TO INDIVIDUAL
Children and Young Peoples Services,Head of Education and Skills,Transport,230007,Contract Hire,05/04/2024,4254587-6046/MAR/24,"1,189.50",REDACTED - PAYMENT TO INDIVIDUAL
Children and Young Peoples Services,Head of Education and Skills,Transport,230006,Contract Hire,05/04/2024,4254587-F316/MAR/24,720.00,REDACTED - PAYMENT TO INDIVIDUAL
Children and Young Peoples Services,Head of Education and Skills,Transport,230006,Contract Hire,05/04/2024,4254588-290,"3,584.08",REDACTED - PAYMENT TO INDIVIDUAL
Children and Young Peoples Services,Head of Education and Skills,Transport,230006,Contract Hire,05/04/2024,4254588-291,"1,586.90",REDACTED - PAYMENT TO INDIVIDUAL
Children and Young Peoples Services,Head of Education and Skills,Transport,230006,Contract Hire,05/04/2024,4254589-F323MAR24,"2,668.68",REDACTED - PAYMENT TO INDIVIDUAL
Children and Young Peoples Services,Head of Education and Skills,Transport,230010,Contract Hire,05/04/2024,4254590-B041MAR24,"4,436.94",REDACTED - PAYMENT TO INDIVIDUAL
Children and Young Peoples Services,Head of Education and Skills,Transport,230008,Contract Hire,05/04/2024,4254591-A172-MARCH24,"2,700.00",REDACTED - PAYMENT TO INDIVIDUAL
Children and Young Peoples Services,Head of Education and Skills,Transport,230008,Contract Hire,05/04/2024,4254591-N038-MARCH24,"4,556.60",REDACTED - PAYMENT TO INDIVIDUAL
Children and Young Peoples Services,Head of Education and Skills,Transport,230008,Contract Hire,05/04/2024,4254591-W055-MARCH24,"5,800.00",REDACTED - PAYMENT TO INDIVIDUAL
Children and Young Peoples Services,Head of Education and Skills,Transport,230013,Contract Hire,05/04/2024,4254592-3013-0324,"2,200.00",REDACTED - PAYMENT TO INDIVIDUAL
Children and Young Peoples Services,Head of Education and Skills,Transport,230006,Contract Hire,05/04/2024,4254592-F152-0324,"1,360.00",REDACTED - PAYMENT TO INDIVIDUAL
Children and Young Peoples Services,Head of Education and Skills,Transport,230006,Contract Hire,05/04/2024,4254592-F307-0324,"2,302.68",REDACTED - PAYMENT TO INDIVIDUAL
Children and Young Peoples Services,Head of Education and Skills,Transport,230007,Contract Hire,05/04/2024,4254593-3039-0324,"5,820.00",REDACTED - PAYMENT TO INDIVIDUAL
Children and Young Peoples Services,Head of Education and Skills,Transport,230034,Contract Hire,05/04/2024,4254593-4603-0324,"2,580.00",REDACTED - PAYMENT TO INDIVIDUAL
Children and Young Peoples Services,Head of Education and Skills,Transport,230007,Contract Hire,05/04/2024,4254593-4604-0324,"1,840.00",REDACTED - PAYMENT TO INDIVIDUAL
Children and Young Peoples Services,Head of Education and Skills,Transport,230007,Contract Hire,05/04/2024,4254593-4610-0324,"2,290.80",REDACTED - PAYMENT TO INDIVIDUAL
Children and Young Peoples Services,Head of Education and Skills,Transport,230034,Contract Hire,05/04/2024,4254593-RCL-2448,"2,775.00",REDACTED - PAYMENT TO INDIVIDUAL
Children and Young Peoples Services,Head of Education and Skills,Transport,230008,Contract Hire,05/04/2024,4254594-609,"5,000.00",REDACTED - PAYMENT TO INDIVIDUAL
Children and Young Peoples Services,Head of Education and Skills,Transport,230008,Contract Hire,05/04/2024,4254594-611,"2,685.00",REDACTED - PAYMENT TO INDIVIDUAL
Children and Young Peoples Services,Head of Education and Skills,Transport,230008,Contract Hire,05/04/2024,4254594-613,"2,200.00",REDACTED - PAYMENT TO INDIVIDUAL
Children and Young Peoples Services,Head of Education and Skills,Transport,230008,Contract Hire,05/04/2024,4254594-615,"3,040.00",REDACTED - PAYMENT TO INDIVIDUAL
Children and Young Peoples Services,Head of Education and Skills,Transport,230034,Contract Hire,05/04/2024,4254595-4501Mar24,"3,598.80",REDACTED - PAYMENT TO INDIVIDUAL
Children and Young Peoples Services,Head of Education and Skills,Transport,230006,Contract Hire,05/04/2024,4254595-F341-0324,"1,787.50",REDACTED - PAYMENT TO INDIVIDUAL
Children and Young Peoples Services,Head of Education and Skills,Transport,230006,Contract Hire,05/04/2024,4254596-A055MAR24,"3,824.00",REDACTED - PAYMENT TO INDIVIDUAL
Children and Young Peoples Services,Head of Education and Skills,Transport,230008,Contract Hire,05/04/2024,4254596-A166MAR24,"4,897.60",REDACTED - PAYMENT TO INDIVIDUAL
Children and Young Peoples Services,Head of Education and Skills,Transport,230010,Contract Hire,05/04/2024,4254597-27BL003MARCH,"2,271.83",REDACTED - PAYMENT TO INDIVIDUAL
Children and Young Peoples Services,Head of Education and Skills,Transport,230008,Contract Hire,05/04/2024,4254598-A222-0324,"2,200.00",REDACTED - PAYMENT TO INDIVIDUAL
Children and Young Peoples Services,Head of Education and Skills,Transport,230034,Contract Hire,05/04/2024,4254599-4534-0323,"3,713.40",REDACTED - PAYMENT TO INDIVIDUAL
Children and Young Peoples Services,Head of Education and Skills,Transport,230010,Contract Hire,05/04/2024,4254599-B024-0324,"3,401.99",REDACTED - PAYMENT TO INDIVIDUAL
Children and Young Peoples Services,Head of Education and Skills,Transport,230007,Contract Hire,05/04/2024,4254600-2/MARCH24,"1,249.32",REDACTED - PAYMENT TO INDIVIDUAL
Children and Young Peoples Services,Head of Education and Skills,Transport,230010,Contract Hire,05/04/2024,4254600-B001-0324,"3,100.69",REDACTED - PAYMENT TO INDIVIDUAL
Children and Young Peoples Services,Head of Education and Skills,Transport,230008,Contract Hire,05/04/2024,4254601-138,"3,200.00",REDACTED - PAYMENT TO INDIVIDUAL
Children and Young Peoples Services,Head of Education and Skills,Transport,230008,Contract Hire,05/04/2024,4254601-139,"2,643.09",REDACTED - PAYMENT TO INDIVIDUAL
Children and Young Peoples Services,Head of Education and Skills,Transport,230007,Contract Hire,05/04/2024,4254605-308/CONTRACT5421,"2,154.60",REDACTED - PAYMENT TO INDIVIDUAL
Children and Young Peoples Services,Head of Education and Skills,Transport,230034,Contract Hire,05/04/2024,4254623-SC-307-24,"3,523.20",REDACTED - PAYMENT TO INDIVIDUAL
Children and Young Peoples Services,Head of Education and Skills,Transport,230009,Contract Hire,05/04/2024,4254624-MAR24/7009,"1,900.00",REDACTED - PAYMENT TO INDIVIDUAL
Children and Young Peoples Services,Head of Education and Skills,Transport,230008,Contract Hire,05/04/2024,4254624-MAR24/M027,"4,390.40",REDACTED - PAYMENT TO INDIVIDUAL
Children and Young Peoples Services,Head of Education and Skills,Transport,230008,Contract Hire,05/04/2024,4254624-MAR24/N041,"2,900.00",REDACTED - PAYMENT TO INDIVIDUAL
Children and Young Peoples Services,Head of Education and Skills,Transport,230008,Contract Hire,05/04/2024,4254624-MAR24/N351,"1,000.00",REDACTED - PAYMENT TO INDIVIDUAL
Children and Young Peoples Services,Head of Education and Skills,Transport,230008,Contract Hire,05/04/2024,4254624-MARCH/M014,"3,178.20",REDACTED - PAYMENT TO INDIVIDUAL
Children and Young Peoples Services,Head of Education and Skills,Transport,230008,Contract Hire,05/04/2024,4254624-MARCH/N020,"5,700.00",REDACTED - PAYMENT TO INDIVIDUAL
Children and Young Peoples Services,Head of Education and Skills,Transport,230007,Contract Hire,05/04/2024,4254626-1154-MAR24,"1,190.00",REDACTED - PAYMENT TO INDIVIDUAL
Children and Young Peoples Services,Head of Education and Skills,Transport,230008,Contract Hire,05/04/2024,4254626-peternaylor/N032/March/2024,"2,064.00",REDACTED - PAYMENT TO INDIVIDUAL
Children and Young Peoples Services,Head of Education and Skills,Transport,230007,Contract Hire,05/04/2024,4254626-peternaylor/l002/March/24,"1,280.00",REDACTED - PAYMENT TO INDIVIDUAL
Regeneration Economy and Growth,Transport and Contract Services,Third Party Payments,430106,Rendered by Private Contractors,05/04/2024,4254642-2157,"4,497.76",REDACTED - PAYMENT TO INDIVIDUAL
Children and Young Peoples Services,Head of Education and Skills,Transport,230034,Contract Hire,05/04/2024,4254644-009-MARCH2024,"3,724.00",REDACTED - PAYMENT TO INDIVIDUAL
Children and Young Peoples Services,Head of Education and Skills,Transport,230008,Contract Hire,05/04/2024,4254645-130,"2,790.00",REDACTED - PAYMENT TO INDIVIDUAL
Children and Young Peoples Services,Head of Education and Skills,Transport,230035,Contract Hire,05/04/2024,4254645-131,"2,907.00",REDACTED - PAYMENT TO INDIVIDUAL
Children and Young Peoples Services,Head of Education and Skills,Transport,230004,Contract Hire,05/04/2024,4254645-132,"1,908.00",REDACTED - PAYMENT TO INDIVIDUAL
Children and Young Peoples Services,Head of Education and Skills,Transport,230006,Contract Hire,05/04/2024,4254645-135,"1,908.00",REDACTED - PAYMENT TO INDIVIDUAL
Children and Young Peoples Services,Head of Education and Skills,Transport,230010,Contract Hire,05/04/2024,4254645-136,"3,493.48",REDACTED - PAYMENT TO INDIVIDUAL
Children and Young Peoples Services,Head of Education and Skills,Transport,230006,Contract Hire,05/04/2024,4254648-03,"1,900.48",REDACTED - PAYMENT TO INDIVIDUAL
Children and Young Peoples Services,Head of Education and Skills,Transport,230034,Contract Hire,05/04/2024,4254662-3002-0324,"2,400.00",REDACTED - PAYMENT TO INDIVIDUAL
Children and Young Peoples Services,Head of Education and Skills,Transport,230006,Contract Hire,05/04/2024,4254671-MARCH2024/000007,"2,172.20",REDACTED - PAYMENT TO INDIVIDUAL
Children and Young Peoples Services,Head of Education and Skills,Transport,230006,Contract Hire,05/04/2024,4254676-F141-MARCH24,"3,308.00",REDACTED - PAYMENT TO INDIVIDUAL
Children and Young Peoples Services,Head of Education and Skills,Transport,230006,Contract Hire,05/04/2024,4254676-F190-MARCH24,"1,484.12",REDACTED - PAYMENT TO INDIVIDUAL
Children and Young Peoples Services,Head of Education and Skills,Transport,230007,Contract Hire,05/04/2024,4254685-5290MAR24,"1,497.00",REDACTED - PAYMENT TO INDIVIDUAL
Children and Young Peoples Services,Head of Education and Skills,Transport,230007,Contract Hire,05/04/2024,4254686-2492,"7,500.00",REDACTED - PAYMENT TO INDIVIDUAL
Children and Young Peoples Services,Head of Education and Skills,Transport,230007,Contract Hire,05/04/2024,4254686-2493,"5,900.00",REDACTED - PAYMENT TO INDIVIDUAL
Children and Young Peoples Services,Head of Education and Skills,Transport,230008,Contract Hire,05/04/2024,4254687-02218,"2,280.00",REDACTED - PAYMENT TO INDIVIDUAL
Regeneration Economy and Growth,Culture Sport and Tourism,Supplies and Services,384302,Miscellaneous Expenses,05/04/2024,4254689-DCCF75-03,500.00,REDACTED - PAYMENT TO INDIVIDUAL
Children and Young Peoples Services,Head of Education and Skills,Transport,230013,Contract Hire,05/04/2024,4254691-7347MAR24,"2,430.40",REDACTED - PAYMENT TO INDIVIDUAL
Children and Young Peoples Services,Head of Education and Skills,Transport,230006,Contract Hire,05/04/2024,4254691-F362MAR24,"1,152.00",REDACTED - PAYMENT TO INDIVIDUAL
Adult and Health Services,Head of Adults,Transport,230005,Contract Hire,05/04/2024,4254692-EAS202MAR24,"1,741.20",REDACTED - PAYMENT TO INDIVIDUAL
Children and Young Peoples Services,Head of Education and Skills,Transport,230006,Contract Hire,05/04/2024,4254692-F120MAR24,"2,350.80",REDACTED - PAYMENT TO INDIVIDUAL
Children and Young Peoples Services,Head of Education and Skills,Transport,230034,Contract Hire,05/04/2024,4254693-5476-0324,"2,160.00",REDACTED - PAYMENT TO INDIVIDUAL
Children and Young Peoples Services,Head of Education and Skills,Transport,230006,Contract Hire,05/04/2024,4254693-E195-0324,"2,400.00",REDACTED - PAYMENT TO INDIVIDUAL
Children and Young Peoples Services,Head of Education and Skills,Transport,230034,Contract Hire,05/04/2024,4254694-20230009,"3,040.00",REDACTED - PAYMENT TO INDIVIDUAL
Children and Young Peoples Services,Head of Education and Skills,Transport,230034,Contract Hire,05/04/2024,4254713-1016-MAR24,"2,000.00",REDACTED - PAYMENT TO INDIVIDUAL
Children and Young Peoples Services,Head of Education and Skills,Transport,230008,Contract Hire,05/04/2024,4254713-A212-0324,"2,250.00",REDACTED - PAYMENT TO INDIVIDUAL
Children and Young Peoples Services,Head of Education and Skills,Transport,230006,Contract Hire,05/04/2024,4254714-F106/MAR24,"2,578.96",REDACTED - PAYMENT TO INDIVIDUAL
Children and Young Peoples Services,Head of Education and Skills,Transport,230008,Contract Hire,05/04/2024,4254718-MARCHA021,"3,000.00",REDACTED - PAYMENT TO INDIVIDUAL
Children and Young Peoples Services,Head of Education and Skills,Transport,230006,Contract Hire,05/04/2024,4254719-3569MARCH24,"1,993.68",REDACTED - PAYMENT TO INDIVIDUAL
Children and Young Peoples Services,Head of Education and Skills,Transport,230007,Contract Hire,05/04/2024,4254719-4516-0324,"2,811.80",REDACTED - PAYMENT TO INDIVIDUAL
Children and Young Peoples Services,Head of Education and Skills,Transport,230006,Contract Hire,05/04/2024,4254719-A208-0324,"4,160.00",REDACTED - PAYMENT TO INDIVIDUAL
Adult and Health Services,Head of Adults,Transport,230005,Contract Hire,05/04/2024,4254719-DM214-0324,"5,446.40",REDACTED - PAYMENT TO INDIVIDUAL
Children and Young Peoples Services,Head of Education and Skills,Transport,230008,Contract Hire,05/04/2024,4254719-M005-0324,"4,219.20",REDACTED - PAYMENT TO INDIVIDUAL
Children and Young Peoples Services,Head of Education and Skills,Transport,230008,Contract Hire,05/04/2024,4254719-M046-0324,"4,129.60",REDACTED - PAYMENT TO INDIVIDUAL
Children and Young Peoples Services,Head of Education and Skills,Transport,230008,Contract Hire,05/04/2024,4254719-W062-0324,"3,946.00",REDACTED - PAYMENT TO INDIVIDUAL
Children and Young Peoples Services,Head of Education and Skills,Transport,230010,Contract Hire,05/04/2024,4254735-0324046,"3,406.86",REDACTED - PAYMENT TO INDIVIDUAL
Children and Young Peoples Services,Head of Education and Skills,Transport,230007,Contract Hire,05/04/2024,4254343-32401,"2,800.00",24/7 TAXI SERVICES (PETERLEE) LTD.
Children and Young Peoples Services,Head of Education and Skills,Transport,230034,Contract Hire,05/04/2024,4254343-32402,"3,482.00",24/7 TAXI SERVICES (PETERLEE) LTD.
Children and Young Peoples Services,Head of Education and Skills,Transport,230007,Contract Hire,05/04/2024,4254343-32405,"3,000.00",24/7 TAXI SERVICES (PETERLEE) LTD.
Children and Young Peoples Services,Head of Education and Skills,Transport,230007,Contract Hire,05/04/2024,4254343-32407,"3,018.00",24/7 TAXI SERVICES (PETERLEE) LTD.
Children and Young Peoples Services,Head of Education and Skills,Transport,230008,Contract Hire,05/04/2024,4254343-32408,"2,822.60",24/7 TAXI SERVICES (PETERLEE) LTD.
Children and Young Peoples Services,Head of Education and Skills,Transport,230008,Contract Hire,05/04/2024,4254343-32409,"3,780.00",24/7 TAXI SERVICES (PETERLEE) LTD.
Children and Young Peoples Services,Head of Education and Skills,Transport,230010,Contract Hire,05/04/2024,4254343-32410,"3,426.00",24/7 TAXI SERVICES (PETERLEE) LTD.
Children and Young Peoples Services,Head of Education and Skills,Transport,230009,Contract Hire,05/04/2024,4254344-119733,"1,792.46",24X7LTD.
Children and Young Peoples Services,Head of Education and Skills,Transport,230034,Contract Hire,05/04/2024,4254344-119734,"2,497.00",24X7LTD.
Children and Young Peoples Services,Head of Education and Skills,Transport,230008,Contract Hire,05/04/2024,4254344-119773,"3,957.00",24X7LTD.
Children and Young Peoples Services,Head of Education and Skills,Transport,230008,Contract Hire,05/04/2024,4254344-119775,"4,262.60",24X7LTD.
Children and Young Peoples Services,Head of Education and Skills,Transport,230006,Contract Hire,05/04/2024,4254344-119779,"2,536.60",24X7LTD.
Children and Young Peoples Services,Head of Education and Skills,Transport,230008,Contract Hire,05/04/2024,4254344-119780,"2,730.60",24X7LTD.
Children and Young Peoples Services,Head of Education and Skills,Transport,230006,Contract Hire,05/04/2024,4254344-119781,"3,225.80",24X7LTD.
Children and Young Peoples Services,Head of Education and Skills,Transport,230008,Contract Hire,05/04/2024,4254344-119782,"2,595.80",24X7LTD.
Children and Young Peoples Services,Head of Education and Skills,Transport,230008,Contract Hire,05/04/2024,4254344-119783,"2,632.41",24X7LTD.
Children and Young Peoples Services,Head of Education and Skills,Transport,230008,Contract Hire,05/04/2024,4254344-119785,"3,167.80",24X7LTD.
Children and Young Peoples Services,Head of Education and Skills,Transport,230008,Contract Hire,05/04/2024,4254344-119787,"3,973.88",24X7LTD.
Children and Young Peoples Services,Head of Education and Skills,Transport,230006,Contract Hire,05/04/2024,4254344-119788,"4,166.40",24X7LTD.
Children and Young Peoples Services,Head of Education and Skills,Transport,230008,Contract Hire,05/04/2024,4254344-119789A,"3,644.80",24X7LTD.
Children and Young Peoples Services,Head of Education and Skills,Transport,230008,Contract Hire,05/04/2024,4254344-119798,"3,238.68",24X7LTD.
Children and Young Peoples Services,Head of Education and Skills,Transport,230008,Contract Hire,05/04/2024,4254344-17084,"3,873.27",24X7LTD.
Children and Young Peoples Services,Head of Education and Skills,Transport,230008,Contract Hire,05/04/2024,4254344-17088,"3,527.16",24X7LTD.
Children and Young Peoples Services,Head of Education and Skills,Transport,230008,Contract Hire,05/04/2024,4254344-17090,"3,918.38",24X7LTD.
Adult and Health Services,Head of Adults,Premises,150005,Apportioned Exps of Operational Blds,05/04/2024,4254345-24461-APR24,750.00,4 PAWS FARM KENNELS & CATTERY.
Children and Young Peoples Services,Head of Education and Skills,Transport,230034,Contract Hire,05/04/2024,4254346-3031-0324,"2,800.00",A & P TAXIS.
Children and Young Peoples Services,Head of Education and Skills,Transport,230007,Contract Hire,05/04/2024,4254346-March04-2024,"2,000.00",A & P TAXIS.
Children and Young Peoples Services,Head of Education and Skills,Transport,230006,Contract Hire,05/04/2024,4254346-March05-2024.,"5,003.76",A & P TAXIS.
Children and Young Peoples Services,Head of Education and Skills,Transport,230034,Contract Hire,05/04/2024,4254346-March06-2024.,"3,329.64",A & P TAXIS.
Children and Young Peoples Services,Head of Education and Skills,Transport,230007,Contract Hire,05/04/2024,4254346-March08-2024.,"1,200.00",A & P TAXIS.
Children and Young Peoples Services,Head of Education and Skills,Transport,230006,Contract Hire,05/04/2024,4254347-0224-SG,"1,309.00",AABAT TAXIS.
Children and Young Peoples Services,Head of Education and Skills,Transport,230009,Contract Hire,05/04/2024,4254347-0324/SD,"3,622.00",AABAT TAXIS.
Children and Young Peoples Services,Head of Education and Skills,Transport,230007,Contract Hire,05/04/2024,4254347-0324/SE,"1,896.40",AABAT TAXIS.
Adult and Health Services,Head of Adults,Transport,230005,Contract Hire,05/04/2024,4254347-0324/SK,"2,538.20",AABAT TAXIS.
Children and Young Peoples Services,Head of Education and Skills,Transport,230007,Contract Hire,05/04/2024,4254347-0324/SM,"2,549.20",AABAT TAXIS.
Resources BK0010,HR & Employee Services,Supplies and Services,352001,Conference Expenses,05/04/2024,4254348-14/9895,"2,350.00",ACAS.
Adult and Health Services,Public Health CC0450,Third Party Payments,460803,Contract Payments,05/04/2024,4254352-INV09642,"3,600.80",ADFERIAD RECOVERY LTD.
Regeneration Economy and Growth,Corporate Property and Land,Third Party Payments,430100,Rendered by Private Contractors,05/04/2024,4254353-23847,"9,511.11",ADVANCED INNERGY SOLUTIONS LTD T/A AIS HIPPO LEISURE.
Neighbourhoods and Climate Change,Highways,Supplies and Services,338027,Services,05/04/2024,4254354-28554666,"16,487.00",AECOM LTD.
Neighbourhoods and Climate Change,Environmental Services,Transport,210057,Repair and Maintenance of Vehicles,05/04/2024,4254355-INV-992,650.00,AIM STRAIGHT ALIGNMENTS LTD.
Children and Young Peoples Services,Head of Education and Skills,Transport,230008,Contract Hire,05/04/2024,4254356-N338-MARCH24-029,"2,346.40",AIRPORT TRANSFER DURHAM.
Regeneration Economy and Growth,Culture Sport and Tourism,Supplies and Services,384237,Miscellaneous Expenses,05/04/2024,4254358-181071,"1,457.00",ALBANY OFFICE EQUIPMENT (WHOLESALE) LTD.
Regeneration Economy and Growth,Culture Sport and Tourism,Supplies and Services,308011,Furniture,05/04/2024,4254358-181073,"2,625.50",ALBANY OFFICE EQUIPMENT (WHOLESALE) LTD.
Children and Young Peoples Services,Head of Education and Skills,Transport,230034,Contract Hire,05/04/2024,4254367-1187-MAR24,"1,124.99",ANGIE`S TAXIS.
Children and Young Peoples Services,Head of Education and Skills,Transport,230008,Contract Hire,05/04/2024,4254367-N125-MARCH24,"1,400.00",ANGIE`S TAXIS.
Children and Young Peoples Services,Head of Education and Skills,Transport,230008,Contract Hire,05/04/2024,4254373-S008MAR24,"1,683.00",AT TAXIS LTD.
Children and Young Peoples Services,Head of Education and Skills,Transport,230034,Contract Hire,05/04/2024,4254373-S100MAR24,"3,374.80",AT TAXIS LTD.
Children and Young Peoples Services,Head of Education and Skills,Transport,230007,Contract Hire,05/04/2024,4254373-W084MAR24,"3,740.00",AT TAXIS LTD.
Children and Young Peoples Services,Head of Education and Skills,Transport,230008,Contract Hire,05/04/2024,4254374-A031MARCH2024,"5,000.00",AUCKLAND TRAVEL.
Children and Young Peoples Services,Head of Education and Skills,Transport,230008,Contract Hire,05/04/2024,4254374-A065MARCH2024,"3,740.00",AUCKLAND TRAVEL.
Children and Young Peoples Services,Head of Education and Skills,Transport,230006,Contract Hire,05/04/2024,4254374-F363-MARCH2024,"1,824.00",AUCKLAND TRAVEL.
Children and Young Peoples Services,Head of Education and Skills,Transport,230008,Contract Hire,05/04/2024,4254374-W061MARCH2024,"3,300.00",AUCKLAND TRAVEL.
Children and Young Peoples Services,Head of Education and Skills,Transport,230008,Contract Hire,05/04/2024,4254374-W141MARCH2024,"4,280.00",AUCKLAND TRAVEL.
Children and Young Peoples Services,Head of Education and Skills,Transport,230008,Contract Hire,05/04/2024,4254374-W180MARCH2024,"2,660.00",AUCKLAND TRAVEL.
Children and Young Peoples Services,Head of Education and Skills,Transport,230008,Contract Hire,05/04/2024,4254374-W200-MARCH2024,"3,740.00",AUCKLAND TRAVEL.
Adult and Health Services,Head of Adults,Supplies and Services,384956,Miscellaneous Expenses,05/04/2024,4254375-UKINV-1796,900.00,AZEUS UK LTD.
Adult and Health Services,Head of Adults,Transport,230005,Contract Hire,05/04/2024,4254376-SED141/MARCH,730.40,B&C YELLOWCAB TAXI`S.
Dedicated Schools Grant BG0015,DSG Schools Block,Supplies and Services,304259,Equipment and Materials,05/04/2024,4254377-0000005973,"1,738.00",BALANCEABILITY LTD.
Children and Young Peoples Services,Head of Education and Skills,Transport,230007,Contract Hire,05/04/2024,4254380-4517/MAR24,"2,676.00",BENNETTS TAXIS.
Children and Young Peoples Services,Head of Education and Skills,Transport,230034,Contract Hire,05/04/2024,4254381-4492-0324,"2,044.00",BENS TAXIS.
Children and Young Peoples Services,Head of Education and Skills,Transport,230007,Contract Hire,05/04/2024,4254381-4495-0324,"1,207.20",BENS TAXIS.
Children and Young Peoples Services,Head of Education and Skills,Transport,230006,Contract Hire,05/04/2024,4254381-BRABEAHOUGH0324,"1,859.16",BENS TAXIS.
Adult and Health Services,Head of Adults,Supplies and Services,384616,Miscellaneous Expenses,05/04/2024,4254382-1/2324/RUSHG,"1,026.84",BERNICIA GROUP LTD.*
Adult and Health Services,Head of Adults,Supplies and Services,384616,Miscellaneous Expenses,05/04/2024,4254382-12/2324/RUSHG,"1,026.84",BERNICIA GROUP LTD.*
Neighbourhoods and Climate Change,Highways,Third Party Payments,460224,Contract Payments,05/04/2024,4254384-10267671,"2,892.00",BEVAN BRITTAN LLP.
Children and Young Peoples Services,Head of Education and Skills,Transport,230008,Contract Hire,05/04/2024,4254385-1/MAR24,"3,200.00",BH TRAVEL.
Children and Young Peoples Services,Head of Education and Skills,Transport,230012,Contract Hire,05/04/2024,4254385-REF2,"3,075.00",BH TRAVEL.
Children and Young Peoples Services,Head of Education and Skills,Transport,230007,Contract Hire,05/04/2024,4254386-6069-0324,"1,599.60",BIG MAMA`S TAXI.
Children and Young Peoples Services,Head of Education and Skills,Transport,230006,Contract Hire,05/04/2024,4254386-F203-0324,"1,199.76",BIG MAMA`S TAXI.
Children and Young Peoples Services,Head of Education and Skills,Transport,230006,Contract Hire,05/04/2024,4254386-F320-0324,"1,199.76",BIG MAMA`S TAXI.
Children and Young Peoples Services,Head of Education and Skills,Transport,230034,Contract Hire,05/04/2024,4254387-34-24,"2,400.00",BL TAXIS.
Children and Young Peoples Services,Head of Education and Skills,Transport,230006,Contract Hire,05/04/2024,4254388-F836/MAR24,"1,440.00",BOBS TAXIS.
Children and Young Peoples Services,Head of Education and Skills,Transport,230008,Contract Hire,05/04/2024,4254393-BZ00511,"2,171.40",BREZ`S TAXIS.
Children and Young Peoples Services,Head of Education and Skills,Transport,230008,Contract Hire,05/04/2024,4254393-BZ00512,"1,215.80",BREZ`S TAXIS.
Adult and Health Services,Head of Adults,Transport,230005,Contract Hire,05/04/2024,4254393-BZ00513,780.00,BREZ`S TAXIS.
Adult and Health Services,Head of Adults,Transport,230005,Contract Hire,05/04/2024,4254393-BZ00514,680.00,BREZ`S TAXIS.
Neighbourhoods and Climate Change,Highways,Supplies and Services,338029,Services,05/04/2024,4254395-53867,"7,704.55",BRIDGEWAY CONSULTING LTD.
Neighbourhoods and Climate Change,Highways,Supplies and Services,338029,Services,05/04/2024,4254395-53957,"4,547.00",BRIDGEWAY CONSULTING LTD.
Regeneration Economy and Growth,Economic Development CL0150,Construction work A908,908202,Capital - Public Utilities - Telephones Services,05/04/2024,4254396-A247141,"2,065.20",BRITISH TELECOMMUNICATIONS PLC.
Children and Young Peoples Services,Head of Education and Skills,Transport,230007,Contract Hire,05/04/2024,4254397-350807,"1,765.20",C & R TAXIS.
Children and Young Peoples Services,Head of Education and Skills,Transport,230008,Contract Hire,05/04/2024,4254397-S00907,"3,337.20",C & R TAXIS.
Children and Young Peoples Services,Head of Education and Skills,Transport,230008,Contract Hire,05/04/2024,4254397-W00207,"3,001.60",C & R TAXIS.
Children and Young Peoples Services,Head of Education and Skills,Transport,230008,Contract Hire,05/04/2024,4254397-W04307,"3,300.00",C & R TAXIS.
Adult and Health Services,Head of Adults,Supplies and Services,338366,Services,05/04/2024,4254399-94697,"1,400.07",CARE ABILITY HEALTHCARE LTD.
Adult and Health Services,Head of Adults,Supplies and Services,338366,Services,05/04/2024,4254399-94698,"1,661.86",CARE ABILITY HEALTHCARE LTD.
Adult and Health Services,Head of Adults,Supplies and Services,338366,Services,05/04/2024,4254399-94701,517.66,CARE ABILITY HEALTHCARE LTD.
Children and Young Peoples Services,Head of Education and Skills,Transport,230006,Contract Hire,05/04/2024,4254401-103,840.00,CHANNER`S CABS.
Children and Young Peoples Services,Head of Education and Skills,Transport,230006,Contract Hire,05/04/2024,4254401-104,540.00,CHANNER`S CABS.
Children and Young Peoples Services,Head of Education and Skills,Supplies and Services,338027,Services,05/04/2024,4254404-080224,653.13,CHRIS TREVOR PRIMARY EDUCATION CONSULTANCY.
Resources BK0010,Pensions CK0700,Supplies and Services,342051,Computers and Communications,05/04/2024,4254408-C/PE299106,"20,320.00",CIVICA UK LTD.
